BIOGUIDE_ID,OFFICE,QUARTER,PROGRAM,CATEGORY,SORT SEQUENCE,DATE,TRANSCODE,RECORDID,PAYEE,START DATE,END DATE,PURPOSE,AMOUNT,YEAR
,2020 OFFICE OF THE SPEAKER,3,GENERAL EXPENDITURES,PERSONNEL COMPENSATION,DETAIL,   ,   ,   ,BERRET EMILY C,2020-07-01,2020-09-30,DIR OF OPERATIONS & ADVISOR,36741.67,2020
,2020 OFFICE OF THE SPEAKER,3,GENERAL EXPENDITURES,PERSONNEL COMPENSATION,DETAIL,   ,   ,   ,BUSH JACQUELINE D,2020-07-01,2020-09-30,DIGITAL ASSISTANT,8124.99,2020
,2020 OFFICE OF THE SPEAKER,3,GENERAL EXPENDITURES,PERSONNEL COMPENSATION,DETAIL,   ,   ,   ,CAPRON MARGARET W.,2020-07-01,2020-09-30,SENIOR ADV FOR POLICY & COMM,38274.51,2020
,2020 OFFICE OF THE SPEAKER,3,GENERAL EXPENDITURES,PERSONNEL COMPENSATION,DETAIL,   ,   ,   ,CHERRY STEPHANIE,2020-07-01,2020-09-30,DIRECTOR OF MEDIA AFFAIRS,26500,2020
,2020 OFFICE OF THE SPEAKER,3,GENERAL EXPENDITURES,PERSONNEL COMPENSATION,DETAIL,   ,   ,   ,CONNELLY HENRY V,2020-07-01,2020-09-30,DEPUTY COMMUNICATIONS DIRECTOR,36991.67,2020
,2020 OFFICE OF THE SPEAKER,3,GENERAL EXPENDITURES,PERSONNEL COMPENSATION,DETAIL,   ,   ,   ,COSTELLO JOSEPH M,2020-07-01,2020-09-30,PRESS ASSISTANT,12124.99,2020
,2020 OFFICE OF THE SPEAKER,3,GENERAL EXPENDITURES,PERSONNEL COMPENSATION,DETAIL,   ,   ,   ,COSTELLO JOSEPH M,2020-06-01,2020-08-01,PRESS ASSISTANT (OVERTIME),6451.09,2020
,2020 OFFICE OF THE SPEAKER,3,GENERAL EXPENDITURES,PERSONNEL COMPENSATION,DETAIL,   ,   ,   ,DEGRAFF KENNETH B.,2020-07-01,2020-09-30,SENIOR POLICY ADVISOR,35250.01,2020
,2020 OFFICE OF THE SPEAKER,3,GENERAL EXPENDITURES,PERSONNEL COMPENSATION,DETAIL,   ,   ,   ,DEWHIRST DIANE,2020-07-01,2020-09-30,DEPUTY CHIEF OF STAFF,43475.01,2020
,2020 OFFICE OF THE SPEAKER,3,GENERAL EXPENDITURES,PERSONNEL COMPENSATION,DETAIL,   ,   ,   ,DILLON KRISTEN G,2020-07-01,2020-09-30,POLICY ADVISOR,300,2020
,2020 OFFICE OF THE SPEAKER,3,GENERAL EXPENDITURES,PERSONNEL COMPENSATION,DETAIL,   ,   ,   ,DONOHUE JENNIFER A,2020-07-01,2020-09-30,EXECUTIVE DIRECTOR,41250,2020
,2020 OFFICE OF THE SPEAKER,3,GENERAL EXPENDITURES,PERSONNEL COMPENSATION,DETAIL,   ,   ,   ,EDMONSON ROBERT D,2020-07-01,2020-09-30,POLICY ADVISOR,20141.67,2020
,2020 OFFICE OF THE SPEAKER,3,GENERAL EXPENDITURES,PERSONNEL COMPENSATION,DETAIL,   ,   ,   ,EHRENBERG MIA R,2020-07-01,2020-08-31,PRESS ADVISOR,3111.11,2020
,2020 OFFICE OF THE SPEAKER,3,GENERAL EXPENDITURES,PERSONNEL COMPENSATION,DETAIL,   ,   ,   ,EHRENBERG MIA R,2020-06-01,2020-07-31,PRESS ADVISOR (OVERTIME),4486.43,2020
,2020 OFFICE OF THE SPEAKER,3,GENERAL EXPENDITURES,PERSONNEL COMPENSATION,DETAIL,   ,   ,   ,ETIENNE ASHLEY D,2020-07-01,2020-08-06,COMM DIR/SENIOR ADVISOR,17390,2020
,2020 OFFICE OF THE SPEAKER,3,GENERAL EXPENDITURES,PERSONNEL COMPENSATION,DETAIL,   ,   ,   ,ETIENNE ASHLEY D,2020-08-01,2020-08-06,COMM DIR/SENIOR ADVISOR (OTHER COMPENSATION),11593.33,2020
,2020 OFFICE OF THE SPEAKER,3,GENERAL EXPENDITURES,PERSONNEL COMPENSATION,DETAIL,   ,   ,   ,FINNEY FELICIA V,2020-07-01,2020-09-30,STAFF ASSISTANT,13124.99,2020
,2020 OFFICE OF THE SPEAKER,3,GENERAL EXPENDITURES,PERSONNEL COMPENSATION,DETAIL,   ,   ,   ,FINNEY FELICIA V,2020-06-01,2020-08-01,STAFF ASSISTANT (OVERTIME),2463.08,2020
,2020 OFFICE OF THE SPEAKER,3,GENERAL EXPENDITURES,PERSONNEL COMPENSATION,DETAIL,   ,   ,   ,FISCHER JR ROBERT V.,2020-07-01,2020-09-30,ASST FLOOR CHIEF,43475.01,2020
,2020 OFFICE OF THE SPEAKER,3,GENERAL EXPENDITURES,PERSONNEL COMPENSATION,DETAIL,   ,   ,   ,FLEET II JAMES P,2020-07-01,2020-09-30,SENIOR ADVISOR,300,2020
,2020 OFFICE OF THE SPEAKER,3,GENERAL EXPENDITURES,PERSONNEL COMPENSATION,DETAIL,   ,   ,   ,GARCIA MONICA,2020-08-01,2020-09-30,COMMUNICATIONS DIRECTOR,11333.34,2020
,2020 OFFICE OF THE SPEAKER,3,GENERAL EXPENDITURES,PERSONNEL COMPENSATION,DETAIL,   ,   ,   ,GIBSON DYLAN B,2020-07-01,2020-09-30,DIGITAL DIRECTOR,20250.01,2020
,2020 OFFICE OF THE SPEAKER,3,GENERAL EXPENDITURES,PERSONNEL COMPENSATION,DETAIL,   ,   ,   ,GREENER APRIL L.,2020-07-01,2020-09-30,RESEARCH DIRECTOR,32250.01,2020
,2020 OFFICE OF THE SPEAKER,3,GENERAL EXPENDITURES,PERSONNEL COMPENSATION,DETAIL,   ,   ,   ,HAMMILL ANDREW T.,2020-07-01,2020-09-30,DEPUTY CHIEF OF STAFF,43475.01,2020
,2020 OFFICE OF THE SPEAKER,3,GENERAL EXPENDITURES,PERSONNEL COMPENSATION,DETAIL,   ,   ,   ,HAN LEAH J.,2020-07-27,2020-09-30,STAFF ASSISTANT,9777.77,2020
,2020 OFFICE OF THE SPEAKER,3,GENERAL EXPENDITURES,PERSONNEL COMPENSATION,DETAIL,   ,   ,   ,HAN LEAH J.,2020-07-27,2020-08-01,STAFF ASSISTANT (OVERTIME),433.59,2020
,2020 OFFICE OF THE SPEAKER,3,GENERAL EXPENDITURES,PERSONNEL COMPENSATION,DETAIL,   ,   ,   ,HAYNES JR WILFRED J.,2020-07-01,2020-09-30,IT DIRECTOR,32280.5,2020
,2020 OFFICE OF THE SPEAKER,3,GENERAL EXPENDITURES,PERSONNEL COMPENSATION,DETAIL,   ,   ,   ,HIDALGO ADRIANA N,2020-07-01,2020-09-30,DISTRICT SCHED/SPECIAL ASSIST,18166.67,2020
,2020 OFFICE OF THE SPEAKER,3,GENERAL EXPENDITURES,PERSONNEL COMPENSATION,DETAIL,   ,   ,   ,HOLMES NATHANIEL J,2020-07-01,2020-09-30,DEP DIR/SCHEDULING & ADVANCE,22249.99,2020
,2020 OFFICE OF THE SPEAKER,3,GENERAL EXPENDITURES,PERSONNEL COMPENSATION,DETAIL,   ,   ,   ,HURWITZ ROSS B,2020-07-01,2020-09-30,DEPUTY DIR. OF SPEECHWRITING,20250.01,2020
,2020 OFFICE OF THE SPEAKER,3,GENERAL EXPENDITURES,PERSONNEL COMPENSATION,DETAIL,   ,   ,   ,IACOBELLIS SAMUEL C,2020-07-01,2020-09-30,MBR SVC & INTERGOV AFFAIRS ADV,16624.99,2020
,2020 OFFICE OF THE SPEAKER,3,GENERAL EXPENDITURES,PERSONNEL COMPENSATION,DETAIL,   ,   ,   ,JACKSON AUDRA L,2020-07-01,2020-09-30,ASST MGR FOR THE DEM CLOAKROOM,21499.99,2020
,2020 OFFICE OF THE SPEAKER,3,GENERAL EXPENDITURES,PERSONNEL COMPENSATION,DETAIL,   ,   ,   ,JETER KRISTINA B,2020-07-01,2020-09-30,DPTY DIR/SPEC EVENT & PROTOCOL,25666.67,2020
,2020 OFFICE OF THE SPEAKER,3,GENERAL EXPENDITURES,PERSONNEL COMPENSATION,DETAIL,   ,   ,   ,JONES MEREDITH A,2020-07-01,2020-09-30,SENIOR ADVISOR,41250,2020
,2020 OFFICE OF THE SPEAKER,3,GENERAL EXPENDITURES,PERSONNEL COMPENSATION,DETAIL,   ,   ,   ,KAPLAN EMMA L,2020-07-01,2020-09-30,FLOOR ADVISOR,24000.01,2020
,2020 OFFICE OF THE SPEAKER,3,GENERAL EXPENDITURES,PERSONNEL COMPENSATION,DETAIL,   ,   ,   ,KEATING ROSE M,2020-07-01,2020-09-30,ASST FLOOR MANAGER,36158.33,2020
,2020 OFFICE OF THE SPEAKER,3,GENERAL EXPENDITURES,PERSONNEL COMPENSATION,DETAIL,   ,   ,   ,KEITA KAMILAH Z,2020-07-01,2020-09-30,DEPUTY INFOMATION TECH. DIRECT,29916.34,2020
,2020 OFFICE OF THE SPEAKER,3,GENERAL EXPENDITURES,PERSONNEL COMPENSATION,DETAIL,   ,   ,   ,KUNDANIS GEORGE,2020-07-01,2020-09-30,DEPUTY CHIEF OF STAFF,43475.01,2020
,2020 OFFICE OF THE SPEAKER,3,GENERAL EXPENDITURES,PERSONNEL COMPENSATION,DETAIL,   ,   ,   ,LA ALISA M,2020-07-01,2020-09-30,SPECIAL ASST TO THE SPEAKER,26083.33,2020
,2020 OFFICE OF THE SPEAKER,3,GENERAL EXPENDITURES,PERSONNEL COMPENSATION,DETAIL,   ,   ,   ,LEE SERYEUNG,2020-07-01,2020-08-31,DEPUTY PRESS SECRETARY,10875,2020
,2020 OFFICE OF THE SPEAKER,3,GENERAL EXPENDITURES,PERSONNEL COMPENSATION,DETAIL,   ,   ,   ,LEE SERYEUNG,2020-09-01,2020-09-30,PRESS SECRETARY,10666.67,2020
,2020 OFFICE OF THE SPEAKER,3,GENERAL EXPENDITURES,PERSONNEL COMPENSATION,DETAIL,   ,   ,   ,LIZARRAGA JAIME E.,2020-07-01,2020-09-30,SENIOR ADVISOR,43475.01,2020
,2020 OFFICE OF THE SPEAKER,3,GENERAL EXPENDITURES,PERSONNEL COMPENSATION,DETAIL,   ,   ,   ,LONG MICHAEL G,2020-07-01,2020-09-30,SR ADV & DIR OF MBR SERV,36158.33,2020
,2020 OFFICE OF THE SPEAKER,3,GENERAL EXPENDITURES,PERSONNEL COMPENSATION,DETAIL,   ,   ,   ,MANGRUM PEARL J.,2020-07-01,2020-09-30,FINANCIAL ADMINISTRATOR,35391.55,2020
,2020 OFFICE OF THE SPEAKER,3,GENERAL EXPENDITURES,PERSONNEL COMPENSATION,DETAIL,   ,   ,   ,MANSBACH SHANA G,2020-07-01,2020-09-30,DIRECTOR OF SPEECHWRITING,28999.99,2020
,2020 OFFICE OF THE SPEAKER,3,GENERAL EXPENDITURES,PERSONNEL COMPENSATION,DETAIL,   ,   ,   ,MARRON BRENNA K,2020-07-01,2020-09-30,DEPUTY EXEC DIRECTOR,28749.99,2020
,2020 OFFICE OF THE SPEAKER,3,GENERAL EXPENDITURES,PERSONNEL COMPENSATION,DETAIL,   ,   ,   ,MASON GRAHAM H,2020-07-01,2020-09-30,SENIOR ADVISOR,30416.67,2020
,2020 OFFICE OF THE SPEAKER,3,GENERAL EXPENDITURES,PERSONNEL COMPENSATION,DETAIL,   ,   ,   ,MCCULLOUGH MARY T,2020-07-01,2020-09-30,CHIEF OF STAFF,43475.01,2020
,2020 OFFICE OF THE SPEAKER,3,GENERAL EXPENDITURES,PERSONNEL COMPENSATION,DETAIL,   ,   ,   ,MCCULLOUGH WILLIAM J,2020-07-01,2020-09-30,PRESS ASSISTANT,12124.99,2020
,2020 OFFICE OF THE SPEAKER,3,GENERAL EXPENDITURES,PERSONNEL COMPENSATION,DETAIL,   ,   ,   ,MCCULLOUGH WILLIAM J,2020-06-01,2020-08-01,PRESS ASSISTANT (OVERTIME),5906.19,2020
,2020 OFFICE OF THE SPEAKER,3,GENERAL EXPENDITURES,PERSONNEL COMPENSATION,DETAIL,   ,   ,   ,MELTZER RICHARD,2020-07-01,2020-09-30,POLICY DIRECTOR,43475.01,2020
,2020 OFFICE OF THE SPEAKER,3,GENERAL EXPENDITURES,PERSONNEL COMPENSATION,DETAIL,   ,   ,   ,MILLER MONTANA R,2020-07-01,2020-09-30,DEPUTY DIRECTOR OF SCHEDULING,19999.99,2020
,2020 OFFICE OF THE SPEAKER,3,GENERAL EXPENDITURES,PERSONNEL COMPENSATION,DETAIL,   ,   ,   ,MONGE KATHERINE S,2020-07-01,2020-09-30,SENIOR COUNSEL,43475.01,2020
,2020 OFFICE OF THE SPEAKER,3,GENERAL EXPENDITURES,PERSONNEL COMPENSATION,DETAIL,   ,   ,   ,MONTES DAVID,2020-07-01,2020-07-31,SENIOR ADVISOR,10000,2020
,2020 OFFICE OF THE SPEAKER,3,GENERAL EXPENDITURES,PERSONNEL COMPENSATION,DETAIL,   ,   ,   ,OBSCURA JULIO C,2020-07-01,2020-08-31,CREATIVE DIRECTOR,19465.27,2020
,2020 OFFICE OF THE SPEAKER,3,GENERAL EXPENDITURES,PERSONNEL COMPENSATION,DETAIL,   ,   ,   ,OBSCURA JULIO C,2020-09-01,2020-09-25,CREATIVE DIRECTOR (OTHER COMPENSATION),5458.33,2020
,2020 OFFICE OF THE SPEAKER,3,GENERAL EXPENDITURES,PERSONNEL COMPENSATION,DETAIL,   ,   ,   ,PARKER WYNDEE R.,2020-07-01,2020-09-30,NATIONAL SECURITY ADVISOR,43475.01,2020
,2020 OFFICE OF THE SPEAKER,3,GENERAL EXPENDITURES,PERSONNEL COMPENSATION,DETAIL,   ,   ,   ,POWELL LATRICE S,2020-07-01,2020-09-30,DEPUTY FLOOR DIRECTOR,37825.01,2020
,2020 OFFICE OF THE SPEAKER,3,GENERAL EXPENDITURES,PERSONNEL COMPENSATION,DETAIL,   ,   ,   ,PRICE REVA B.,2020-07-01,2020-09-30,OUTREACH DIR & SENIOR ADVISOR,38608.01,2020
,2020 OFFICE OF THE SPEAKER,3,GENERAL EXPENDITURES,PERSONNEL COMPENSATION,DETAIL,   ,   ,   ,PRIMUS WENDELL E.,2020-07-01,2020-09-30,SR HLTH/BUDGET POLICY ADV,43475.01,2020
,2020 OFFICE OF THE SPEAKER,3,GENERAL EXPENDITURES,PERSONNEL COMPENSATION,DETAIL,   ,   ,   ,RAMIREZ ANGELA K.,2020-07-01,2020-07-14,SENIOR ADVISOR,2173.89,2020
,2020 OFFICE OF THE SPEAKER,3,GENERAL EXPENDITURES,PERSONNEL COMPENSATION,DETAIL,   ,   ,   ,RAMIREZ MATTHEW M,2020-07-01,2020-09-30,OUTREACH ADVISOR,17125,2020
,2020 OFFICE OF THE SPEAKER,3,GENERAL EXPENDITURES,PERSONNEL COMPENSATION,DETAIL,   ,   ,   ,ROBLES CLARISSA V,2020-07-01,2020-09-30,MEMBER SERVICES COORDINATOR,12500.01,2020
,2020 OFFICE OF THE SPEAKER,3,GENERAL EXPENDITURES,PERSONNEL COMPENSATION,DETAIL,   ,   ,   ,ROSS PATRICIA L,2020-07-01,2020-09-30,SENIOR POLICY ADVISOR,25416.67,2020
,2020 OFFICE OF THE SPEAKER,3,GENERAL EXPENDITURES,PERSONNEL COMPENSATION,DETAIL,   ,   ,   ,RUSSELL MAYA A,2020-09-07,2020-09-30,DIGITAL DIRECTOR,3666.67,2020
,2020 OFFICE OF THE SPEAKER,3,GENERAL EXPENDITURES,PERSONNEL COMPENSATION,DETAIL,   ,   ,   ,SANCHEZ CARLOS S.,2020-07-24,2020-09-30,SENIOR ADVISOR,30794.44,2020
,2020 OFFICE OF THE SPEAKER,3,GENERAL EXPENDITURES,PERSONNEL COMPENSATION,DETAIL,   ,   ,   ,SMITH KELSEY L,2020-07-01,2020-09-30,DIR. OF SCHEDULING & ADVANCE,36158.33,2020
,2020 OFFICE OF THE SPEAKER,3,GENERAL EXPENDITURES,PERSONNEL COMPENSATION,DETAIL,   ,   ,   ,SMITH SHANE T,2020-07-01,2020-09-30,DPTY DIR OF ADVANCE/TRIP COORD,21499.99,2020
,2020 OFFICE OF THE SPEAKER,3,GENERAL EXPENDITURES,PERSONNEL COMPENSATION,DETAIL,   ,   ,   ,STERN KEITH L.,2020-07-01,2020-09-30,DIRECTOR OF FLOOR OPERATIONS,43475.01,2020
,2020 OFFICE OF THE SPEAKER,3,GENERAL EXPENDITURES,PERSONNEL COMPENSATION,DETAIL,   ,   ,   ,SWIG SARAH B,2020-07-01,2020-09-30,POLICY ASSOCIATE,17125,2020
,2020 OFFICE OF THE SPEAKER,3,GENERAL EXPENDITURES,PERSONNEL COMPENSATION,DETAIL,   ,   ,   ,TECKLENBURG MICHAEL H.,2020-07-01,2020-09-30,COUNSEL,38158.33,2020
,2020 OFFICE OF THE SPEAKER,3,GENERAL EXPENDITURES,PERSONNEL COMPENSATION,DETAIL,   ,   ,   ,URRY ALEXANDER M,2020-07-01,2020-09-30,POLICY ADVISOR,17749.99,2020
,2020 OFFICE OF THE SPEAKER,3,GENERAL EXPENDITURES,PERSONNEL COMPENSATION,DETAIL,   ,   ,   ,WEST JULIUS L,2020-07-01,2020-07-01,SENIOR ADVISOR,254.17,2020
,2020 OFFICE OF THE SPEAKER,3,GENERAL EXPENDITURES,PERSONNEL COMPENSATION,DETAIL,   ,   ,   ,WEST JULIUS L,2020-07-01,2020-07-01,SENIOR ADVISOR (OTHER COMPENSATION),7370.83,2020
,2020 OFFICE OF THE SPEAKER,3,GENERAL EXPENDITURES,PERSONNEL COMPENSATION,DETAIL,   ,   ,   ,WOLFF CELINE K.,2020-07-01,2020-09-30,DEPUTY DIGITAL DIRECTOR,13375,2020
,2020 OFFICE OF THE SPEAKER,3,GENERAL EXPENDITURES,PERSONNEL COMPENSATION,DETAIL,   ,   ,   ,WOLFF CELINE K.,2020-07-01,2020-08-01,DEPUTY DIGITAL DIRECTOR (OVERTIME),1561.73,2020
,2020 OFFICE OF THE SPEAKER,3,GENERAL EXPENDITURES,PERSONNEL COMPENSATION,DETAIL,   ,   ,   ,WOLTERS KATE,2020-07-01,2020-09-30,DIRECTOR OF SPECIAL EVENTS,28149.99,2020
,2020 OFFICE OF THE SPEAKER,3,GENERAL EXPENDITURES,PERSONNEL COMPENSATION,DETAIL,   ,   ,   ,WONG STEPHANIE P,2020-07-01,2020-07-01,SPECIAL ASSIST TO THE EXEC OFC,168.06,2020
,2020 OFFICE OF THE SPEAKER,3,GENERAL EXPENDITURES,PERSONNEL COMPENSATION,DETAIL,   ,   ,   ,WONG STEPHANIE P,2020-07-01,2020-07-01,SPECIAL ASSIST TO THE EXEC OFC (OTHER COMPENSATION),4873.61,2020
,2020 OFFICE OF THE SPEAKER,3,GENERAL EXPENDITURES,PERSONNEL COMPENSATION,SUBTOTAL,   ,   ,   ,   ,   ,   ,PERSONNEL COMPENSATION TOTALS:,1789803.9,2020
,2020 OFFICE OF THE SPEAKER,3,GENERAL EXPENDITURES,TRAVEL,DETAIL,2020-07-23,AP,1315744,FINNEY FELICIA V.,2020-04-23,2020-04-23,TAXI/PARKING/TOLLS,20.15,2020
,2020 OFFICE OF THE SPEAKER,3,GENERAL EXPENDITURES,TRAVEL,DETAIL,2020-07-23,AP,1315744,FINNEY FELICIA V.,2020-05-07,2020-05-27,TAXI/PARKING/TOLLS,62.71,2020
,2020 OFFICE OF THE SPEAKER,3,GENERAL EXPENDITURES,TRAVEL,DETAIL,2020-07-23,AP,1315744,FINNEY FELICIA V.,2020-06-11,2020-06-11,TAXI/PARKING/TOLLS,23.53,2020
,2020 OFFICE OF THE SPEAKER,3,GENERAL EXPENDITURES,TRAVEL,DETAIL,2020-09-16,AP,1332576,CITIBANK GOV CARD SERVICE,2020-07-28,2020-07-30,LODGING,236.82,2020
,2020 OFFICE OF THE SPEAKER,3,GENERAL EXPENDITURES,TRAVEL,DETAIL,2020-09-16,AP,1332576,CITIBANK GOV CARD SERVICE,2020-07-28,2020-07-28,MEALS,56.36,2020
,2020 OFFICE OF THE SPEAKER,3,GENERAL EXPENDITURES,TRAVEL,DETAIL,2020-09-16,AP,1332576,CITIBANK GOV CARD SERVICE,2020-07-29,2020-07-29,MEALS,44.23,2020
,2020 OFFICE OF THE SPEAKER,3,GENERAL EXPENDITURES,TRAVEL,DETAIL,2020-09-16,AP,1332576,CITIBANK GOV CARD SERVICE,2020-07-28,2020-07-28,TAXI/PARKING/TOLLS,66.74,2020
,2020 OFFICE OF THE SPEAKER,3,GENERAL EXPENDITURES,TRAVEL,DETAIL,2020-09-16,AP,1332576,CITIBANK GOV CARD SERVICE,2020-07-29,2020-07-29,TAXI/PARKING/TOLLS,18.99,2020
,2020 OFFICE OF THE SPEAKER,3,GENERAL EXPENDITURES,TRAVEL,SUBTOTAL,   ,   ,   ,   ,   ,   ,TRAVEL TOTALS:,529.53,2020
,2020 OFFICE OF THE SPEAKER,3,GENERAL EXPENDITURES,RENT  COMMUNICATION  UTILITIES,DETAIL,2020-07-27,GL,MED0099449, ,2020-06-23,2020-07-22,HIR GRAPHICS (TRANSFER),222,2020
,2020 OFFICE OF THE SPEAKER,3,GENERAL EXPENDITURES,RENT  COMMUNICATION  UTILITIES,DETAIL,2020-07-29,GL,EMS0099556, ,2020-06-01,2020-06-30,DC TELECOM EQUIP (TRANSFER),232,2020
,2020 OFFICE OF THE SPEAKER,3,GENERAL EXPENDITURES,RENT  COMMUNICATION  UTILITIES,DETAIL,2020-07-29,GL,EMS0099556, ,2020-06-01,2020-06-30,DC TELECOM SERV (TRANSFER),1227.5,2020
,2020 OFFICE OF THE SPEAKER,3,GENERAL EXPENDITURES,RENT  COMMUNICATION  UTILITIES,DETAIL,2020-07-29,GL,EMS0099556, ,2020-06-01,2020-06-30,DC TELECOM TOLLS (TRANSFER),10643.19,2020
,2020 OFFICE OF THE SPEAKER,3,GENERAL EXPENDITURES,RENT  COMMUNICATION  UTILITIES,DETAIL,2020-08-05,AP,1320214,FEDEX,2020-07-14,2020-07-14,POSTAGE / COURIER / BOX RENTAL,13.57,2020
,2020 OFFICE OF THE SPEAKER,3,GENERAL EXPENDITURES,RENT  COMMUNICATION  UTILITIES,DETAIL,2020-08-26,GL,EMS0100215, ,2020-07-01,2020-07-31,DC TELECOM EQUIP (TRANSFER),232,2020
,2020 OFFICE OF THE SPEAKER,3,GENERAL EXPENDITURES,RENT  COMMUNICATION  UTILITIES,DETAIL,2020-08-26,GL,EMS0100215, ,2020-07-01,2020-07-31,DC TELECOM SERV (TRANSFER),1232.5,2020
,2020 OFFICE OF THE SPEAKER,3,GENERAL EXPENDITURES,RENT  COMMUNICATION  UTILITIES,DETAIL,2020-08-26,GL,EMS0100215, ,2020-07-01,2020-07-31,DC TELECOM TOLLS (TRANSFER),11323.57,2020
,2020 OFFICE OF THE SPEAKER,3,GENERAL EXPENDITURES,RENT  COMMUNICATION  UTILITIES,DETAIL,2020-08-26,GL,MED0100217, ,2020-08-13,2020-08-13,HIR GRAPHICS (TRANSFER),50,2020
,2020 OFFICE OF THE SPEAKER,3,GENERAL EXPENDITURES,RENT  COMMUNICATION  UTILITIES,DETAIL,2020-09-24,GL,MED0100963, ,2020-09-08,2020-09-17,HIR GRAPHICS (TRANSFER),818,2020
,2020 OFFICE OF THE SPEAKER,3,GENERAL EXPENDITURES,RENT  COMMUNICATION  UTILITIES,DETAIL,2020-09-28,GL,EMS0101058, ,2020-08-01,2020-08-31,DC TELECOM EQUIP (TRANSFER),232,2020
,2020 OFFICE OF THE SPEAKER,3,GENERAL EXPENDITURES,RENT  COMMUNICATION  UTILITIES,DETAIL,2020-09-28,GL,EMS0101058, ,2020-08-01,2020-08-31,DC TELECOM SERV (TRANSFER),1232.5,2020
,2020 OFFICE OF THE SPEAKER,3,GENERAL EXPENDITURES,RENT  COMMUNICATION  UTILITIES,DETAIL,2020-09-28,GL,EMS0101058, ,2020-08-01,2020-08-31,DC TELECOM TOLLS (TRANSFER),8063.89,2020
,2020 OFFICE OF THE SPEAKER,3,GENERAL EXPENDITURES,RENT  COMMUNICATION  UTILITIES,SUBTOTAL,   ,   ,   ,   ,   ,   ,RENT  COMMUNICATION  UTILITIES TOTALS:,35522.72,2020
,2020 OFFICE OF THE SPEAKER,3,GENERAL EXPENDITURES,PRINTING AND REPRODUCTION,DETAIL,2020-07-23,AP,1312030,ACCURATE WORD LLC,2020-07-07,2020-07-07,PRINTING & REPRODUCTION,3065,2020
,2020 OFFICE OF THE SPEAKER,3,GENERAL EXPENDITURES,PRINTING AND REPRODUCTION,DETAIL,2020-07-27,GL,MED0099449, ,2020-06-26,2020-07-14,PHOTOGRAPHIC (TRANSFER),75.2,2020
,2020 OFFICE OF THE SPEAKER,3,GENERAL EXPENDITURES,PRINTING AND REPRODUCTION,DETAIL,2020-07-31,AP,1318056,ACCURATE WORD LLC,2020-07-20,2020-07-20,PRINTING & REPRODUCTION,69.95,2020
,2020 OFFICE OF THE SPEAKER,3,GENERAL EXPENDITURES,PRINTING AND REPRODUCTION,DETAIL,2020-08-05,AP,1320222,ACCURATE WORD LLC,2020-07-29,2020-07-29,PRINTING & REPRODUCTION,39.95,2020
,2020 OFFICE OF THE SPEAKER,3,GENERAL EXPENDITURES,PRINTING AND REPRODUCTION,DETAIL,2020-08-26,GL,MED0100217, ,2020-07-24,2020-07-24,PHOTOGRAPHIC (TRANSFER),20,2020
,2020 OFFICE OF THE SPEAKER,3,GENERAL EXPENDITURES,PRINTING AND REPRODUCTION,DETAIL,2020-09-16,AP,1329714,SHARP BUSINESS SYSTEMS,2020-01-03,2020-03-31,PRINTING & REPRODUCTION,3675.7,2020
,2020 OFFICE OF THE SPEAKER,3,GENERAL EXPENDITURES,PRINTING AND REPRODUCTION,DETAIL,2020-09-24,GL,MED0100963, ,2020-09-03,2020-09-09,PHOTOGRAPHIC (TRANSFER),45.7,2020
,2020 OFFICE OF THE SPEAKER,3,GENERAL EXPENDITURES,PRINTING AND REPRODUCTION,SUBTOTAL,   ,   ,   ,   ,   ,   ,PRINTING AND REPRODUCTION TOTALS:,6991.5,2020
,2020 OFFICE OF THE SPEAKER,3,GENERAL EXPENDITURES,OTHER SERVICES,DETAIL,2020-07-16,AP,1312648,LEIDOS DIGITAL SOLUTIONS INC,2020-07-01,2020-07-31,TECHNOLOGY SERVICE CONTRACTS,1895,2020
,2020 OFFICE OF THE SPEAKER,3,GENERAL EXPENDITURES,OTHER SERVICES,DETAIL,2020-07-20,AP,1311677,FIRESIDE21,2020-06-01,2020-06-30,WEB DEV HST EMAIL & RLTD SERV,350,2020
,2020 OFFICE OF THE SPEAKER,3,GENERAL EXPENDITURES,OTHER SERVICES,DETAIL,2020-08-16,AP,1322986,LEIDOS DIGITAL SOLUTIONS INC,2020-08-01,2020-08-31,TECHNOLOGY SERVICE CONTRACTS,1895,2020
,2020 OFFICE OF THE SPEAKER,3,GENERAL EXPENDITURES,OTHER SERVICES,DETAIL,2020-08-24,AP,1327545,FIRESIDE21,2020-07-01,2020-07-31,WEB DEV HST EMAIL & RLTD SERV,350,2020
,2020 OFFICE OF THE SPEAKER,3,GENERAL EXPENDITURES,OTHER SERVICES,DETAIL,2020-09-16,AP,1333236,LEIDOS DIGITAL SOLUTIONS INC,2020-09-01,2020-09-30,TECHNOLOGY SERVICE CONTRACTS,1895,2020
,2020 OFFICE OF THE SPEAKER,3,GENERAL EXPENDITURES,OTHER SERVICES,DETAIL,2020-09-29,AP,1338755,FEDEX BILLING ONLINE,2020-08-01,2020-08-31,WEB DEV HST EMAIL & RLTD SERV,350,2020
,2020 OFFICE OF THE SPEAKER,3,GENERAL EXPENDITURES,OTHER SERVICES,SUBTOTAL,   ,   ,   ,   ,   ,   ,OTHER SERVICES TOTALS:,6735,2020
,2020 OFFICE OF THE SPEAKER,3,GENERAL EXPENDITURES,SUPPLIES AND MATERIALS,DETAIL,2020-07-02,AP,1307867,CBIS SUBSCRIPTION SERVICE CTR,2020-06-29,2020-06-29,PUBLICATIONS/REFERENCE MAT'L,270,2020
,2020 OFFICE OF THE SPEAKER,3,GENERAL EXPENDITURES,SUPPLIES AND MATERIALS,DETAIL,2020-07-07,AP,1308385,CONGRESS AT YOUR FINGERTIPS,2020-06-30,2020-06-30,PUBLICATIONS/REFERENCE MAT'L,94,2020
,2020 OFFICE OF THE SPEAKER,3,GENERAL EXPENDITURES,SUPPLIES AND MATERIALS,DETAIL,2020-07-08,AP,1309278,TOULIES EN FLEUR,2020-06-22,2020-06-29,HABITATION EXPENSE,400,2020
,2020 OFFICE OF THE SPEAKER,3,GENERAL EXPENDITURES,SUPPLIES AND MATERIALS,DETAIL,2020-07-23,AP,1311109,CITI PCARD-TARGET        00010769,2020-06-02,2020-06-02,FOOD & BEVERAGE,122.96,2020
,2020 OFFICE OF THE SPEAKER,3,GENERAL EXPENDITURES,SUPPLIES AND MATERIALS,DETAIL,2020-07-23,AP,1311109,CITI PCARD-TARGET        00010769,2020-06-02,2020-06-02,OFFICE SUPPLIES (OUTSIDE),7.67,2020
,2020 OFFICE OF THE SPEAKER,3,GENERAL EXPENDITURES,SUPPLIES AND MATERIALS,DETAIL,2020-07-23,AP,1311109,CITI PCARD-WE THE PIZZA,2020-05-27,2020-05-27,FOOD & BEVERAGE,115.44,2020
,2020 OFFICE OF THE SPEAKER,3,GENERAL EXPENDITURES,SUPPLIES AND MATERIALS,DETAIL,2020-07-23,AP,1311109,CITI PCARD-WE THE PIZZA,2020-05-28,2020-05-28,FOOD & BEVERAGE,115.44,2020
,2020 OFFICE OF THE SPEAKER,3,GENERAL EXPENDITURES,SUPPLIES AND MATERIALS,DETAIL,2020-07-23,AP,1311109,CITI PCARD-WE THE PIZZA,2020-06-02,2020-06-02,FOOD & BEVERAGE,127.65,2020
,2020 OFFICE OF THE SPEAKER,3,GENERAL EXPENDITURES,SUPPLIES AND MATERIALS,DETAIL,2020-07-23,AP,1311109,CITI PCARD-WE THE PIZZA,2020-06-03,2020-06-03,FOOD & BEVERAGE,115.44,2020
,2020 OFFICE OF THE SPEAKER,3,GENERAL EXPENDITURES,SUPPLIES AND MATERIALS,DETAIL,2020-07-23,AP,1311109,CITI PCARD-WE THE PIZZA,2020-06-04,2020-06-04,FOOD & BEVERAGE,116.56,2020
,2020 OFFICE OF THE SPEAKER,3,GENERAL EXPENDITURES,SUPPLIES AND MATERIALS,DETAIL,2020-07-23,AP,1311109,CITI PCARD-WWW COSTCO COM,2020-06-17,2020-06-17,FOOD & BEVERAGE,75.98,2020
,2020 OFFICE OF THE SPEAKER,3,GENERAL EXPENDITURES,SUPPLIES AND MATERIALS,DETAIL,2020-07-23,AP,1312021,CONNECTION,2020-06-19,2020-06-19,OFFICE SUPPLIES (OUTSIDE),526.9,2020
,2020 OFFICE OF THE SPEAKER,3,GENERAL EXPENDITURES,SUPPLIES AND MATERIALS,DETAIL,2020-07-23,AP,1312024,CONNECTION,2020-06-29,2020-06-29,OFFICE SUPPLIES (OUTSIDE),51.27,2020
,2020 OFFICE OF THE SPEAKER,3,GENERAL EXPENDITURES,SUPPLIES AND MATERIALS,DETAIL,2020-07-24,AP,1312026,CONNECTION,2020-06-29,2020-06-29,OFFICE SUPPLIES (OUTSIDE),539.39,2020
,2020 OFFICE OF THE SPEAKER,3,GENERAL EXPENDITURES,SUPPLIES AND MATERIALS,DETAIL,2020-07-24,AP,1312027,CONNECTION,2020-06-15,2020-06-15,OFFICE SUPPLIES (OUTSIDE),5326.75,2020
,2020 OFFICE OF THE SPEAKER,3,GENERAL EXPENDITURES,SUPPLIES AND MATERIALS,DETAIL,2020-07-31,GL,RMS0099738, ,2020-07-01,2020-07-31,OFFICE SUPPLY (TRANSFER),1279.57,2020
,2020 OFFICE OF THE SPEAKER,3,GENERAL EXPENDITURES,SUPPLIES AND MATERIALS,DETAIL,2020-08-03,AP,1318054,TOULIES EN FLEUR,2020-07-13,2020-07-27,HABITATION EXPENSE,600,2020
,2020 OFFICE OF THE SPEAKER,3,GENERAL EXPENDITURES,SUPPLIES AND MATERIALS,DETAIL,2020-08-05,AP,1320213,TOULIES EN FLEUR,2020-07-27,2020-07-27,HABITATION EXPENSE,4855,2020
,2020 OFFICE OF THE SPEAKER,3,GENERAL EXPENDITURES,SUPPLIES AND MATERIALS,DETAIL,2020-08-05,AP,1320227,CONNECTION,2020-06-26,2020-06-26,OFFICE SUPPLIES (OUTSIDE),41.85,2020
,2020 OFFICE OF THE SPEAKER,3,GENERAL EXPENDITURES,SUPPLIES AND MATERIALS,DETAIL,2020-08-05,AP,1320230,CONNECTION,2020-07-27,2020-07-27,OFFICE SUPPLIES (OUTSIDE),241.71,2020
,2020 OFFICE OF THE SPEAKER,3,GENERAL EXPENDITURES,SUPPLIES AND MATERIALS,DETAIL,2020-08-06,AP,1320211,TOULIES EN FLEUR,2020-07-20,2020-07-20,HABITATION EXPENSE,300,2020
,2020 OFFICE OF THE SPEAKER,3,GENERAL EXPENDITURES,SUPPLIES AND MATERIALS,DETAIL,2020-08-13,AP,1321534,OCCASIONS CATERERS,2020-07-28,2020-07-28,FOOD & BEVERAGE,2552,2020
,2020 OFFICE OF THE SPEAKER,3,GENERAL EXPENDITURES,SUPPLIES AND MATERIALS,DETAIL,2020-08-13,AP,1321559,CITI PCARD-SUBURBAN FLORIST,2020-07-24,2020-07-24,HABITATION EXPENSE,503.5,2020
,2020 OFFICE OF THE SPEAKER,3,GENERAL EXPENDITURES,SUPPLIES AND MATERIALS,DETAIL,2020-08-13,AP,1321559,CITI PCARD-WE THE PIZZA,2020-06-25,2020-06-25,FOOD & BEVERAGE,168.74,2020
,2020 OFFICE OF THE SPEAKER,3,GENERAL EXPENDITURES,SUPPLIES AND MATERIALS,DETAIL,2020-08-13,AP,1321559,CITI PCARD-WE THE PIZZA,2020-06-29,2020-06-29,FOOD & BEVERAGE,163.17,2020
,2020 OFFICE OF THE SPEAKER,3,GENERAL EXPENDITURES,SUPPLIES AND MATERIALS,DETAIL,2020-08-13,AP,1321559,CITI PCARD-WWW COSTCO COM,2020-06-26,2020-06-26,FOOD & BEVERAGE,50.3,2020
,2020 OFFICE OF THE SPEAKER,3,GENERAL EXPENDITURES,SUPPLIES AND MATERIALS,DETAIL,2020-08-13,AP,1321559,CITI PCARD-WWW COSTCO COM,2020-06-26,2020-06-26,OFFICE SUPPLIES (OUTSIDE),28.78,2020
,2020 OFFICE OF THE SPEAKER,3,GENERAL EXPENDITURES,SUPPLIES AND MATERIALS,DETAIL,2020-08-13,AP,1321572,CITI PCARD-PENSKE BUSINESS MEDIA LL,2020-06-06,2020-06-06,PUBLICATIONS/REFERENCE MAT'L,80,2020
,2020 OFFICE OF THE SPEAKER,3,GENERAL EXPENDITURES,SUPPLIES AND MATERIALS,DETAIL,2020-08-13,AP,1321572,CITI PCARD-SKYPE.COM/GO/BILL,2020-06-01,2020-06-30,SOFTWARE  LESS THAN  $500,2.99,2020
,2020 OFFICE OF THE SPEAKER,3,GENERAL EXPENDITURES,SUPPLIES AND MATERIALS,DETAIL,2020-08-13,AP,1321572,CITI PCARD-SKYPE.COM/GO/BILL,2020-07-01,2020-07-31,SOFTWARE  LESS THAN  $500,2.99,2020
,2020 OFFICE OF THE SPEAKER,3,GENERAL EXPENDITURES,SUPPLIES AND MATERIALS,DETAIL,2020-08-18,AP,1321536,OCCASIONS CATERERS,2020-07-27,2020-07-27,FOOD & BEVERAGE,23385,2020
,2020 OFFICE OF THE SPEAKER,3,GENERAL EXPENDITURES,SUPPLIES AND MATERIALS,DETAIL,2020-08-24,AP,1324333,OCCASIONS CATERERS,2020-08-06,2020-08-06,FOOD & BEVERAGE,590,2020
,2020 OFFICE OF THE SPEAKER,3,GENERAL EXPENDITURES,SUPPLIES AND MATERIALS,DETAIL,2020-08-31,GL,RMS0100395, ,2020-08-01,2020-08-31,OFFICE SUPPLY (TRANSFER),197.41,2020
,2020 OFFICE OF THE SPEAKER,3,GENERAL EXPENDITURES,SUPPLIES AND MATERIALS,DETAIL,2020-09-16,AP,1332580,CITI PCARD-SQ  FRENCH MARKET FLOWERS,2020-07-29,2020-07-29,HABITATION EXPENSE,450.6,2020
,2020 OFFICE OF THE SPEAKER,3,GENERAL EXPENDITURES,SUPPLIES AND MATERIALS,DETAIL,2020-09-16,AP,1332580,CITI PCARD-STAPLES DIRECT,2020-08-21,2020-08-21,OFFICE SUPPLIES (OUTSIDE),25.71,2020
,2020 OFFICE OF THE SPEAKER,3,GENERAL EXPENDITURES,SUPPLIES AND MATERIALS,DETAIL,2020-09-16,AP,1332580,CITI PCARD-TARGET.COM,2020-08-17,2020-08-17,FOOD & BEVERAGE,32.58,2020
,2020 OFFICE OF THE SPEAKER,3,GENERAL EXPENDITURES,SUPPLIES AND MATERIALS,DETAIL,2020-09-16,AP,1332580,CITI PCARD-TARGET.COM,2020-08-17,2020-08-17,OFFICE SUPPLIES (OUTSIDE),9.98,2020
,2020 OFFICE OF THE SPEAKER,3,GENERAL EXPENDITURES,SUPPLIES AND MATERIALS,DETAIL,2020-09-16,AP,1332580,CITI PCARD-WE THE PIZZA,2020-08-06,2020-08-06,FOOD & BEVERAGE,169.05,2020
,2020 OFFICE OF THE SPEAKER,3,GENERAL EXPENDITURES,SUPPLIES AND MATERIALS,DETAIL,2020-09-16,AP,1332580,CITI PCARD-WWW COSTCO COM,2020-08-18,2020-08-18,FOOD & BEVERAGE,59.98,2020
,2020 OFFICE OF THE SPEAKER,3,GENERAL EXPENDITURES,SUPPLIES AND MATERIALS,DETAIL,2020-09-16,AP,1332580,CITI PCARD-WWW COSTCO COM,2020-08-18,2020-08-18,OFFICE SUPPLIES (OUTSIDE),18.01,2020
,2020 OFFICE OF THE SPEAKER,3,GENERAL EXPENDITURES,SUPPLIES AND MATERIALS,DETAIL,2020-09-17,AP,1332344,CITI PCARD-SKYPE.COM/GO/BILL,2020-08-24,2020-09-23,SOFTWARE  LESS THAN  $500,2.99,2020
,2020 OFFICE OF THE SPEAKER,3,GENERAL EXPENDITURES,SUPPLIES AND MATERIALS,DETAIL,2020-09-25,AP,1337109,BERRET EMILY C.,2020-08-01,2020-08-01,FOOD & BEVERAGE,53.48,2020
,2020 OFFICE OF THE SPEAKER,3,GENERAL EXPENDITURES,SUPPLIES AND MATERIALS,DETAIL,2020-09-30,GL,RMS0101251, ,2020-09-01,2020-09-30,OFFICE SUPPLY (TRANSFER),620.75,2020
,2020 OFFICE OF THE SPEAKER,3,GENERAL EXPENDITURES,SUPPLIES AND MATERIALS,SUBTOTAL,   ,   ,   ,   ,   ,   ,SUPPLIES AND MATERIALS TOTALS:,44491.59,2020
,2020 OFFICE OF THE SPEAKER,3,GENERAL EXPENDITURES,EQUIPMENT,DETAIL,2020-07-31,GL,MNT0099641, ,2020-06-01,2020-06-30,MAINTENANCE / REPAIRS,-348,2020
,2020 OFFICE OF THE SPEAKER,3,GENERAL EXPENDITURES,EQUIPMENT,DETAIL,2020-07-31,GL,MNT0099641, ,2020-07-01,2020-07-31,MAINTENANCE / REPAIRS,582,2020
,2020 OFFICE OF THE SPEAKER,3,GENERAL EXPENDITURES,EQUIPMENT,DETAIL,2020-08-03,AP,1319149,SHARP BUSINESS SYSTEMS,2020-06-29,2020-06-29,OFFICE EQUIP PURCH LESS THAN $25 000,18900,2020
,2020 OFFICE OF THE SPEAKER,3,GENERAL EXPENDITURES,EQUIPMENT,DETAIL,2020-08-14,AP,1323798,CONNECTION,2020-07-08,2020-07-09,COMPUTER HARDW PURCH  LESS THAN $25 000,8897,2020
,2020 OFFICE OF THE SPEAKER,3,GENERAL EXPENDITURES,EQUIPMENT,DETAIL,2020-08-31,GL,MNT0100341, ,2020-07-31,2020-07-31,MAINTENANCE / REPAIRS,10.78,2020
,2020 OFFICE OF THE SPEAKER,3,GENERAL EXPENDITURES,EQUIPMENT,DETAIL,2020-08-31,GL,MNT0100341, ,2020-08-01,2020-08-31,MAINTENANCE / REPAIRS,916,2020
,2020 OFFICE OF THE SPEAKER,3,GENERAL EXPENDITURES,EQUIPMENT,DETAIL,2020-09-30,GL,MNT0101165, ,2020-09-01,2020-09-30,MAINTENANCE / REPAIRS,916,2020
,2020 OFFICE OF THE SPEAKER,3,GENERAL EXPENDITURES,EQUIPMENT,SUBTOTAL,   ,   ,   ,   ,   ,   ,EQUIPMENT TOTALS:,29873.78,2020
,2020 OFFICE OF THE SPEAKER,3,GENERAL EXPENDITURES,EQUIPMENT,SUBTOTAL,   ,   ,   ,   ,   ,   ,GENERAL EXPENDITURES TOTALS:,1913948.02,2020
,2020 OFFICE OF THE SPEAKER,3,GENERAL EXPENDITURES,EQUIPMENT,GRAND TOTAL FOR ORGANIZATION,   ,   ,   ,   ,   ,   ,OFFICE TOTALS: ,1913948.02,2020
,2019 OFFICE OF THE SPEAKER,3,GENERAL EXPENDITURES,PRINTING AND REPRODUCTION,DETAIL,2020-09-17,AP,1329712,SHARP BUSINESS SYSTEMS,2019-12-30,2020-01-02,PRINTING & REPRODUCTION,165.2,2020
,2019 OFFICE OF THE SPEAKER,3,GENERAL EXPENDITURES,PRINTING AND REPRODUCTION,SUBTOTAL,   ,   ,   ,   ,   ,   ,PRINTING AND REPRODUCTION TOTALS:,165.2,2020
,2019 OFFICE OF THE SPEAKER,3,GENERAL EXPENDITURES,PRINTING AND REPRODUCTION,SUBTOTAL,   ,   ,   ,   ,   ,   ,GENERAL EXPENDITURES TOTALS:,165.2,2020
,2019 OFFICE OF THE SPEAKER,3,GENERAL EXPENDITURES,PRINTING AND REPRODUCTION,GRAND TOTAL FOR ORGANIZATION,   ,   ,   ,   ,   ,   ,OFFICE TOTALS: ,165.2,2020
,2020 OFFICE OF THE MAJORITY LEADER,3,GENERAL EXPENDITURES,PERSONNEL COMPENSATION,DETAIL,   ,   ,   ,ABOUCHAR KEITH S.,2020-07-01,2020-09-30,SENIOR POLICY ADVISOR,39491.67,2020
,2020 OFFICE OF THE MAJORITY LEADER,3,GENERAL EXPENDITURES,PERSONNEL COMPENSATION,DETAIL,   ,   ,   ,BAUSERMAN TRENTON D,2020-07-01,2020-09-30,SENIOR POLICY ADVISOR,39491.67,2020
,2020 OFFICE OF THE MAJORITY LEADER,3,GENERAL EXPENDITURES,PERSONNEL COMPENSATION,DETAIL,   ,   ,   ,BAYER JOHN S,2020-07-01,2020-09-30,OFFICE MANAGER/EXEC ASST,16250.01,2020
,2020 OFFICE OF THE MAJORITY LEADER,3,GENERAL EXPENDITURES,PERSONNEL COMPENSATION,DETAIL,   ,   ,   ,BEAN HARLEIGH J,2020-07-01,2020-09-30,STAFF ASSISTANT,7500,2020
,2020 OFFICE OF THE MAJORITY LEADER,3,GENERAL EXPENDITURES,PERSONNEL COMPENSATION,DETAIL,   ,   ,   ,BEAN HARLEIGH J,2020-06-01,2020-08-01,STAFF ASSISTANT (OVERTIME),4997.55,2020
,2020 OFFICE OF THE MAJORITY LEADER,3,GENERAL EXPENDITURES,PERSONNEL COMPENSATION,DETAIL,   ,   ,   ,BRENNAN BRIDGET E,2020-07-01,2020-09-30,DIRECTOR OF SCHEDULING,20000.01,2020
,2020 OFFICE OF THE MAJORITY LEADER,3,GENERAL EXPENDITURES,PERSONNEL COMPENSATION,DETAIL,   ,   ,   ,COVEY-BRANDT ALEXIS,2020-07-01,2020-09-30,CHIEF OF STAFF,43475.01,2020
,2020 OFFICE OF THE MAJORITY LEADER,3,GENERAL EXPENDITURES,PERSONNEL COMPENSATION,DETAIL,   ,   ,   ,DAVIS ANNALIESE E,2020-07-01,2020-09-30,MARYLAND PRESS SECRETARY,8000.01,2020
,2020 OFFICE OF THE MAJORITY LEADER,3,GENERAL EXPENDITURES,PERSONNEL COMPENSATION,DETAIL,   ,   ,   ,DREW KATHRYN L,2020-07-01,2020-09-30,COMM DIR AND SR ADVISOR,43475.01,2020
,2020 OFFICE OF THE MAJORITY LEADER,3,GENERAL EXPENDITURES,PERSONNEL COMPENSATION,DETAIL,   ,   ,   ,DWYER STEPHEN,2020-07-01,2020-09-30,DIGITAL DIR & POLICY ADV,25725,2020
,2020 OFFICE OF THE MAJORITY LEADER,3,GENERAL EXPENDITURES,PERSONNEL COMPENSATION,DETAIL,   ,   ,   ,FRY COURTNEY,2020-07-01,2020-09-30,MEMBER SERVICES DIRECTOR,43475.01,2020
,2020 OFFICE OF THE MAJORITY LEADER,3,GENERAL EXPENDITURES,PERSONNEL COMPENSATION,DETAIL,   ,   ,   ,GOFF SHUWANZA R,2020-07-01,2020-09-30,FLOOR DIRECTOR,43475.01,2020
,2020 OFFICE OF THE MAJORITY LEADER,3,GENERAL EXPENDITURES,PERSONNEL COMPENSATION,DETAIL,   ,   ,   ,LEUSCHEN JAMES P.,2020-07-01,2020-09-30,SENIOR POLICY ADVISOR,39491.67,2020
,2020 OFFICE OF THE MAJORITY LEADER,3,GENERAL EXPENDITURES,PERSONNEL COMPENSATION,DETAIL,   ,   ,   ,MAHR THOMAS,2020-07-01,2020-09-30,POLICY DIRECTOR,43475.01,2020
,2020 OFFICE OF THE MAJORITY LEADER,3,GENERAL EXPENDITURES,PERSONNEL COMPENSATION,DETAIL,   ,   ,   ,MEHRAN NICOLETTE,2020-07-01,2020-07-31,INTERN,1799.92,2020
,2020 OFFICE OF THE MAJORITY LEADER,3,GENERAL EXPENDITURES,PERSONNEL COMPENSATION,DETAIL,   ,   ,   ,MEHRAN NICOLETTE,2020-09-01,2020-09-30,STAFF ASSISTANT,2083.33,2020
,2020 OFFICE OF THE MAJORITY LEADER,3,GENERAL EXPENDITURES,PERSONNEL COMPENSATION,DETAIL,   ,   ,   ,MERZ JULIE E,2020-07-01,2020-09-30,SENIOR ADVISOR,21249.99,2020
,2020 OFFICE OF THE MAJORITY LEADER,3,GENERAL EXPENDITURES,PERSONNEL COMPENSATION,DETAIL,   ,   ,   ,ROMICK BRIAN,2020-07-01,2020-09-30,DEPUTY CHIEF OF STAFF,43475.01,2020
,2020 OFFICE OF THE MAJORITY LEADER,3,GENERAL EXPENDITURES,PERSONNEL COMPENSATION,DETAIL,   ,   ,   ,ROWE DEBORAH M,2020-07-01,2020-09-30,FLOOR ASSISTANT,18750,2020
,2020 OFFICE OF THE MAJORITY LEADER,3,GENERAL EXPENDITURES,PERSONNEL COMPENSATION,DETAIL,   ,   ,   ,RUSSO PATRICK L,2020-07-01,2020-09-01,STAFF ASSISTANT,2033.33,2020
,2020 OFFICE OF THE MAJORITY LEADER,3,GENERAL EXPENDITURES,PERSONNEL COMPENSATION,DETAIL,   ,   ,   ,SAEZ MARIEL S,2020-07-01,2020-08-09,DEPUTY COMMUNICATIONS DIRECTOR,5416.67,2020
,2020 OFFICE OF THE MAJORITY LEADER,3,GENERAL EXPENDITURES,PERSONNEL COMPENSATION,DETAIL,   ,   ,   ,SALAZAR RAYMOND J.,2020-07-01,2020-09-30,DEPUTY FLOOR DIRECTOR,20000.01,2020
,2020 OFFICE OF THE MAJORITY LEADER,3,GENERAL EXPENDITURES,PERSONNEL COMPENSATION,DETAIL,   ,   ,   ,SILVERBERG DANIEL I,2020-07-01,2020-09-30,SENIOR POLICY ADVISOR,20741.67,2020
,2020 OFFICE OF THE MAJORITY LEADER,3,GENERAL EXPENDITURES,PERSONNEL COMPENSATION,DETAIL,   ,   ,   ,SNYDER RACHEL N,2020-07-01,2020-09-30,SENIOR POLICY ADVISOR,25000.01,2020
,2020 OFFICE OF THE MAJORITY LEADER,3,GENERAL EXPENDITURES,PERSONNEL COMPENSATION,DETAIL,   ,   ,   ,SPAK MICHAEL J,2020-07-01,2020-09-30,STAFF ASSISTANT,7500,2020
,2020 OFFICE OF THE MAJORITY LEADER,3,GENERAL EXPENDITURES,PERSONNEL COMPENSATION,DETAIL,   ,   ,   ,SPAK MICHAEL J,2020-06-01,2020-08-01,STAFF ASSISTANT (OVERTIME),4997.55,2020
,2020 OFFICE OF THE MAJORITY LEADER,3,GENERAL EXPENDITURES,PERSONNEL COMPENSATION,DETAIL,   ,   ,   ,TRAUBERMAN JACOB M,2020-07-01,2020-09-30,SPECIAL ASSISTANT,15000,2020
,2020 OFFICE OF THE MAJORITY LEADER,3,GENERAL EXPENDITURES,PERSONNEL COMPENSATION,DETAIL,   ,   ,   ,URRABAZO CLAUDIA,2020-07-01,2020-09-30,DEP. DIR OF MBR SER & OUTR ADV,28749.99,2020
,2020 OFFICE OF THE MAJORITY LEADER,3,GENERAL EXPENDITURES,PERSONNEL COMPENSATION,DETAIL,   ,   ,   ,VALENTINE MAYA I,2020-07-01,2020-09-30,PRESS ASSISTANT & RESEARCHER,13749.99,2020
,2020 OFFICE OF THE MAJORITY LEADER,3,GENERAL EXPENDITURES,PERSONNEL COMPENSATION,DETAIL,   ,   ,   ,WEISSMANN ADAM,2020-07-01,2020-09-30,SPEECHWRITER,22500,2020
,2020 OFFICE OF THE MAJORITY LEADER,3,GENERAL EXPENDITURES,PERSONNEL COMPENSATION,SUBTOTAL,   ,   ,   ,   ,   ,   ,PERSONNEL COMPENSATION TOTALS:,671370.11,2020
,2020 OFFICE OF THE MAJORITY LEADER,3,GENERAL EXPENDITURES,TRAVEL,DETAIL,2020-09-12,AP,1331297,SPAK MICHAEL J.,2020-07-21,2020-07-31,TAXI/PARKING/TOLLS,125.12,2020
,2020 OFFICE OF THE MAJORITY LEADER,3,GENERAL EXPENDITURES,TRAVEL,DETAIL,2020-09-12,AP,1331298,BEAN HARLEIGH J.,2020-03-27,2020-03-27,TAXI/PARKING/TOLLS,16.01,2020
,2020 OFFICE OF THE MAJORITY LEADER,3,GENERAL EXPENDITURES,TRAVEL,DETAIL,2020-09-12,AP,1331298,BEAN HARLEIGH J.,2020-05-27,2020-05-28,TAXI/PARKING/TOLLS,34.08,2020
,2020 OFFICE OF THE MAJORITY LEADER,3,GENERAL EXPENDITURES,TRAVEL,DETAIL,2020-09-12,AP,1331298,BEAN HARLEIGH J.,2020-07-20,2020-07-30,TAXI/PARKING/TOLLS,158.86,2020
,2020 OFFICE OF THE MAJORITY LEADER,3,GENERAL EXPENDITURES,TRAVEL,DETAIL,2020-09-12,AP,1331298,BEAN HARLEIGH J.,2020-07-31,2020-07-31,TAXI/PARKING/TOLLS,13.12,2020
,2020 OFFICE OF THE MAJORITY LEADER,3,GENERAL EXPENDITURES,TRAVEL,DETAIL,2020-09-15,AP,1331747,VALENTINE MAYA I.,2020-06-16,2020-06-30,TAXI/PARKING/TOLLS,52.27,2020
,2020 OFFICE OF THE MAJORITY LEADER,3,GENERAL EXPENDITURES,TRAVEL,DETAIL,2020-09-15,AP,1331747,VALENTINE MAYA I.,2020-07-21,2020-07-29,TAXI/PARKING/TOLLS,122.31,2020
,2020 OFFICE OF THE MAJORITY LEADER,3,GENERAL EXPENDITURES,TRAVEL,SUBTOTAL,   ,   ,   ,   ,   ,   ,TRAVEL TOTALS:,521.77,2020
,2020 OFFICE OF THE MAJORITY LEADER,3,GENERAL EXPENDITURES,RENT  COMMUNICATION  UTILITIES,DETAIL,2020-07-27,GL,MED0099449, ,2020-07-23,2020-07-23,HIR GRAPHICS (TRANSFER),50,2020
,2020 OFFICE OF THE MAJORITY LEADER,3,GENERAL EXPENDITURES,RENT  COMMUNICATION  UTILITIES,DETAIL,2020-08-26,GL,MED0100217, ,2020-07-29,2020-07-29,HIR GRAPHICS (TRANSFER),50,2020
,2020 OFFICE OF THE MAJORITY LEADER,3,GENERAL EXPENDITURES,RENT  COMMUNICATION  UTILITIES,DETAIL,2020-09-24,GL,MED0100963, ,2020-09-21,2020-09-21,HIR GRAPHICS (TRANSFER),100,2020
,2020 OFFICE OF THE MAJORITY LEADER,3,GENERAL EXPENDITURES,RENT  COMMUNICATION  UTILITIES,SUBTOTAL,   ,   ,   ,   ,   ,   ,RENT  COMMUNICATION  UTILITIES TOTALS:,200,2020
,2020 OFFICE OF THE MAJORITY LEADER,3,GENERAL EXPENDITURES,PRINTING AND REPRODUCTION,DETAIL,2020-07-27,GL,MED0099449, ,2020-07-07,2020-07-23,PHOTOGRAPHIC (TRANSFER),99.7,2020
,2020 OFFICE OF THE MAJORITY LEADER,3,GENERAL EXPENDITURES,PRINTING AND REPRODUCTION,DETAIL,2020-08-26,GL,MED0100217, ,2020-07-29,2020-07-30,PHOTOGRAPHIC (TRANSFER),319.5,2020
,2020 OFFICE OF THE MAJORITY LEADER,3,GENERAL EXPENDITURES,PRINTING AND REPRODUCTION,DETAIL,2020-09-30,AP,1331452,CITI PCARD-FACEBK JJ329UN7D2,2020-07-22,2020-07-24,ADVERTISEMENTS,900,2020
,2020 OFFICE OF THE MAJORITY LEADER,3,GENERAL EXPENDITURES,PRINTING AND REPRODUCTION,DETAIL,2020-09-30,AP,1331452,CITI PCARD-FACEBK P8Z2VT68D2,2020-07-12,2020-07-22,ADVERTISEMENTS,900,2020
,2020 OFFICE OF THE MAJORITY LEADER,3,GENERAL EXPENDITURES,PRINTING AND REPRODUCTION,DETAIL,2020-09-30,AP,1331452,CITI PCARD-FACEBK TKZBAUN7D2,2020-07-24,2020-07-26,ADVERTISEMENTS,900,2020
,2020 OFFICE OF THE MAJORITY LEADER,3,GENERAL EXPENDITURES,PRINTING AND REPRODUCTION,DETAIL,2020-09-30,AP,1331452,CITI PCARD-FACEBK WXETXTN7D2,2020-07-10,2020-07-13,ADVERTISEMENTS,900,2020
,2020 OFFICE OF THE MAJORITY LEADER,3,GENERAL EXPENDITURES,PRINTING AND REPRODUCTION,DETAIL,2020-09-30,AP,1331452,CITI PCARD-FACEBK Y3FAAUS8D2,2020-07-26,2020-07-27,ADVERTISEMENTS,433.15,2020
,2020 OFFICE OF THE MAJORITY LEADER,3,GENERAL EXPENDITURES,PRINTING AND REPRODUCTION,SUBTOTAL,   ,   ,   ,   ,   ,   ,PRINTING AND REPRODUCTION TOTALS:,4452.35,2020
,2020 OFFICE OF THE MAJORITY LEADER,3,GENERAL EXPENDITURES,OTHER SERVICES,DETAIL,2020-07-30,AP,1317854,OBLIQUE DESIGN LLC,2020-07-23,2020-07-23,WEB DEV HST EMAIL & RLTD SERV,3210,2020
,2020 OFFICE OF THE MAJORITY LEADER,3,GENERAL EXPENDITURES,OTHER SERVICES,DETAIL,2020-09-11,AP,1331585,OBLIQUE DESIGN LLC,2020-07-23,2020-07-23,WEB DEV HST EMAIL & RLTD SERV,-3210,2020
,2020 OFFICE OF THE MAJORITY LEADER,3,GENERAL EXPENDITURES,OTHER SERVICES,SUBTOTAL,   ,   ,   ,   ,   ,   ,OTHER SERVICES TOTALS:,0,2020
,2020 OFFICE OF THE MAJORITY LEADER,3,GENERAL EXPENDITURES,SUPPLIES AND MATERIALS,DETAIL,2020-07-20,AP,1315508,DEER PARK,2020-06-30,2020-06-30,WATER,8,2020
,2020 OFFICE OF THE MAJORITY LEADER,3,GENERAL EXPENDITURES,SUPPLIES AND MATERIALS,DETAIL,2020-08-12,AP,1322125,DEER PARK,2020-07-31,2020-07-31,WATER,8,2020
,2020 OFFICE OF THE MAJORITY LEADER,3,GENERAL EXPENDITURES,SUPPLIES AND MATERIALS,DETAIL,2020-09-24,AP,1337275,READYREFRESH BY NESTLE,2020-08-31,2020-08-31,WATER,118.79,2020
,2020 OFFICE OF THE MAJORITY LEADER,3,GENERAL EXPENDITURES,SUPPLIES AND MATERIALS,DETAIL,2020-09-30,AP,1331452,CITI PCARD-POTBELLY #256,2020-07-30,2020-07-30,FOOD & BEVERAGE,2988.75,2020
,2020 OFFICE OF THE MAJORITY LEADER,3,GENERAL EXPENDITURES,SUPPLIES AND MATERIALS,SUBTOTAL,   ,   ,   ,   ,   ,   ,SUPPLIES AND MATERIALS TOTALS:,3123.54,2020
,2020 OFFICE OF THE MAJORITY LEADER,3,GENERAL EXPENDITURES,EQUIPMENT,DETAIL,2020-07-31,GL,MNT0099641, ,2020-07-01,2020-07-31,MAINTENANCE / REPAIRS,222.47,2020
,2020 OFFICE OF THE MAJORITY LEADER,3,GENERAL EXPENDITURES,EQUIPMENT,DETAIL,2020-08-31,GL,MNT0100341, ,2020-08-01,2020-08-31,MAINTENANCE / REPAIRS,222.47,2020
,2020 OFFICE OF THE MAJORITY LEADER,3,GENERAL EXPENDITURES,EQUIPMENT,DETAIL,2020-09-11,GL,GLA0100622, ,2020-06-03,2020-08-31,MAINTENANCE / REPAIRS,-652.58,2020
,2020 OFFICE OF THE MAJORITY LEADER,3,GENERAL EXPENDITURES,EQUIPMENT,DETAIL,2020-09-30,GL,MNT0101165, ,2020-09-01,2020-09-30,MAINTENANCE / REPAIRS,222.47,2020
,2020 OFFICE OF THE MAJORITY LEADER,3,GENERAL EXPENDITURES,EQUIPMENT,SUBTOTAL,   ,   ,   ,   ,   ,   ,EQUIPMENT TOTALS:,14.83,2020
,2020 OFFICE OF THE MAJORITY LEADER,3,GENERAL EXPENDITURES,EQUIPMENT,SUBTOTAL,   ,   ,   ,   ,   ,   ,GENERAL EXPENDITURES TOTALS:,679682.6,2020
,2020 OFFICE OF THE MAJORITY LEADER,3,GENERAL EXPENDITURES,EQUIPMENT,GRAND TOTAL FOR ORGANIZATION,   ,   ,   ,   ,   ,   ,OFFICE TOTALS: ,679682.6,2020
,2020 OFFICE OF THE MAJORITY LEADER,3,INTERN ALLOWANCES,PERSONNEL COMPENSATION,DETAIL,   ,   ,   ,DUTTON ZOE P.,2020-08-22,2020-09-30,MAJ LEADER PAID INTERN - HOUSE,2340,2020
,2020 OFFICE OF THE MAJORITY LEADER,3,INTERN ALLOWANCES,PERSONNEL COMPENSATION,DETAIL,   ,   ,   ,MEHRAN NICOLETTE,2020-08-01,2020-08-01,MAJ LEADER PAID INTERN - HOUSE,1799.92,2020
,2020 OFFICE OF THE MAJORITY LEADER,3,INTERN ALLOWANCES,PERSONNEL COMPENSATION,DETAIL,   ,   ,   ,RIVERA JOSHUA A.,2020-08-22,2020-09-30,MAJ LEADER PAID INTERN - HOUSE,2340,2020
,2020 OFFICE OF THE MAJORITY LEADER,3,INTERN ALLOWANCES,PERSONNEL COMPENSATION,DETAIL,   ,   ,   ,RODRIGUEZ BENJAMIN E.,2020-08-22,2020-09-30,MAJ LEADER PAID INTERN - HOUSE,2340,2020
,2020 OFFICE OF THE MAJORITY LEADER,3,INTERN ALLOWANCES,PERSONNEL COMPENSATION,DETAIL,   ,   ,   ,SALAZAR HANNAH L.,2020-08-22,2020-09-30,MAJ LEADER PAID INTERN - HOUSE,2340,2020
,2020 OFFICE OF THE MAJORITY LEADER,3,INTERN ALLOWANCES,PERSONNEL COMPENSATION,SUBTOTAL,   ,   ,   ,   ,   ,   ,PERSONNEL COMPENSATION TOTALS:,11159.92,2020
,2020 OFFICE OF THE MAJORITY LEADER,3,INTERN ALLOWANCES,PERSONNEL COMPENSATION,SUBTOTAL,   ,   ,   ,   ,   ,   ,INTERN ALLOWANCES TOTALS:,11159.92,2020
,2020 OFFICE OF THE MAJORITY LEADER,3,INTERN ALLOWANCES,PERSONNEL COMPENSATION,GRAND TOTAL FOR ORGANIZATION,   ,   ,   ,   ,   ,   ,OFFICE TOTALS: ,11159.92,2020
,2020 OFFICE OF THE MINORITY LEADER,3,GENERAL EXPENDITURES,PERSONNEL COMPENSATION,DETAIL,   ,   ,   ,BEDNAR MARK M,2020-07-01,2020-09-30,DIR OF STRATEGIC COMMUNICATION,33750,2020
,2020 OFFICE OF THE MINORITY LEADER,3,GENERAL EXPENDITURES,PERSONNEL COMPENSATION,DETAIL,   ,   ,   ,BERTOLINI STEVEN R.,2020-08-05,2020-09-30,TEMPORARY EMPLOYEE,1866.67,2020
,2020 OFFICE OF THE MINORITY LEADER,3,GENERAL EXPENDITURES,PERSONNEL COMPENSATION,DETAIL,   ,   ,   ,BIEN CHRISTOPHER A,2020-07-01,2020-09-30,DEPUTY DIR OF FLOOR OPERATIONS,27000,2020
,2020 OFFICE OF THE MINORITY LEADER,3,GENERAL EXPENDITURES,PERSONNEL COMPENSATION,DETAIL,   ,   ,   ,BOGOROWSKI HANNA C,2020-07-01,2020-09-30,COMMUNICATIONS AIDE,15000,2020
,2020 OFFICE OF THE MINORITY LEADER,3,GENERAL EXPENDITURES,PERSONNEL COMPENSATION,DETAIL,   ,   ,   ,BONNER JENNIFER L,2020-07-01,2020-09-30,SCHEDULER,16500,2020
,2020 OFFICE OF THE MINORITY LEADER,3,GENERAL EXPENDITURES,PERSONNEL COMPENSATION,DETAIL,   ,   ,   ,BUCHANAN NATALIE L,2020-07-01,2020-09-30,DIR OF MEMBER SERVICES,42000,2020
,2020 OFFICE OF THE MINORITY LEADER,3,GENERAL EXPENDITURES,PERSONNEL COMPENSATION,DETAIL,   ,   ,   ,BYERS JILLIAN L.,2020-07-08,2020-08-07,TEMPORARY EMPLOYEE,2500,2020
,2020 OFFICE OF THE MINORITY LEADER,3,GENERAL EXPENDITURES,PERSONNEL COMPENSATION,DETAIL,   ,   ,   ,CAMERON CHRISTINA E,2020-07-01,2020-09-30,DEPUTY PRESS SECRETARY,18000,2020
,2020 OFFICE OF THE MINORITY LEADER,3,GENERAL EXPENDITURES,PERSONNEL COMPENSATION,DETAIL,   ,   ,   ,CARR MACHALAGH,2020-07-01,2020-09-30,GENERAL COUNSEL,42000,2020
,2020 OFFICE OF THE MINORITY LEADER,3,GENERAL EXPENDITURES,PERSONNEL COMPENSATION,DETAIL,   ,   ,   ,CHAFFEE SAVANNAH M,2020-07-01,2020-09-30,STAFF ASSISTANT,10000,2020
,2020 OFFICE OF THE MINORITY LEADER,3,GENERAL EXPENDITURES,PERSONNEL COMPENSATION,DETAIL,   ,   ,   ,CORRELL CHARLES C,2020-07-01,2020-09-30,DEPUTY SPEECHWRITER,16500,2020
,2020 OFFICE OF THE MINORITY LEADER,3,GENERAL EXPENDITURES,PERSONNEL COMPENSATION,DETAIL,   ,   ,   ,COYLE SARAH M,2020-07-01,2020-09-30,CLOAKROOM FLOOR ASSISTANT,15000,2020
,2020 OFFICE OF THE MINORITY LEADER,3,GENERAL EXPENDITURES,PERSONNEL COMPENSATION,DETAIL,   ,   ,   ,DAYER KATHERINE J,2020-07-01,2020-09-30,STAFF ASSISTANT,9000,2020
,2020 OFFICE OF THE MINORITY LEADER,3,GENERAL EXPENDITURES,PERSONNEL COMPENSATION,DETAIL,   ,   ,   ,DOMENECH EMILY H,2020-07-01,2020-09-30,SENIOR POLICY ADVISOR,37500,2020
,2020 OFFICE OF THE MINORITY LEADER,3,GENERAL EXPENDITURES,PERSONNEL COMPENSATION,DETAIL,   ,   ,   ,DUNHAM WILL,2020-07-01,2020-09-30,DEP CHIEF OF STAFF FOR POLICY,42000,2020
,2020 OFFICE OF THE MINORITY LEADER,3,GENERAL EXPENDITURES,PERSONNEL COMPENSATION,DETAIL,   ,   ,   ,ENGLING MAXIMILIAN T,2020-07-01,2020-09-30,DEP DIR OF MEMBER SERVICES,33750,2020
,2020 OFFICE OF THE MINORITY LEADER,3,GENERAL EXPENDITURES,PERSONNEL COMPENSATION,DETAIL,   ,   ,   ,EXNER MICHELE P,2020-07-01,2020-09-30,COMMUNICATIONS DIRECTOR,35250,2020
,2020 OFFICE OF THE MINORITY LEADER,3,GENERAL EXPENDITURES,PERSONNEL COMPENSATION,DETAIL,   ,   ,   ,FERGUSON MARY P.,2020-06-19,2020-07-10,TEMPORARY EMPLOYEE,2500,2020
,2020 OFFICE OF THE MINORITY LEADER,3,GENERAL EXPENDITURES,PERSONNEL COMPENSATION,DETAIL,   ,   ,   ,GIAIER STEVEN S,2020-07-01,2020-09-30,SENIOR POLICY ADVISOR & COUNSE,37500,2020
,2020 OFFICE OF THE MINORITY LEADER,3,GENERAL EXPENDITURES,PERSONNEL COMPENSATION,DETAIL,   ,   ,   ,GOURDIKIAN ALEXANDRA G.,2020-07-01,2020-09-30,DIRECTOR OF OPERATIONS & SCHED,33750,2020
,2020 OFFICE OF THE MINORITY LEADER,3,GENERAL EXPENDITURES,PERSONNEL COMPENSATION,DETAIL,   ,   ,   ,GRIBBIN WILLIAM J.,2020-08-06,2020-09-30,SHARED EMPLOYEE,5958.33,2020
,2020 OFFICE OF THE MINORITY LEADER,3,GENERAL EXPENDITURES,PERSONNEL COMPENSATION,DETAIL,   ,   ,   ,GUZZO ANNALISE K.,2020-06-26,2020-07-25,TEMPORARY EMPLOYEE,2500,2020
,2020 OFFICE OF THE MINORITY LEADER,3,GENERAL EXPENDITURES,PERSONNEL COMPENSATION,DETAIL,   ,   ,   ,HILL PRESTON W,2020-07-01,2020-09-30,POLICY ADVISOR,25500,2020
,2020 OFFICE OF THE MINORITY LEADER,3,GENERAL EXPENDITURES,PERSONNEL COMPENSATION,DETAIL,   ,   ,   ,HOCHSCHILD KEENAN N.,2020-07-01,2020-09-30,DIGITAL COMMUNICATIONS AIDE,15000,2020
,2020 OFFICE OF THE MINORITY LEADER,3,GENERAL EXPENDITURES,PERSONNEL COMPENSATION,DETAIL,   ,   ,   ,HOUSTON ZACHARY G,2020-07-01,2020-09-30,COMMUNICATIONS AIDE,12000,2020
,2020 OFFICE OF THE MINORITY LEADER,3,GENERAL EXPENDITURES,PERSONNEL COMPENSATION,DETAIL,   ,   ,   ,HUMES ALEXANDRA W,2020-07-01,2020-09-30,MEMBER SERVICES COORDINATOR,15750,2020
,2020 OFFICE OF THE MINORITY LEADER,3,GENERAL EXPENDITURES,PERSONNEL COMPENSATION,DETAIL,   ,   ,   ,HUNT SARAH,2020-09-17,2020-09-30,TEMPORARY EMPLOYEE,466.67,2020
,2020 OFFICE OF THE MINORITY LEADER,3,GENERAL EXPENDITURES,PERSONNEL COMPENSATION,DETAIL,   ,   ,   ,KELLY CARI R,2020-07-14,2020-09-30,EXECUTIVE DIRECTOR,31441.67,2020
,2020 OFFICE OF THE MINORITY LEADER,3,GENERAL EXPENDITURES,PERSONNEL COMPENSATION,DETAIL,   ,   ,   ,LEGANSKI JOHN G,2020-07-01,2020-09-30,DIRECTOR OF FLOOR OPERATIONS,40500,2020
,2020 OFFICE OF THE MINORITY LEADER,3,GENERAL EXPENDITURES,PERSONNEL COMPENSATION,DETAIL,   ,   ,   ,LEHMAN RAEGAN G.,2020-09-04,2020-09-15,TEMPORARY EMPLOYEE,1200,2020
,2020 OFFICE OF THE MINORITY LEADER,3,GENERAL EXPENDITURES,PERSONNEL COMPENSATION,DETAIL,   ,   ,   ,LOMBARDI KYLE,2020-07-01,2020-09-30,SHARED EMPLOYEE,25500,2020
,2020 OFFICE OF THE MINORITY LEADER,3,GENERAL EXPENDITURES,PERSONNEL COMPENSATION,DETAIL,   ,   ,   ,MADDOX GABRIELLE A.,2020-08-12,2020-09-30,TEMPORARY EMPLOYEE,1633.33,2020
,2020 OFFICE OF THE MINORITY LEADER,3,GENERAL EXPENDITURES,PERSONNEL COMPENSATION,DETAIL,   ,   ,   ,MARGARITIS WINSTON V.,2020-07-01,2020-07-31,TEMPORARY EMPLOYEE,2500,2020
,2020 OFFICE OF THE MINORITY LEADER,3,GENERAL EXPENDITURES,PERSONNEL COMPENSATION,DETAIL,   ,   ,   ,MARTINEZ BRITTANY N,2020-07-01,2020-09-30,CALIFORNIA PRESS SECRETARY,19500,2020
,2020 OFFICE OF THE MINORITY LEADER,3,GENERAL EXPENDITURES,PERSONNEL COMPENSATION,DETAIL,   ,   ,   ,MCMANUS JACK E.,2020-06-26,2020-07-25,TEMPORARY EMPLOYEE,2500,2020
,2020 OFFICE OF THE MINORITY LEADER,3,GENERAL EXPENDITURES,PERSONNEL COMPENSATION,DETAIL,   ,   ,   ,MEYER DANIEL P,2020-07-01,2020-09-30,CHIEF OF STAFF,43475.01,2020
,2020 OFFICE OF THE MINORITY LEADER,3,GENERAL EXPENDITURES,PERSONNEL COMPENSATION,DETAIL,   ,   ,   ,MEYER KATHERINE R,2020-07-01,2020-09-30,SENIOR POLICY ADVISOR,40500,2020
,2020 OFFICE OF THE MINORITY LEADER,3,GENERAL EXPENDITURES,PERSONNEL COMPENSATION,DETAIL,   ,   ,   ,MIN JAMES B.,2020-07-01,2020-09-30,DEPUTY CHIEF OF STAFF/COUNSEL,39750,2020
,2020 OFFICE OF THE MINORITY LEADER,3,GENERAL EXPENDITURES,PERSONNEL COMPENSATION,DETAIL,   ,   ,   ,MINOR JACK M,2020-07-01,2020-09-30,SHARED EMPLOYEE,25500,2020
,2020 OFFICE OF THE MINORITY LEADER,3,GENERAL EXPENDITURES,PERSONNEL COMPENSATION,DETAIL,   ,   ,   ,MURPHY CULLEN D,2020-07-01,2020-09-30,FLOOR ASSISTANT,12750,2020
,2020 OFFICE OF THE MINORITY LEADER,3,GENERAL EXPENDITURES,PERSONNEL COMPENSATION,DETAIL,   ,   ,   ,MURRY LUKE A,2020-07-01,2020-09-30,NATIONAL SECURITY ADVISOR,40500,2020
,2020 OFFICE OF THE MINORITY LEADER,3,GENERAL EXPENDITURES,PERSONNEL COMPENSATION,DETAIL,   ,   ,   ,O'TOOLE RYAN T,2020-07-01,2020-09-30,CLOAKROOM FLOOR DIRECTOR,22500,2020
,2020 OFFICE OF THE MINORITY LEADER,3,GENERAL EXPENDITURES,PERSONNEL COMPENSATION,DETAIL,   ,   ,   ,PHILIP MECHELLE R.,2020-09-15,2020-09-30,TEMPORARY EMPLOYEE,533.33,2020
,2020 OFFICE OF THE MINORITY LEADER,3,GENERAL EXPENDITURES,PERSONNEL COMPENSATION,DETAIL,   ,   ,   ,PRETZMAN ELIZABETH A.,2020-09-17,2020-09-30,TEMPORARY EMPLOYEE,466.67,2020
,2020 OFFICE OF THE MINORITY LEADER,3,GENERAL EXPENDITURES,PERSONNEL COMPENSATION,DETAIL,   ,   ,   ,ROMANO ADAM,2020-06-01,2020-06-30,TEMPORARY EMPLOYEE,-7500,2020
,2020 OFFICE OF THE MINORITY LEADER,3,GENERAL EXPENDITURES,PERSONNEL COMPENSATION,DETAIL,   ,   ,   ,ROSEMOND JOHN M,2020-07-01,2020-09-30,SPECIAL ASSISTANT,16500,2020
,2020 OFFICE OF THE MINORITY LEADER,3,GENERAL EXPENDITURES,PERSONNEL COMPENSATION,DETAIL,   ,   ,   ,SMITH CALEB J,2020-07-01,2020-09-30,DIGITAL COMMUNICATIONS DIRECTO,42000,2020
,2020 OFFICE OF THE MINORITY LEADER,3,GENERAL EXPENDITURES,PERSONNEL COMPENSATION,DETAIL,   ,   ,   ,SMITH TREVOR H,2020-07-01,2020-09-30,SHARED EMPLOYEE,21000,2020
,2020 OFFICE OF THE MINORITY LEADER,3,GENERAL EXPENDITURES,PERSONNEL COMPENSATION,DETAIL,   ,   ,   ,SPARKS MATTHEW E,2020-07-01,2020-09-30,DIRECTOR OF COMMUNICATIONS,42000,2020
,2020 OFFICE OF THE MINORITY LEADER,3,GENERAL EXPENDITURES,PERSONNEL COMPENSATION,DETAIL,   ,   ,   ,SPECHT BRITTAN G,2020-07-01,2020-09-30,SENIOR POLICY ADVISOR,40500,2020
,2020 OFFICE OF THE MINORITY LEADER,3,GENERAL EXPENDITURES,PERSONNEL COMPENSATION,DETAIL,   ,   ,   ,TUNG MANSON,2020-09-17,2020-09-30,TEMPORARY EMPLOYEE,466.67,2020
,2020 OFFICE OF THE MINORITY LEADER,3,GENERAL EXPENDITURES,PERSONNEL COMPENSATION,DETAIL,   ,   ,   ,WARREN JACOB A.,2020-09-17,2020-09-30,TEMPORARY EMPLOYEE,466.67,2020
,2020 OFFICE OF THE MINORITY LEADER,3,GENERAL EXPENDITURES,PERSONNEL COMPENSATION,SUBTOTAL,   ,   ,   ,   ,   ,   ,PERSONNEL COMPENSATION TOTALS:,1054725.02,2020
,2020 OFFICE OF THE MINORITY LEADER,3,GENERAL EXPENDITURES,TRAVEL,DETAIL,2020-07-29,AP,1317088,NELSON EMMA G.,2020-07-13,2020-07-13,TAXI/PARKING/TOLLS,43.2,2020
,2020 OFFICE OF THE MINORITY LEADER,3,GENERAL EXPENDITURES,TRAVEL,DETAIL,2020-07-29,AP,1317088,NELSON EMMA G.,2020-07-15,2020-07-15,TAXI/PARKING/TOLLS,12.22,2020
,2020 OFFICE OF THE MINORITY LEADER,3,GENERAL EXPENDITURES,TRAVEL,DETAIL,2020-07-29,AP,1317088,NELSON EMMA G.,2020-07-16,2020-07-16,TAXI/PARKING/TOLLS,12.21,2020
,2020 OFFICE OF THE MINORITY LEADER,3,GENERAL EXPENDITURES,TRAVEL,DETAIL,2020-07-29,AP,1317088,NELSON EMMA G.,2020-07-17,2020-07-17,TAXI/PARKING/TOLLS,12.47,2020
,2020 OFFICE OF THE MINORITY LEADER,3,GENERAL EXPENDITURES,TRAVEL,DETAIL,2020-07-29,AP,1317088,NELSON EMMA G.,2020-07-20,2020-07-20,TAXI/PARKING/TOLLS,12.5,2020
,2020 OFFICE OF THE MINORITY LEADER,3,GENERAL EXPENDITURES,TRAVEL,DETAIL,2020-07-30,AP,1317576,BYERS JILLIAN L.,2020-07-20,2020-07-20,TAXI/PARKING/TOLLS,19.25,2020
,2020 OFFICE OF THE MINORITY LEADER,3,GENERAL EXPENDITURES,TRAVEL,DETAIL,2020-07-30,AP,1317576,BYERS JILLIAN L.,2020-07-21,2020-07-21,TAXI/PARKING/TOLLS,36.2,2020
,2020 OFFICE OF THE MINORITY LEADER,3,GENERAL EXPENDITURES,TRAVEL,DETAIL,2020-07-30,AP,1317576,BYERS JILLIAN L.,2020-07-22,2020-07-22,TAXI/PARKING/TOLLS,12.3,2020
,2020 OFFICE OF THE MINORITY LEADER,3,GENERAL EXPENDITURES,TRAVEL,DETAIL,2020-07-30,AP,1317576,BYERS JILLIAN L.,2020-07-23,2020-07-23,TAXI/PARKING/TOLLS,12.27,2020
,2020 OFFICE OF THE MINORITY LEADER,3,GENERAL EXPENDITURES,TRAVEL,DETAIL,2020-07-30,AP,1317576,BYERS JILLIAN L.,2020-07-24,2020-07-24,TAXI/PARKING/TOLLS,30.35,2020
,2020 OFFICE OF THE MINORITY LEADER,3,GENERAL EXPENDITURES,TRAVEL,DETAIL,2020-07-30,AP,1317576,BYERS JILLIAN L.,2020-07-27,2020-07-27,TAXI/PARKING/TOLLS,12.14,2020
,2020 OFFICE OF THE MINORITY LEADER,3,GENERAL EXPENDITURES,TRAVEL,DETAIL,2020-08-18,AP,1324077,BYERS JILLIAN L.,2020-07-27,2020-07-27,TAXI/PARKING/TOLLS,12.06,2020
,2020 OFFICE OF THE MINORITY LEADER,3,GENERAL EXPENDITURES,TRAVEL,DETAIL,2020-08-18,AP,1324077,BYERS JILLIAN L.,2020-07-28,2020-07-28,TAXI/PARKING/TOLLS,12.35,2020
,2020 OFFICE OF THE MINORITY LEADER,3,GENERAL EXPENDITURES,TRAVEL,DETAIL,2020-08-18,AP,1324077,BYERS JILLIAN L.,2020-07-29,2020-07-29,TAXI/PARKING/TOLLS,24.52,2020
,2020 OFFICE OF THE MINORITY LEADER,3,GENERAL EXPENDITURES,TRAVEL,DETAIL,2020-08-18,AP,1324077,BYERS JILLIAN L.,2020-07-30,2020-07-30,TAXI/PARKING/TOLLS,12.51,2020
,2020 OFFICE OF THE MINORITY LEADER,3,GENERAL EXPENDITURES,TRAVEL,DETAIL,2020-08-18,AP,1324077,BYERS JILLIAN L.,2020-07-31,2020-07-31,TAXI/PARKING/TOLLS,12.29,2020
,2020 OFFICE OF THE MINORITY LEADER,3,GENERAL EXPENDITURES,TRAVEL,DETAIL,2020-08-18,AP,1324077,BYERS JILLIAN L.,2020-08-03,2020-08-03,TAXI/PARKING/TOLLS,12.55,2020
,2020 OFFICE OF THE MINORITY LEADER,3,GENERAL EXPENDITURES,TRAVEL,DETAIL,2020-08-18,AP,1324081,MARGARITIS WINSTON V.,2020-07-24,2020-07-24,TAXI/PARKING/TOLLS,19.2,2020
,2020 OFFICE OF THE MINORITY LEADER,3,GENERAL EXPENDITURES,TRAVEL,DETAIL,2020-08-18,AP,1324081,MARGARITIS WINSTON V.,2020-07-29,2020-07-29,TAXI/PARKING/TOLLS,16.51,2020
,2020 OFFICE OF THE MINORITY LEADER,3,GENERAL EXPENDITURES,TRAVEL,DETAIL,2020-08-18,AP,1324081,MARGARITIS WINSTON V.,2020-07-31,2020-07-31,TAXI/PARKING/TOLLS,23.67,2020
,2020 OFFICE OF THE MINORITY LEADER,3,GENERAL EXPENDITURES,TRAVEL,DETAIL,2020-08-18,AP,1324083,BYERS JILLIAN L.,2020-08-04,2020-08-04,TAXI/PARKING/TOLLS,12.75,2020
,2020 OFFICE OF THE MINORITY LEADER,3,GENERAL EXPENDITURES,TRAVEL,DETAIL,2020-08-18,AP,1324083,BYERS JILLIAN L.,2020-08-05,2020-08-05,TAXI/PARKING/TOLLS,12.47,2020
,2020 OFFICE OF THE MINORITY LEADER,3,GENERAL EXPENDITURES,TRAVEL,DETAIL,2020-08-18,AP,1324083,BYERS JILLIAN L.,2020-08-06,2020-08-06,TAXI/PARKING/TOLLS,12.47,2020
,2020 OFFICE OF THE MINORITY LEADER,3,GENERAL EXPENDITURES,TRAVEL,SUBTOTAL,   ,   ,   ,   ,   ,   ,TRAVEL TOTALS:,398.46,2020
,2020 OFFICE OF THE MINORITY LEADER,3,GENERAL EXPENDITURES,RENT  COMMUNICATION  UTILITIES,DETAIL,2020-07-01,AP,1307231,CITI PCARD-GOOGLE  YouTube TV,2020-04-29,2020-04-29,UTILITIES,52.99,2020
,2020 OFFICE OF THE MINORITY LEADER,3,GENERAL EXPENDITURES,RENT  COMMUNICATION  UTILITIES,DETAIL,2020-07-29,GL,EMS0099556, ,2020-06-01,2020-06-30,DC TELECOM EQUIP (TRANSFER),36,2020
,2020 OFFICE OF THE MINORITY LEADER,3,GENERAL EXPENDITURES,RENT  COMMUNICATION  UTILITIES,DETAIL,2020-07-29,GL,EMS0099556, ,2020-06-01,2020-06-30,DC TELECOM SERV (TRANSFER),547.5,2020
,2020 OFFICE OF THE MINORITY LEADER,3,GENERAL EXPENDITURES,RENT  COMMUNICATION  UTILITIES,DETAIL,2020-07-29,GL,EMS0099556, ,2020-06-01,2020-06-30,DC TELECOM TOLLS (TRANSFER),8662.15,2020
,2020 OFFICE OF THE MINORITY LEADER,3,GENERAL EXPENDITURES,RENT  COMMUNICATION  UTILITIES,DETAIL,2020-07-31,AP,1317468,CITI PCARD-GOOGLE YOUTUBE TV,2020-06-29,2020-06-29,UTILITIES,52.99,2020
,2020 OFFICE OF THE MINORITY LEADER,3,GENERAL EXPENDITURES,RENT  COMMUNICATION  UTILITIES,DETAIL,2020-08-26,GL,EMS0100215, ,2020-07-01,2020-07-31,DC TELECOM EQUIP (TRANSFER),36,2020
,2020 OFFICE OF THE MINORITY LEADER,3,GENERAL EXPENDITURES,RENT  COMMUNICATION  UTILITIES,DETAIL,2020-08-26,GL,EMS0100215, ,2020-07-01,2020-07-31,DC TELECOM SERV (TRANSFER),547.5,2020
,2020 OFFICE OF THE MINORITY LEADER,3,GENERAL EXPENDITURES,RENT  COMMUNICATION  UTILITIES,DETAIL,2020-08-26,GL,EMS0100215, ,2020-07-01,2020-07-31,DC TELECOM TOLLS (TRANSFER),11385.55,2020
,2020 OFFICE OF THE MINORITY LEADER,3,GENERAL EXPENDITURES,RENT  COMMUNICATION  UTILITIES,DETAIL,2020-08-27,AP,1324046,CITI PCARD-GOOGLE YOUTUBE TV,2020-07-30,2020-08-29,UTILITIES,52.99,2020
,2020 OFFICE OF THE MINORITY LEADER,3,GENERAL EXPENDITURES,RENT  COMMUNICATION  UTILITIES,DETAIL,2020-08-27,AP,1324046,CITI PCARD-US SENATE     95202602,2020-06-26,2020-06-26,EQUIP RENTAL (EFF 1/3/03),50,2020
,2020 OFFICE OF THE MINORITY LEADER,3,GENERAL EXPENDITURES,RENT  COMMUNICATION  UTILITIES,DETAIL,2020-08-27,AP,1324046,CITI PCARD-US SENATE     95202602,2020-06-26,2020-07-01,EQUIP RENTAL (EFF 1/3/03),200,2020
,2020 OFFICE OF THE MINORITY LEADER,3,GENERAL EXPENDITURES,RENT  COMMUNICATION  UTILITIES,DETAIL,2020-08-27,AP,1324046,CITI PCARD-USPS PO 1050091422,2020-07-01,2020-07-01,POSTAGE / COURIER / BOX RENTAL,49.1,2020
,2020 OFFICE OF THE MINORITY LEADER,3,GENERAL EXPENDITURES,RENT  COMMUNICATION  UTILITIES,DETAIL,2020-09-25,AP,1332088,CITI PCARD-GOOGLE YOUTUBE TV,2020-07-29,2020-08-29,UTILITIES,52.99,2020
,2020 OFFICE OF THE MINORITY LEADER,3,GENERAL EXPENDITURES,RENT  COMMUNICATION  UTILITIES,DETAIL,2020-09-25,AP,1332088,CITI PCARD-US SENATE     95202602,2020-07-23,2020-07-30,EQUIP RENTAL (EFF 1/3/03),700,2020
,2020 OFFICE OF THE MINORITY LEADER,3,GENERAL EXPENDITURES,RENT  COMMUNICATION  UTILITIES,DETAIL,2020-09-28,GL,EMS0101058, ,2020-08-01,2020-08-31,DC TELECOM EQUIP (TRANSFER),36,2020
,2020 OFFICE OF THE MINORITY LEADER,3,GENERAL EXPENDITURES,RENT  COMMUNICATION  UTILITIES,DETAIL,2020-09-28,GL,EMS0101058, ,2020-08-01,2020-08-31,DC TELECOM SERV (TRANSFER),547.5,2020
,2020 OFFICE OF THE MINORITY LEADER,3,GENERAL EXPENDITURES,RENT  COMMUNICATION  UTILITIES,DETAIL,2020-09-28,GL,EMS0101058, ,2020-08-01,2020-08-31,DC TELECOM TOLLS (TRANSFER),4286.95,2020
,2020 OFFICE OF THE MINORITY LEADER,3,GENERAL EXPENDITURES,RENT  COMMUNICATION  UTILITIES,SUBTOTAL,   ,   ,   ,   ,   ,   ,RENT  COMMUNICATION  UTILITIES TOTALS:,27296.21,2020
,2020 OFFICE OF THE MINORITY LEADER,3,GENERAL EXPENDITURES,PRINTING AND REPRODUCTION,DETAIL,2020-07-01,AP,1307231,CITI PCARD-FACEBK 4CLR2T66K2,2020-05-09,2020-05-17,ADVERTISEMENTS,900,2020
,2020 OFFICE OF THE MINORITY LEADER,3,GENERAL EXPENDITURES,PRINTING AND REPRODUCTION,DETAIL,2020-07-01,AP,1307231,CITI PCARD-FACEBK 6C5JCTS5K2,2020-05-17,2020-05-26,ADVERTISEMENTS,900,2020
,2020 OFFICE OF THE MINORITY LEADER,3,GENERAL EXPENDITURES,PRINTING AND REPRODUCTION,DETAIL,2020-07-01,AP,1307231,CITI PCARD-FACEBK 6SNLTSS5K2,2020-04-25,2020-05-04,ADVERTISEMENTS,900,2020
,2020 OFFICE OF THE MINORITY LEADER,3,GENERAL EXPENDITURES,PRINTING AND REPRODUCTION,DETAIL,2020-07-01,AP,1307231,CITI PCARD-FACEBK RSRBYSS5K2,2020-05-04,2020-05-08,ADVERTISEMENTS,459.7,2020
,2020 OFFICE OF THE MINORITY LEADER,3,GENERAL EXPENDITURES,PRINTING AND REPRODUCTION,DETAIL,2020-07-31,AP,1317468,CITI PCARD-FACEBK VS2GETW5K2,2020-05-26,2020-05-31,ADVERTISEMENTS,512.88,2020
,2020 OFFICE OF THE MINORITY LEADER,3,GENERAL EXPENDITURES,PRINTING AND REPRODUCTION,DETAIL,2020-08-27,AP,1324046,CITI PCARD-FACEBK D2ZV3UN5K2,2020-07-01,2020-07-03,ADVERTISEMENTS,900,2020
,2020 OFFICE OF THE MINORITY LEADER,3,GENERAL EXPENDITURES,PRINTING AND REPRODUCTION,DETAIL,2020-08-27,AP,1324046,CITI PCARD-FACEBK F28TSVS6K2,2020-06-29,2020-07-01,ADVERTISEMENTS,900,2020
,2020 OFFICE OF THE MINORITY LEADER,3,GENERAL EXPENDITURES,PRINTING AND REPRODUCTION,DETAIL,2020-08-27,AP,1324046,CITI PCARD-FACEBK XREC6UN5K2,2020-07-03,2020-07-06,ADVERTISEMENTS,900,2020
,2020 OFFICE OF THE MINORITY LEADER,3,GENERAL EXPENDITURES,PRINTING AND REPRODUCTION,DETAIL,2020-08-27,AP,1324046,CITI PCARD-FACEBK ZXPF9U66K2,2020-07-05,2020-07-06,ADVERTISEMENTS,300,2020
,2020 OFFICE OF THE MINORITY LEADER,3,GENERAL EXPENDITURES,PRINTING AND REPRODUCTION,SUBTOTAL,   ,   ,   ,   ,   ,   ,PRINTING AND REPRODUCTION TOTALS:,6672.58,2020
,2020 OFFICE OF THE MINORITY LEADER,3,GENERAL EXPENDITURES,OTHER SERVICES,DETAIL,2020-07-01,AP,1307231,CITI PCARD-MAILCHIMP    MONTHLY,2020-05-12,2020-06-11,WEB DEV HST EMAIL & RLTD SERV,528.94,2020
,2020 OFFICE OF THE MINORITY LEADER,3,GENERAL EXPENDITURES,OTHER SERVICES,DETAIL,2020-07-31,AP,1317468,CITI PCARD-MAILCHIMP    MONTHLY,2020-06-12,2020-06-12,WEB DEV HST EMAIL & RLTD SERV,528.94,2020
,2020 OFFICE OF THE MINORITY LEADER,3,GENERAL EXPENDITURES,OTHER SERVICES,DETAIL,2020-08-27,AP,1324046,CITI PCARD-MAILCHIMP    MONTHLY,2020-07-12,2020-08-11,WEB DEV HST EMAIL & RLTD SERV,528.94,2020
,2020 OFFICE OF THE MINORITY LEADER,3,GENERAL EXPENDITURES,OTHER SERVICES,DETAIL,2020-09-11,AP,1331658,GULF PARTYLINE CORPORATION,2020-07-01,2020-07-31,TECHNOLOGY SERVICE CONTRACTS,4000,2020
,2020 OFFICE OF THE MINORITY LEADER,3,GENERAL EXPENDITURES,OTHER SERVICES,DETAIL,2020-09-11,AP,1331659,GULF PARTYLINE CORPORATION,2020-08-01,2020-08-31,TECHNOLOGY SERVICE CONTRACTS,4000,2020
,2020 OFFICE OF THE MINORITY LEADER,3,GENERAL EXPENDITURES,OTHER SERVICES,DETAIL,2020-09-22,AP,1336332,SMITH CALEB,2020-09-04,2020-09-04,WEB DEV HST EMAIL & RLTD SERV,66.48,2020
,2020 OFFICE OF THE MINORITY LEADER,3,GENERAL EXPENDITURES,OTHER SERVICES,DETAIL,2020-09-24,AP,1337901,HOUSECALL LLC,2020-06-01,2020-06-30,TECHNOLOGY SERVICE CONTRACTS,5125,2020
,2020 OFFICE OF THE MINORITY LEADER,3,GENERAL EXPENDITURES,OTHER SERVICES,DETAIL,2020-09-24,AP,1337902,HOUSECALL LLC,2020-07-01,2020-07-31,TECHNOLOGY SERVICE CONTRACTS,5125,2020
,2020 OFFICE OF THE MINORITY LEADER,3,GENERAL EXPENDITURES,OTHER SERVICES,DETAIL,2020-09-24,AP,1337906,HOUSECALL LLC,2020-08-01,2020-08-31,TECHNOLOGY SERVICE CONTRACTS,5125,2020
,2020 OFFICE OF THE MINORITY LEADER,3,GENERAL EXPENDITURES,OTHER SERVICES,DETAIL,2020-09-24,AP,1337908,HOUSECALL LLC,2020-09-01,2020-09-30,TECHNOLOGY SERVICE CONTRACTS,5125,2020
,2020 OFFICE OF THE MINORITY LEADER,3,GENERAL EXPENDITURES,OTHER SERVICES,DETAIL,2020-09-25,AP,1332088,CITI PCARD-MAILCHIMP    MONTHLY,2020-08-12,2020-09-11,WEB DEV HST EMAIL & RLTD SERV,528.94,2020
,2020 OFFICE OF THE MINORITY LEADER,3,GENERAL EXPENDITURES,OTHER SERVICES,SUBTOTAL,   ,   ,   ,   ,   ,   ,OTHER SERVICES TOTALS:,30682.24,2020
,2020 OFFICE OF THE MINORITY LEADER,3,GENERAL EXPENDITURES,SUPPLIES AND MATERIALS,DETAIL,2020-07-01,AP,1307231,CITI PCARD-AMAZON.COM M73565TX2 AMZN,2020-05-20,2020-05-20,FOOD & BEVERAGE,35.97,2020
,2020 OFFICE OF THE MINORITY LEADER,3,GENERAL EXPENDITURES,SUPPLIES AND MATERIALS,DETAIL,2020-07-01,AP,1307231,CITI PCARD-AMAZON.COM QG4JV5153 AMZN,2020-04-25,2020-04-25,FOOD & BEVERAGE,15.98,2020
,2020 OFFICE OF THE MINORITY LEADER,3,GENERAL EXPENDITURES,SUPPLIES AND MATERIALS,DETAIL,2020-07-01,AP,1307231,CITI PCARD-Amazon.com B61OE4DS3,2020-04-25,2020-04-25,FOOD & BEVERAGE,17.16,2020
,2020 OFFICE OF THE MINORITY LEADER,3,GENERAL EXPENDITURES,SUPPLIES AND MATERIALS,DETAIL,2020-07-01,AP,1307231,CITI PCARD-Amazon.com XD20F3F63,2020-04-25,2020-04-25,FOOD & BEVERAGE,19.99,2020
,2020 OFFICE OF THE MINORITY LEADER,3,GENERAL EXPENDITURES,SUPPLIES AND MATERIALS,DETAIL,2020-07-01,AP,1307231,CITI PCARD-BLOOMBERG.COM,2020-05-07,2021-05-06,PUBLICATIONS/REFERENCE MAT'L,290,2020
,2020 OFFICE OF THE MINORITY LEADER,3,GENERAL EXPENDITURES,SUPPLIES AND MATERIALS,DETAIL,2020-07-01,AP,1307231,CITI PCARD-D J WALL-ST-JOURNAL,2020-05-21,2020-05-21,PUBLICATIONS/REFERENCE MAT'L,41.33,2020
,2020 OFFICE OF THE MINORITY LEADER,3,GENERAL EXPENDITURES,SUPPLIES AND MATERIALS,DETAIL,2020-07-01,AP,1307231,CITI PCARD-FIRST CHOICE COFFEE SERVI,2020-05-21,2020-05-21,FOOD & BEVERAGE,519.64,2020
,2020 OFFICE OF THE MINORITY LEADER,3,GENERAL EXPENDITURES,SUPPLIES AND MATERIALS,DETAIL,2020-07-01,AP,1307231,CITI PCARD-FTP FINANCIAL TIMES,2020-04-29,2020-04-29,PUBLICATIONS/REFERENCE MAT'L,59.5,2020
,2020 OFFICE OF THE MINORITY LEADER,3,GENERAL EXPENDITURES,SUPPLIES AND MATERIALS,DETAIL,2020-07-01,AP,1307231,CITI PCARD-NYTIMES,2020-05-08,2020-06-07,PUBLICATIONS/REFERENCE MAT'L,16.95,2020
,2020 OFFICE OF THE MINORITY LEADER,3,GENERAL EXPENDITURES,SUPPLIES AND MATERIALS,DETAIL,2020-07-01,AP,1307231,CITI PCARD-STRATECHERY LLC,2020-05-07,2020-05-07,SOFTWARE  LESS THAN  $500,120,2020
,2020 OFFICE OF THE MINORITY LEADER,3,GENERAL EXPENDITURES,SUPPLIES AND MATERIALS,DETAIL,2020-07-01,AP,1307231,CITI PCARD-STRATECHERY LLC,2020-05-08,2020-05-08,SOFTWARE  LESS THAN  $500,30.08,2020
,2020 OFFICE OF THE MINORITY LEADER,3,GENERAL EXPENDITURES,SUPPLIES AND MATERIALS,DETAIL,2020-07-01,AP,1307231,CITI PCARD-ZOOM.US 888-799-9666,2020-05-23,2020-06-22,SOFTWARE  LESS THAN  $500,42.4,2020
,2020 OFFICE OF THE MINORITY LEADER,3,GENERAL EXPENDITURES,SUPPLIES AND MATERIALS,DETAIL,2020-07-01,AP,1308643,CDW GOVERNMENT LLC,2020-06-11,2020-06-11,OFFICE SUPPLIES (OUTSIDE) QTY - 30,6523.2,2020
,2020 OFFICE OF THE MINORITY LEADER,3,GENERAL EXPENDITURES,SUPPLIES AND MATERIALS,DETAIL,2020-07-02,AP,1307089,MIN JAMES B.,2020-06-22,2020-06-22,FOOD & BEVERAGE,116.53,2020
,2020 OFFICE OF THE MINORITY LEADER,3,GENERAL EXPENDITURES,SUPPLIES AND MATERIALS,DETAIL,2020-07-06,AP,1298890,SMITH CALEB,2020-05-06,2020-06-06,SOFTWARE  LESS THAN  $500,49,2020
,2020 OFFICE OF THE MINORITY LEADER,3,GENERAL EXPENDITURES,SUPPLIES AND MATERIALS,DETAIL,2020-07-09,AP,1310661,CDW GOVERNMENT LLC,2020-07-01,2020-07-01,SOFTWARE  LESS THAN  $500 QTY - 2,820.34,2020
,2020 OFFICE OF THE MINORITY LEADER,3,GENERAL EXPENDITURES,SUPPLIES AND MATERIALS,DETAIL,2020-07-28,AP,1317413,MIN JAMES B.,2020-07-26,2020-07-26,OFFICE SUPPLIES (OUTSIDE),95.24,2020
,2020 OFFICE OF THE MINORITY LEADER,3,GENERAL EXPENDITURES,SUPPLIES AND MATERIALS,DETAIL,2020-07-29,AP,1316800,MEYER KATHERINE R,2020-05-30,2020-06-29,SOFTWARE  LESS THAN  $500,15.74,2020
,2020 OFFICE OF THE MINORITY LEADER,3,GENERAL EXPENDITURES,SUPPLIES AND MATERIALS,DETAIL,2020-07-29,AP,1316804,MEYER KATHERINE R,2020-06-30,2020-07-29,SOFTWARE  LESS THAN  $500,15.74,2020
,2020 OFFICE OF THE MINORITY LEADER,3,GENERAL EXPENDITURES,SUPPLIES AND MATERIALS,DETAIL,2020-07-29,AP,1316830,MIN JAMES B.,2020-07-21,2020-07-21,FOOD & BEVERAGE,677.31,2020
,2020 OFFICE OF THE MINORITY LEADER,3,GENERAL EXPENDITURES,SUPPLIES AND MATERIALS,DETAIL,2020-07-29,AP,1317452,CHAFFEE SAVANNAH M.,2020-06-22,2020-06-22,WATER,38.88,2020
,2020 OFFICE OF THE MINORITY LEADER,3,GENERAL EXPENDITURES,SUPPLIES AND MATERIALS,DETAIL,2020-07-31,AP,1317468,CITI PCARD-AMAZON.COM MS6E87192 AMZN,2020-06-21,2020-06-21,WATER,37.15,2020
,2020 OFFICE OF THE MINORITY LEADER,3,GENERAL EXPENDITURES,SUPPLIES AND MATERIALS,DETAIL,2020-07-31,AP,1317468,CITI PCARD-CHICK-FIL-A #02673,2020-05-28,2020-05-28,FOOD & BEVERAGE,402.16,2020
,2020 OFFICE OF THE MINORITY LEADER,3,GENERAL EXPENDITURES,SUPPLIES AND MATERIALS,DETAIL,2020-07-31,AP,1317468,CITI PCARD-D J WALL-ST-JOURNAL,2020-06-21,2020-06-21,PUBLICATIONS/REFERENCE MAT'L,41.33,2020
,2020 OFFICE OF THE MINORITY LEADER,3,GENERAL EXPENDITURES,SUPPLIES AND MATERIALS,DETAIL,2020-07-31,AP,1317468,CITI PCARD-FTP FINANCIAL TIMES,2020-05-29,2020-05-29,PUBLICATIONS/REFERENCE MAT'L,59.5,2020
,2020 OFFICE OF THE MINORITY LEADER,3,GENERAL EXPENDITURES,SUPPLIES AND MATERIALS,DETAIL,2020-07-31,AP,1317468,CITI PCARD-LA TIMES SUBSCRIPTION,2020-05-19,2020-06-15,PUBLICATIONS/REFERENCE MAT'L,15.96,2020
,2020 OFFICE OF THE MINORITY LEADER,3,GENERAL EXPENDITURES,SUPPLIES AND MATERIALS,DETAIL,2020-07-31,AP,1317468,CITI PCARD-LA TIMES SUBSCRIPTION,2020-06-16,2020-07-13,PUBLICATIONS/REFERENCE MAT'L,15.96,2020
,2020 OFFICE OF THE MINORITY LEADER,3,GENERAL EXPENDITURES,SUPPLIES AND MATERIALS,DETAIL,2020-07-31,AP,1317468,CITI PCARD-NYTIMES,2020-06-09,2020-07-09,PUBLICATIONS/REFERENCE MAT'L,16.95,2020
,2020 OFFICE OF THE MINORITY LEADER,3,GENERAL EXPENDITURES,SUPPLIES AND MATERIALS,DETAIL,2020-07-31,AP,1317468,CITI PCARD-READYREFRESH BY NESTLE,2019-12-27,2020-04-26,WATER,370.35,2020
,2020 OFFICE OF THE MINORITY LEADER,3,GENERAL EXPENDITURES,SUPPLIES AND MATERIALS,DETAIL,2020-07-31,AP,1317468,CITI PCARD-RESTREAM INC.,2020-05-28,2020-05-28,SOFTWARE  LESS THAN  $500,475.77,2020
,2020 OFFICE OF THE MINORITY LEADER,3,GENERAL EXPENDITURES,SUPPLIES AND MATERIALS,DETAIL,2020-07-31,AP,1317468,CITI PCARD-SOUNDSTRIPE,2020-06-18,2021-06-18,SOFTWARE  LESS THAN  $500,114.75,2020
,2020 OFFICE OF THE MINORITY LEADER,3,GENERAL EXPENDITURES,SUPPLIES AND MATERIALS,DETAIL,2020-07-31,AP,1317468,CITI PCARD-ZOOM.US,2020-06-04,2020-07-03,SOFTWARE  LESS THAN  $500,15.74,2020
,2020 OFFICE OF THE MINORITY LEADER,3,GENERAL EXPENDITURES,SUPPLIES AND MATERIALS,DETAIL,2020-07-31,AP,1317468,CITI PCARD-ZOOM.US 888-799-9666,2020-06-23,2020-07-22,SOFTWARE  LESS THAN  $500,42.4,2020
,2020 OFFICE OF THE MINORITY LEADER,3,GENERAL EXPENDITURES,SUPPLIES AND MATERIALS,DETAIL,2020-07-31,GL,RMS0099738, ,2020-07-01,2020-07-31,OFFICE SUPPLY (TRANSFER),468.29,2020
,2020 OFFICE OF THE MINORITY LEADER,3,GENERAL EXPENDITURES,SUPPLIES AND MATERIALS,DETAIL,2020-08-03,AP,1318125,CITI PCARD-AMZN Mktp US MS1K16MM0,2020-06-21,2020-06-21,FOOD & BEVERAGE,12.96,2020
,2020 OFFICE OF THE MINORITY LEADER,3,GENERAL EXPENDITURES,SUPPLIES AND MATERIALS,DETAIL,2020-08-03,AP,1318125,CITI PCARD-AMZN Mktp US MS1K16MM0,2020-06-21,2020-06-21,OFFICE SUPPLIES (OUTSIDE),19.98,2020
,2020 OFFICE OF THE MINORITY LEADER,3,GENERAL EXPENDITURES,SUPPLIES AND MATERIALS,DETAIL,2020-08-03,AP,1318125,CITI PCARD-ECAMM NETWORK LLC,2020-05-28,2021-05-28,SOFTWARE  LESS THAN  $500,236.09,2020
,2020 OFFICE OF THE MINORITY LEADER,3,GENERAL EXPENDITURES,SUPPLIES AND MATERIALS,DETAIL,2020-08-03,AP,1318125,CITI PCARD-ZOOM.US 888-799-9666,2020-06-16,2021-03-22,SOFTWARE  LESS THAN  $500,121.89,2020
,2020 OFFICE OF THE MINORITY LEADER,3,GENERAL EXPENDITURES,SUPPLIES AND MATERIALS,DETAIL,2020-08-18,AP,1324068,MIN JAMES B.,2020-08-10,2020-08-10,OFFICE SUPPLIES (OUTSIDE),193.52,2020
,2020 OFFICE OF THE MINORITY LEADER,3,GENERAL EXPENDITURES,SUPPLIES AND MATERIALS,DETAIL,2020-08-24,AP,1327267,CITI PCARD-READYREFRESH BY NESTLE,2019-10-27,2020-05-26,WATER,394.58,2020
,2020 OFFICE OF THE MINORITY LEADER,3,GENERAL EXPENDITURES,SUPPLIES AND MATERIALS,DETAIL,2020-08-27,AP,1324046,CITI PCARD-AMZN Mktp US MV0U80XT2,2020-07-23,2020-07-23,OFFICE SUPPLIES (OUTSIDE),19.99,2020
,2020 OFFICE OF THE MINORITY LEADER,3,GENERAL EXPENDITURES,SUPPLIES AND MATERIALS,DETAIL,2020-08-27,AP,1324046,CITI PCARD-CAFE RIO FALLS CHURCH,2020-07-01,2020-07-01,FOOD & BEVERAGE,295.8,2020
,2020 OFFICE OF THE MINORITY LEADER,3,GENERAL EXPENDITURES,SUPPLIES AND MATERIALS,DETAIL,2020-08-27,AP,1324046,CITI PCARD-CHICK-FIL-A #02673,2020-06-29,2020-06-29,FOOD & BEVERAGE,491.15,2020
,2020 OFFICE OF THE MINORITY LEADER,3,GENERAL EXPENDITURES,SUPPLIES AND MATERIALS,DETAIL,2020-08-27,AP,1324046,CITI PCARD-CHICK-FIL-A #02673,2020-07-23,2020-07-23,FOOD & BEVERAGE,301.62,2020
,2020 OFFICE OF THE MINORITY LEADER,3,GENERAL EXPENDITURES,SUPPLIES AND MATERIALS,DETAIL,2020-08-27,AP,1324046,CITI PCARD-D J WALL-ST-JOURNAL,2020-07-22,2020-08-22,PUBLICATIONS/REFERENCE MAT'L,41.33,2020
,2020 OFFICE OF THE MINORITY LEADER,3,GENERAL EXPENDITURES,SUPPLIES AND MATERIALS,DETAIL,2020-08-27,AP,1324046,CITI PCARD-FIRST CHOICE COFFEE SERVI,2020-07-02,2020-07-02,FOOD & BEVERAGE,427.24,2020
,2020 OFFICE OF THE MINORITY LEADER,3,GENERAL EXPENDITURES,SUPPLIES AND MATERIALS,DETAIL,2020-08-27,AP,1324046,CITI PCARD-FTP FINANCIAL TIMES,2020-06-29,2020-07-29,PUBLICATIONS/REFERENCE MAT'L,59.5,2020
,2020 OFFICE OF THE MINORITY LEADER,3,GENERAL EXPENDITURES,SUPPLIES AND MATERIALS,DETAIL,2020-08-27,AP,1324046,CITI PCARD-LA TIMES SUBSCRIPTION,2020-07-14,2020-08-10,PUBLICATIONS/REFERENCE MAT'L,27.72,2020
,2020 OFFICE OF THE MINORITY LEADER,3,GENERAL EXPENDITURES,SUPPLIES AND MATERIALS,DETAIL,2020-08-27,AP,1324046,CITI PCARD-NYTIMES,2020-07-09,2020-08-08,PUBLICATIONS/REFERENCE MAT'L,16.95,2020
,2020 OFFICE OF THE MINORITY LEADER,3,GENERAL EXPENDITURES,SUPPLIES AND MATERIALS,DETAIL,2020-08-27,AP,1324046,CITI PCARD-REI PAYMENT CENTER,2020-02-01,2020-02-29,PUBLICATIONS/REFERENCE MAT'L,53,2020
,2020 OFFICE OF THE MINORITY LEADER,3,GENERAL EXPENDITURES,SUPPLIES AND MATERIALS,DETAIL,2020-08-27,AP,1324046,CITI PCARD-REI PAYMENT CENTER,2020-04-01,2020-04-30,PUBLICATIONS/REFERENCE MAT'L,51.46,2020
,2020 OFFICE OF THE MINORITY LEADER,3,GENERAL EXPENDITURES,SUPPLIES AND MATERIALS,DETAIL,2020-08-27,AP,1324046,CITI PCARD-REI PAYMENT CENTER,2020-05-01,2020-05-31,PUBLICATIONS/REFERENCE MAT'L,59,2020
,2020 OFFICE OF THE MINORITY LEADER,3,GENERAL EXPENDITURES,SUPPLIES AND MATERIALS,DETAIL,2020-08-27,AP,1324046,CITI PCARD-ZOOM.US,2020-07-04,2020-08-03,SOFTWARE  LESS THAN  $500,15.74,2020
,2020 OFFICE OF THE MINORITY LEADER,3,GENERAL EXPENDITURES,SUPPLIES AND MATERIALS,DETAIL,2020-08-27,AP,1324046,CITI PCARD-ZOOM.US 888-799-9666,2020-07-23,2020-08-22,SOFTWARE  LESS THAN  $500,42.4,2020
,2020 OFFICE OF THE MINORITY LEADER,3,GENERAL EXPENDITURES,SUPPLIES AND MATERIALS,DETAIL,2020-09-17,AP,1332333,CITI PCARD-CAFE RIO CORPORATE,2020-10-17,2020-10-17,FOOD & BEVERAGE,-23.98,2020
,2020 OFFICE OF THE MINORITY LEADER,3,GENERAL EXPENDITURES,SUPPLIES AND MATERIALS,DETAIL,2020-09-17,AP,1332333,CITI PCARD-CHICK-FIL-A #02673,2020-07-24,2020-07-24,FOOD & BEVERAGE,360.15,2020
,2020 OFFICE OF THE MINORITY LEADER,3,GENERAL EXPENDITURES,SUPPLIES AND MATERIALS,DETAIL,2020-09-17,AP,1332333,CITI PCARD-FIRST CHOICE COFFEE SERVI,2020-08-17,2020-08-17,FOOD & BEVERAGE,240.04,2020
,2020 OFFICE OF THE MINORITY LEADER,3,GENERAL EXPENDITURES,SUPPLIES AND MATERIALS,DETAIL,2020-09-17,AP,1332333,CITI PCARD-LEXJET LLC,2020-06-29,2020-06-29,OFFICE SUPPLIES (OUTSIDE),82.28,2020
,2020 OFFICE OF THE MINORITY LEADER,3,GENERAL EXPENDITURES,SUPPLIES AND MATERIALS,DETAIL,2020-09-17,AP,1332333,CITI PCARD-READYREFRESH BY NESTLE,2020-06-27,2020-06-27,WATER,24.23,2020
,2020 OFFICE OF THE MINORITY LEADER,3,GENERAL EXPENDITURES,SUPPLIES AND MATERIALS,DETAIL,2020-09-17,AP,1332333,CITI PCARD-THE INFORMATION,2020-08-22,2020-09-21,PUBLICATIONS/REFERENCE MAT'L,749,2020
,2020 OFFICE OF THE MINORITY LEADER,3,GENERAL EXPENDITURES,SUPPLIES AND MATERIALS,DETAIL,2020-09-17,AP,1336314,SMITH CALEB,2020-07-22,2020-07-22,SOFTWARE  LESS THAN  $500,49,2020
,2020 OFFICE OF THE MINORITY LEADER,3,GENERAL EXPENDITURES,SUPPLIES AND MATERIALS,DETAIL,2020-09-17,AP,1336318,SMITH CALEB,2020-08-22,2020-08-22,SOFTWARE  LESS THAN  $500,19.99,2020
,2020 OFFICE OF THE MINORITY LEADER,3,GENERAL EXPENDITURES,SUPPLIES AND MATERIALS,DETAIL,2020-09-25,AP,1332088,CITI PCARD-AMAZON.COM MM1YM2ZG0 AMZN,2020-08-19,2020-08-19,FOOD & BEVERAGE,66.28,2020
,2020 OFFICE OF THE MINORITY LEADER,3,GENERAL EXPENDITURES,SUPPLIES AND MATERIALS,DETAIL,2020-09-25,AP,1332088,CITI PCARD-AMAZON.COM MM3KE73R0 AMZN,2020-08-19,2020-08-19,FOOD & BEVERAGE,39.98,2020
,2020 OFFICE OF THE MINORITY LEADER,3,GENERAL EXPENDITURES,SUPPLIES AND MATERIALS,DETAIL,2020-09-25,AP,1332088,CITI PCARD-AMZN Mktp US MF2KI27D2,2020-08-12,2020-08-12,OFFICE SUPPLIES (OUTSIDE),43.69,2020
,2020 OFFICE OF THE MINORITY LEADER,3,GENERAL EXPENDITURES,SUPPLIES AND MATERIALS,DETAIL,2020-09-25,AP,1332088,CITI PCARD-ANIMOTO INC,2020-08-20,2021-08-19,SOFTWARE  LESS THAN  $500,396,2020
,2020 OFFICE OF THE MINORITY LEADER,3,GENERAL EXPENDITURES,SUPPLIES AND MATERIALS,DETAIL,2020-09-25,AP,1332088,CITI PCARD-Amazon.com MM1YJ4450,2020-08-18,2020-08-18,OFFICE SUPPLIES (OUTSIDE),44.95,2020
,2020 OFFICE OF THE MINORITY LEADER,3,GENERAL EXPENDITURES,SUPPLIES AND MATERIALS,DETAIL,2020-09-25,AP,1332088,CITI PCARD-CAFE RIO FALLS CHURCH,2020-07-28,2020-07-28,FOOD & BEVERAGE,271.74,2020
,2020 OFFICE OF THE MINORITY LEADER,3,GENERAL EXPENDITURES,SUPPLIES AND MATERIALS,DETAIL,2020-09-25,AP,1332088,CITI PCARD-CAFE RIO FALLS CHURCH,2020-07-30,2020-07-30,FOOD & BEVERAGE,327.8,2020
,2020 OFFICE OF THE MINORITY LEADER,3,GENERAL EXPENDITURES,SUPPLIES AND MATERIALS,DETAIL,2020-09-25,AP,1332088,CITI PCARD-CHICK-FIL-A #02673,2020-07-29,2020-07-29,FOOD & BEVERAGE,318.15,2020
,2020 OFFICE OF THE MINORITY LEADER,3,GENERAL EXPENDITURES,SUPPLIES AND MATERIALS,DETAIL,2020-09-25,AP,1332088,CITI PCARD-CHICK-FIL-A #02673,2020-07-30,2020-07-30,FOOD & BEVERAGE,276.65,2020
,2020 OFFICE OF THE MINORITY LEADER,3,GENERAL EXPENDITURES,SUPPLIES AND MATERIALS,DETAIL,2020-09-25,AP,1332088,CITI PCARD-D J WALL-ST-JOURNAL,2020-08-21,2020-09-20,PUBLICATIONS/REFERENCE MAT'L,41.33,2020
,2020 OFFICE OF THE MINORITY LEADER,3,GENERAL EXPENDITURES,SUPPLIES AND MATERIALS,DETAIL,2020-09-25,AP,1332088,CITI PCARD-FTP FINANCIAL TIMES,2020-07-29,2020-08-29,PUBLICATIONS/REFERENCE MAT'L,59.5,2020
,2020 OFFICE OF THE MINORITY LEADER,3,GENERAL EXPENDITURES,SUPPLIES AND MATERIALS,DETAIL,2020-09-25,AP,1332088,CITI PCARD-LA TIMES SUBSCRIPTION,2020-09-08,2020-10-05,PUBLICATIONS/REFERENCE MAT'L,27.72,2020
,2020 OFFICE OF THE MINORITY LEADER,3,GENERAL EXPENDITURES,SUPPLIES AND MATERIALS,DETAIL,2020-09-25,AP,1332088,CITI PCARD-NYTIMES,2020-08-08,2020-09-07,PUBLICATIONS/REFERENCE MAT'L,16.95,2020
,2020 OFFICE OF THE MINORITY LEADER,3,GENERAL EXPENDITURES,SUPPLIES AND MATERIALS,DETAIL,2020-09-25,AP,1332088,CITI PCARD-ZOOM.US,2020-09-04,2020-10-03,SOFTWARE  LESS THAN  $500,15.74,2020
,2020 OFFICE OF THE MINORITY LEADER,3,GENERAL EXPENDITURES,SUPPLIES AND MATERIALS,DETAIL,2020-09-25,AP,1332088,CITI PCARD-ZOOM.US 888-799-9666,2020-08-23,2020-09-22,SOFTWARE  LESS THAN  $500,42.4,2020
,2020 OFFICE OF THE MINORITY LEADER,3,GENERAL EXPENDITURES,SUPPLIES AND MATERIALS,DETAIL,2020-09-30,GL,RMS0101251, ,2020-09-01,2020-09-30,OFFICE SUPPLY (TRANSFER),283.65,2020
,2020 OFFICE OF THE MINORITY LEADER,3,GENERAL EXPENDITURES,SUPPLIES AND MATERIALS,SUBTOTAL,   ,   ,   ,   ,   ,   ,SUPPLIES AND MATERIALS TOTALS:,18292.45,2020
,2020 OFFICE OF THE MINORITY LEADER,3,GENERAL EXPENDITURES,EQUIPMENT,DETAIL,2020-07-29,AP,1316795,SPROUT SOCIAL INC,2020-07-01,2021-07-01,COMPUTER SOFTW PURCH  LESS THAN $10 000,1516.22,2020
,2020 OFFICE OF THE MINORITY LEADER,3,GENERAL EXPENDITURES,EQUIPMENT,DETAIL,2020-07-30,AP,1316805,GULF PARTYLINE CORPORATION,2020-06-01,2020-06-30,COMPUTER SOFTW PURCH  LESS THAN $10 000,8200,2020
,2020 OFFICE OF THE MINORITY LEADER,3,GENERAL EXPENDITURES,EQUIPMENT,DETAIL,2020-07-31,GL,MNT0099641, ,2020-07-01,2020-07-31,MAINTENANCE / REPAIRS,124,2020
,2020 OFFICE OF THE MINORITY LEADER,3,GENERAL EXPENDITURES,EQUIPMENT,DETAIL,2020-08-27,AP,1324046,CITI PCARD-SPROUT SOCIAL INC,2020-07-01,2021-07-31,COMPUTER SOFTW PURCH  LESS THAN $10 000,1516.22,2020
,2020 OFFICE OF THE MINORITY LEADER,3,GENERAL EXPENDITURES,EQUIPMENT,DETAIL,2020-08-31,GL,MNT0100341, ,2020-08-01,2020-08-31,MAINTENANCE / REPAIRS,124,2020
,2020 OFFICE OF THE MINORITY LEADER,3,GENERAL EXPENDITURES,EQUIPMENT,DETAIL,2020-09-30,GL,MNT0101165, ,2020-09-01,2020-09-30,MAINTENANCE / REPAIRS,124,2020
,2020 OFFICE OF THE MINORITY LEADER,3,GENERAL EXPENDITURES,EQUIPMENT,SUBTOTAL,   ,   ,   ,   ,   ,   ,EQUIPMENT TOTALS:,11604.44,2020
,2020 OFFICE OF THE MINORITY LEADER,3,GENERAL EXPENDITURES,EQUIPMENT,SUBTOTAL,   ,   ,   ,   ,   ,   ,GENERAL EXPENDITURES TOTALS:,1149671.4,2020
,2020 OFFICE OF THE MINORITY LEADER,3,CONFERENCE SECRETARY,PERSONNEL COMPENSATION,DETAIL,   ,   ,   ,ROMAN MARK J.,2020-07-01,2020-09-30,SHARED EMPLOYEE,25500,2020
,2020 OFFICE OF THE MINORITY LEADER,3,CONFERENCE SECRETARY,PERSONNEL COMPENSATION,SUBTOTAL,   ,   ,   ,   ,   ,   ,PERSONNEL COMPENSATION TOTALS:,25500,2020
,2020 OFFICE OF THE MINORITY LEADER,3,CONFERENCE SECRETARY,PERSONNEL COMPENSATION,SUBTOTAL,   ,   ,   ,   ,   ,   ,CONFERENCE SECRETARY TOTALS:,25500,2020
,2020 OFFICE OF THE MINORITY LEADER,3,REPUBLICAN POLICY COMMITTEE,PERSONNEL COMPENSATION,DETAIL,   ,   ,   ,SMITH DAVID C,2020-07-01,2020-07-13,SHARED EMPLOYEE,5308.33,2020
,2020 OFFICE OF THE MINORITY LEADER,3,REPUBLICAN POLICY COMMITTEE,PERSONNEL COMPENSATION,DETAIL,   ,   ,   ,WALL KELSEY V,2020-07-01,2020-09-30,SHARED EMPLOYEE,14250,2020
,2020 OFFICE OF THE MINORITY LEADER,3,REPUBLICAN POLICY COMMITTEE,PERSONNEL COMPENSATION,SUBTOTAL,   ,   ,   ,   ,   ,   ,PERSONNEL COMPENSATION TOTALS:,19558.33,2020
,2020 OFFICE OF THE MINORITY LEADER,3,REPUBLICAN POLICY COMMITTEE,PERSONNEL COMPENSATION,SUBTOTAL,   ,   ,   ,   ,   ,   ,REPUBLICAN POLICY COMMITTEE TOTALS:,19558.33,2020
,2020 OFFICE OF THE MINORITY LEADER,3,REPUBLICAN POLICY COMMITTEE,PERSONNEL COMPENSATION,GRAND TOTAL FOR ORGANIZATION,   ,   ,   ,   ,   ,   ,OFFICE TOTALS: ,1194729.73,2020
,2019 OFFICE OF THE MINORITY LEADER,3,GENERAL EXPENDITURES,PRINTING AND REPRODUCTION,DETAIL,2020-07-28,AP,1316808,ACCURATE WORD LLC,2019-11-08,2019-11-08,PRINTING & REPRODUCTION,39.95,2020
,2019 OFFICE OF THE MINORITY LEADER,3,GENERAL EXPENDITURES,PRINTING AND REPRODUCTION,DETAIL,2020-07-28,AP,1316809,ACCURATE WORD LLC,2019-11-19,2019-11-19,PRINTING & REPRODUCTION,500,2020
,2019 OFFICE OF THE MINORITY LEADER,3,GENERAL EXPENDITURES,PRINTING AND REPRODUCTION,DETAIL,2020-07-28,AP,1316826,ACCURATE WORD LLC,2019-11-25,2019-11-25,PRINTING & REPRODUCTION,225,2020
,2019 OFFICE OF THE MINORITY LEADER,3,GENERAL EXPENDITURES,PRINTING AND REPRODUCTION,SUBTOTAL,   ,   ,   ,   ,   ,   ,PRINTING AND REPRODUCTION TOTALS:,764.95,2020
,2019 OFFICE OF THE MINORITY LEADER,3,GENERAL EXPENDITURES,EQUIPMENT,DETAIL,2020-07-07,AP,1309410,CDW GOVERNMENT LLC,2020-02-25,2020-02-25,OFFICE EQUIP PURCH LESS THAN $25 000,11761.7,2020
,2019 OFFICE OF THE MINORITY LEADER,3,GENERAL EXPENDITURES,EQUIPMENT,SUBTOTAL,   ,   ,   ,   ,   ,   ,EQUIPMENT TOTALS:,11761.7,2020
,2019 OFFICE OF THE MINORITY LEADER,3,GENERAL EXPENDITURES,EQUIPMENT,SUBTOTAL,   ,   ,   ,   ,   ,   ,GENERAL EXPENDITURES TOTALS:,12526.65,2020
,2019 OFFICE OF THE MINORITY LEADER,3,GENERAL EXPENDITURES,EQUIPMENT,GRAND TOTAL FOR ORGANIZATION,   ,   ,   ,   ,   ,   ,OFFICE TOTALS: ,12526.65,2020
,2020 OFFICE OF THE MAJORITY WHIP,3,GENERAL EXPENDITURES,PERSONNEL COMPENSATION,DETAIL,   ,   ,   ,BRUMFIELD RENARD D,2020-07-01,2020-08-14,FLOOR ASSISTANT,5866.67,2020
,2020 OFFICE OF THE MAJORITY WHIP,3,GENERAL EXPENDITURES,PERSONNEL COMPENSATION,DETAIL,   ,   ,   ,BUTLER MORGAN E,2020-07-01,2020-09-30,DIGITAL DIRECTOR,21999.99,2020
,2020 OFFICE OF THE MAJORITY WHIP,3,GENERAL EXPENDITURES,PERSONNEL COMPENSATION,DETAIL,   ,   ,   ,COLLINS MICHAEL E.,2020-07-01,2020-09-01,SENIOR CHIEF DEPUTY WHIP FLOOR,7201.4,2020
,2020 OFFICE OF THE MAJORITY WHIP,3,GENERAL EXPENDITURES,PERSONNEL COMPENSATION,DETAIL,   ,   ,   ,CONRAD WILLIAM A,2020-07-01,2020-09-30,STAFF ASSISTANT,8499.99,2020
,2020 OFFICE OF THE MAJORITY WHIP,3,GENERAL EXPENDITURES,PERSONNEL COMPENSATION,DETAIL,   ,   ,   ,DERRICK HOPE E,2020-07-01,2020-09-30,COMMUNICATIONS DIRECTOR,38750.01,2020
,2020 OFFICE OF THE MAJORITY WHIP,3,GENERAL EXPENDITURES,PERSONNEL COMPENSATION,DETAIL,   ,   ,   ,ELLISON MATTHEW B.,2020-07-01,2020-09-30,DEPUTY POLICY DIRECTOR,27500.01,2020
,2020 OFFICE OF THE MAJORITY WHIP,3,GENERAL EXPENDITURES,PERSONNEL COMPENSATION,DETAIL,   ,   ,   ,GARRETT EMERALD P,2020-07-01,2020-09-30,FLOOR ASSISTANT,12999.99,2020
,2020 OFFICE OF THE MAJORITY WHIP,3,GENERAL EXPENDITURES,PERSONNEL COMPENSATION,DETAIL,   ,   ,   ,GREEN COURTNEY S,2020-07-01,2020-08-14,PRESS ASSISTANT,4033.33,2020
,2020 OFFICE OF THE MAJORITY WHIP,3,GENERAL EXPENDITURES,PERSONNEL COMPENSATION,DETAIL,   ,   ,   ,HACKER MICHAEL E,2020-07-01,2020-07-03,SENIOR ADVISOR,1362.5,2020
,2020 OFFICE OF THE MAJORITY WHIP,3,GENERAL EXPENDITURES,PERSONNEL COMPENSATION,DETAIL,   ,   ,   ,HUDSON KEEGAN P.,2020-08-03,2020-09-30,STAFF ASSISTANT,5638.89,2020
,2020 OFFICE OF THE MAJORITY WHIP,3,GENERAL EXPENDITURES,PERSONNEL COMPENSATION,DETAIL,   ,   ,   ,KELLY SARAH,2020-07-01,2020-09-30,SENIOR ADVISOR,34250.01,2020
,2020 OFFICE OF THE MAJORITY WHIP,3,GENERAL EXPENDITURES,PERSONNEL COMPENSATION,DETAIL,   ,   ,   ,LINK CRAIG C,2020-07-01,2020-09-30,FLOOR DIRECTOR AND GENERAL COU,40875,2020
,2020 OFFICE OF THE MAJORITY WHIP,3,GENERAL EXPENDITURES,PERSONNEL COMPENSATION,DETAIL,   ,   ,   ,LOEWE ERICA P,2020-07-01,2020-09-30,DEPUTY COMMUNICATIONS DIRECTOR,26250,2020
,2020 OFFICE OF THE MAJORITY WHIP,3,GENERAL EXPENDITURES,PERSONNEL COMPENSATION,DETAIL,   ,   ,   ,MASON TAMIKA K,2020-07-01,2020-09-30,DIRECTOR OF TECHNOLOGY FOR FLO,23750.01,2020
,2020 OFFICE OF THE MAJORITY WHIP,3,GENERAL EXPENDITURES,PERSONNEL COMPENSATION,DETAIL,   ,   ,   ,MICHALAK TIMOTHY J,2020-07-01,2020-09-30,LEGISLATIVE ASSISTANT,12500.01,2020
,2020 OFFICE OF THE MAJORITY WHIP,3,GENERAL EXPENDITURES,PERSONNEL COMPENSATION,DETAIL,   ,   ,   ,MONEIB AHMED,2020-07-01,2020-09-30,STAFF ASSISTANT,9500.01,2020
,2020 OFFICE OF THE MAJORITY WHIP,3,GENERAL EXPENDITURES,PERSONNEL COMPENSATION,DETAIL,   ,   ,   ,SAUNDERS NIA G.,2020-08-20,2020-09-30,PRESS ASSISTANT,3986.11,2020
,2020 OFFICE OF THE MAJORITY WHIP,3,GENERAL EXPENDITURES,PERSONNEL COMPENSATION,DETAIL,   ,   ,   ,UBEZONU NNEMDILIM I,2020-07-01,2020-09-30,DEPUTY FLOOR LEADER,17499.99,2020
,2020 OFFICE OF THE MAJORITY WHIP,3,GENERAL EXPENDITURES,PERSONNEL COMPENSATION,DETAIL,   ,   ,   ,VALLEJO JESSICA,2020-07-01,2020-08-31,DEPUTY FLOOR DIRECTOR,11666.66,2020
,2020 OFFICE OF THE MAJORITY WHIP,3,GENERAL EXPENDITURES,PERSONNEL COMPENSATION,DETAIL,   ,   ,   ,WATKINS YELBERTON R.,2020-07-01,2020-09-30,CHIEF OF STAFF,42000,2020
,2020 OFFICE OF THE MAJORITY WHIP,3,GENERAL EXPENDITURES,PERSONNEL COMPENSATION,DETAIL,   ,   ,   ,WHITEHOUSE LIN,2020-07-01,2020-09-30,MEMBER SERVICES ASSISTANT,11750.01,2020
,2020 OFFICE OF THE MAJORITY WHIP,3,GENERAL EXPENDITURES,PERSONNEL COMPENSATION,DETAIL,   ,   ,   ,WILSON ASHLEIGH R,2020-07-01,2020-09-30,LEGISLATIVE DIRECTOR,6249.99,2020
,2020 OFFICE OF THE MAJORITY WHIP,3,GENERAL EXPENDITURES,PERSONNEL COMPENSATION,DETAIL,   ,   ,   ,WMARIAM WINTTA M,2020-07-01,2020-09-30,POLICY DIRECTOR,42125.01,2020
,2020 OFFICE OF THE MAJORITY WHIP,3,GENERAL EXPENDITURES,PERSONNEL COMPENSATION,SUBTOTAL,   ,   ,   ,   ,   ,   ,PERSONNEL COMPENSATION TOTALS:,416255.59,2020
,2020 OFFICE OF THE MAJORITY WHIP,3,GENERAL EXPENDITURES,TRAVEL,DETAIL,2020-09-17,AP,1335995,MASON TAMIKA K.,2020-08-31,2020-09-05,CAR RENTAL,369.67,2020
,2020 OFFICE OF THE MAJORITY WHIP,3,GENERAL EXPENDITURES,TRAVEL,DETAIL,2020-09-17,AP,1335995,MASON TAMIKA K.,2020-09-01,2020-09-01,GASOLINE,32.67,2020
,2020 OFFICE OF THE MAJORITY WHIP,3,GENERAL EXPENDITURES,TRAVEL,DETAIL,2020-09-17,AP,1335995,MASON TAMIKA K.,2020-09-02,2020-09-02,GASOLINE,14.51,2020
,2020 OFFICE OF THE MAJORITY WHIP,3,GENERAL EXPENDITURES,TRAVEL,DETAIL,2020-09-17,AP,1335995,MASON TAMIKA K.,2020-09-04,2020-09-04,GASOLINE,41.44,2020
,2020 OFFICE OF THE MAJORITY WHIP,3,GENERAL EXPENDITURES,TRAVEL,SUBTOTAL,   ,   ,   ,   ,   ,   ,TRAVEL TOTALS:,458.29,2020
,2020 OFFICE OF THE MAJORITY WHIP,3,GENERAL EXPENDITURES,RENT  COMMUNICATION  UTILITIES,DETAIL,2020-07-14,AP,1311348,LEIDOS DIGITAL SOLUTIONS INC,2020-06-25,2020-06-25,TELECOMSRV/EQ/TOLL CHARGE,1197.48,2020
,2020 OFFICE OF THE MAJORITY WHIP,3,GENERAL EXPENDITURES,RENT  COMMUNICATION  UTILITIES,DETAIL,2020-07-27,GL,MED0099449, ,2020-06-24,2020-06-24,HIR GRAPHICS (TRANSFER),118,2020
,2020 OFFICE OF THE MAJORITY WHIP,3,GENERAL EXPENDITURES,RENT  COMMUNICATION  UTILITIES,DETAIL,2020-07-29,GL,EMS0099556, ,2020-06-01,2020-06-30,DC TELECOM EQUIP (TRANSFER),72,2020
,2020 OFFICE OF THE MAJORITY WHIP,3,GENERAL EXPENDITURES,RENT  COMMUNICATION  UTILITIES,DETAIL,2020-07-29,GL,EMS0099556, ,2020-06-01,2020-06-30,DC TELECOM SERV (TRANSFER),285.75,2020
,2020 OFFICE OF THE MAJORITY WHIP,3,GENERAL EXPENDITURES,RENT  COMMUNICATION  UTILITIES,DETAIL,2020-07-29,GL,EMS0099556, ,2020-06-01,2020-06-30,DC TELECOM TOLLS (TRANSFER),1504.21,2020
,2020 OFFICE OF THE MAJORITY WHIP,3,GENERAL EXPENDITURES,RENT  COMMUNICATION  UTILITIES,DETAIL,2020-07-31,GL,GLA0099647, ,2020-07-31,2020-07-31,POSTAGE / COURIER / BOX RENTAL,-85.07,2020
,2020 OFFICE OF THE MAJORITY WHIP,3,GENERAL EXPENDITURES,RENT  COMMUNICATION  UTILITIES,DETAIL,2020-08-26,GL,EMS0100215, ,2020-07-01,2020-07-31,DC TELECOM EQUIP (TRANSFER),72,2020
,2020 OFFICE OF THE MAJORITY WHIP,3,GENERAL EXPENDITURES,RENT  COMMUNICATION  UTILITIES,DETAIL,2020-08-26,GL,EMS0100215, ,2020-07-01,2020-07-31,DC TELECOM SERV (TRANSFER),285.75,2020
,2020 OFFICE OF THE MAJORITY WHIP,3,GENERAL EXPENDITURES,RENT  COMMUNICATION  UTILITIES,DETAIL,2020-08-26,GL,EMS0100215, ,2020-07-01,2020-07-31,DC TELECOM TOLLS (TRANSFER),1711.96,2020
,2020 OFFICE OF THE MAJORITY WHIP,3,GENERAL EXPENDITURES,RENT  COMMUNICATION  UTILITIES,DETAIL,2020-09-28,GL,EMS0101058, ,2020-08-01,2020-08-31,DC TELECOM EQUIP (TRANSFER),72,2020
,2020 OFFICE OF THE MAJORITY WHIP,3,GENERAL EXPENDITURES,RENT  COMMUNICATION  UTILITIES,DETAIL,2020-09-28,GL,EMS0101058, ,2020-08-01,2020-08-31,DC TELECOM SERV (TRANSFER),285.75,2020
,2020 OFFICE OF THE MAJORITY WHIP,3,GENERAL EXPENDITURES,RENT  COMMUNICATION  UTILITIES,DETAIL,2020-09-28,GL,EMS0101058, ,2020-08-01,2020-08-31,DC TELECOM TOLLS (TRANSFER),1496.7,2020
,2020 OFFICE OF THE MAJORITY WHIP,3,GENERAL EXPENDITURES,RENT  COMMUNICATION  UTILITIES,SUBTOTAL,   ,   ,   ,   ,   ,   ,RENT  COMMUNICATION  UTILITIES TOTALS:,7016.53,2020
,2020 OFFICE OF THE MAJORITY WHIP,3,GENERAL EXPENDITURES,PRINTING AND REPRODUCTION,DETAIL,2020-07-13,AP,1310857,ACCURATE WORD LLC,2020-07-07,2020-07-07,PRINTING & REPRODUCTION,374.85,2020
,2020 OFFICE OF THE MAJORITY WHIP,3,GENERAL EXPENDITURES,PRINTING AND REPRODUCTION,DETAIL,2020-07-23,AP,1311357,CITI PCARD-THE UPS STORE 2092,2020-06-04,2020-06-04,PRINTING & REPRODUCTION,5.18,2020
,2020 OFFICE OF THE MAJORITY WHIP,3,GENERAL EXPENDITURES,PRINTING AND REPRODUCTION,SUBTOTAL,   ,   ,   ,   ,   ,   ,PRINTING AND REPRODUCTION TOTALS:,380.03,2020
,2020 OFFICE OF THE MAJORITY WHIP,3,GENERAL EXPENDITURES,OTHER SERVICES,DETAIL,2020-07-13,AP,1308712,VERACITY LLC,2020-06-01,2020-06-30,WEB DEV HST EMAIL & RLTD SERV,1700,2020
,2020 OFFICE OF THE MAJORITY WHIP,3,GENERAL EXPENDITURES,OTHER SERVICES,DETAIL,2020-07-16,AP,1313289,FIRESIDE21,2020-07-01,2020-07-31,TECHNOLOGY SERVICE CONTRACTS,1835,2020
,2020 OFFICE OF THE MAJORITY WHIP,3,GENERAL EXPENDITURES,OTHER SERVICES,DETAIL,2020-08-16,AP,1323633,FIRESIDE21,2020-08-01,2020-08-31,TECHNOLOGY SERVICE CONTRACTS,1835,2020
,2020 OFFICE OF THE MAJORITY WHIP,3,GENERAL EXPENDITURES,OTHER SERVICES,DETAIL,2020-09-09,AP,1319098,VERACITY LLC,2020-07-01,2020-07-31,WEB DEV HST EMAIL & RLTD SERV,1500,2020
,2020 OFFICE OF THE MAJORITY WHIP,3,GENERAL EXPENDITURES,OTHER SERVICES,DETAIL,2020-09-16,AP,1333886,FIRESIDE21,2020-09-01,2020-09-30,TECHNOLOGY SERVICE CONTRACTS,1835,2020
,2020 OFFICE OF THE MAJORITY WHIP,3,GENERAL EXPENDITURES,OTHER SERVICES,DETAIL,2020-09-25,AR,AC-16253,LEIDOS DIGITAL SOLUTIONS INC,2020-01-01,2020-01-31,TECHNOLOGY SERVICE CONTRACTS,-9660,2020
,2020 OFFICE OF THE MAJORITY WHIP,3,GENERAL EXPENDITURES,OTHER SERVICES,DETAIL,2020-09-29,AP,1337681,VERACITY LLC,2020-08-01,2020-08-31,WEB DEV HST EMAIL & RLTD SERV,4800,2020
,2020 OFFICE OF THE MAJORITY WHIP,3,GENERAL EXPENDITURES,OTHER SERVICES,SUBTOTAL,   ,   ,   ,   ,   ,   ,OTHER SERVICES TOTALS:,3845,2020
,2020 OFFICE OF THE MAJORITY WHIP,3,GENERAL EXPENDITURES,SUPPLIES AND MATERIALS,DETAIL,2020-07-23,AP,1311357,CITI PCARD-AMZN MKTP US MY83Q7GS0 AM,2020-06-05,2020-06-05,OFFICE SUPPLIES (OUTSIDE),18.99,2020
,2020 OFFICE OF THE MAJORITY WHIP,3,GENERAL EXPENDITURES,SUPPLIES AND MATERIALS,DETAIL,2020-07-23,AP,1311357,CITI PCARD-AMZN Mktp US MS4DB8GU2,2020-06-22,2020-06-22,OFFICE SUPPLIES (OUTSIDE),99.98,2020
,2020 OFFICE OF THE MAJORITY WHIP,3,GENERAL EXPENDITURES,SUPPLIES AND MATERIALS,DETAIL,2020-07-23,AP,1311357,CITI PCARD-INSTACART,2020-06-05,2020-06-05,FOOD & BEVERAGE,94.65,2020
,2020 OFFICE OF THE MAJORITY WHIP,3,GENERAL EXPENDITURES,SUPPLIES AND MATERIALS,DETAIL,2020-07-23,AP,1311357,CITI PCARD-INSTACART,2020-06-08,2020-06-08,FOOD & BEVERAGE,59.33,2020
,2020 OFFICE OF THE MAJORITY WHIP,3,GENERAL EXPENDITURES,SUPPLIES AND MATERIALS,DETAIL,2020-07-23,AP,1311357,CITI PCARD-INSTACART,2020-06-16,2020-06-16,FOOD & BEVERAGE,162.31,2020
,2020 OFFICE OF THE MAJORITY WHIP,3,GENERAL EXPENDITURES,SUPPLIES AND MATERIALS,DETAIL,2020-07-23,AP,1311357,CITI PCARD-INSTACART,2020-06-24,2020-06-24,FOOD & BEVERAGE,166.06,2020
,2020 OFFICE OF THE MAJORITY WHIP,3,GENERAL EXPENDITURES,SUPPLIES AND MATERIALS,DETAIL,2020-07-23,AP,1311357,CITI PCARD-NYTIMES,2020-06-17,2020-07-15,PUBLICATIONS/REFERENCE MAT'L,40.28,2020
,2020 OFFICE OF THE MAJORITY WHIP,3,GENERAL EXPENDITURES,SUPPLIES AND MATERIALS,DETAIL,2020-07-23,AP,1316289,WHITEHOUSE LIN,2020-07-21,2020-07-21,FOOD & BEVERAGE,5.79,2020
,2020 OFFICE OF THE MAJORITY WHIP,3,GENERAL EXPENDITURES,SUPPLIES AND MATERIALS,DETAIL,2020-07-30,AP,1318041,CDW GOVERNMENT LLC,2020-05-22,2020-05-22,OFFICE SUPPLIES (OUTSIDE),201.82,2020
,2020 OFFICE OF THE MAJORITY WHIP,3,GENERAL EXPENDITURES,SUPPLIES AND MATERIALS,DETAIL,2020-07-31,GL,RMS0099738, ,2020-07-01,2020-07-31,OFFICE SUPPLY (TRANSFER),218.05,2020
,2020 OFFICE OF THE MAJORITY WHIP,3,GENERAL EXPENDITURES,SUPPLIES AND MATERIALS,DETAIL,2020-08-03,AP,1319084,MASON TAMIKA K.,2020-07-23,2020-07-23,OFFICE SUPPLIES (OUTSIDE),28.6,2020
,2020 OFFICE OF THE MAJORITY WHIP,3,GENERAL EXPENDITURES,SUPPLIES AND MATERIALS,DETAIL,2020-08-18,AP,1323766,CITI PCARD-AMZN MKTP US MV1X660Z2 AM,2020-07-20,2020-07-20,OFFICE SUPPLIES (OUTSIDE),35.88,2020
,2020 OFFICE OF THE MAJORITY WHIP,3,GENERAL EXPENDITURES,SUPPLIES AND MATERIALS,DETAIL,2020-08-18,AP,1323766,CITI PCARD-AMZN Mktp US MJ3P586X1,2020-07-07,2020-07-07,OFFICE SUPPLIES (OUTSIDE),37.99,2020
,2020 OFFICE OF THE MAJORITY WHIP,3,GENERAL EXPENDITURES,SUPPLIES AND MATERIALS,DETAIL,2020-08-18,AP,1323766,CITI PCARD-AMZN Mktp US MV1WV2F40,2020-07-15,2020-07-15,OFFICE SUPPLIES (OUTSIDE),27.89,2020
,2020 OFFICE OF THE MAJORITY WHIP,3,GENERAL EXPENDITURES,SUPPLIES AND MATERIALS,DETAIL,2020-08-18,AP,1323766,CITI PCARD-AMZN Mktp US MV4QV2LK1,2020-07-13,2020-07-13,OFFICE SUPPLIES (OUTSIDE),33.99,2020
,2020 OFFICE OF THE MAJORITY WHIP,3,GENERAL EXPENDITURES,SUPPLIES AND MATERIALS,DETAIL,2020-08-18,AP,1323766,CITI PCARD-BOJANGLES 646,2020-06-30,2020-06-30,FOOD & BEVERAGE,530,2020
,2020 OFFICE OF THE MAJORITY WHIP,3,GENERAL EXPENDITURES,SUPPLIES AND MATERIALS,DETAIL,2020-08-18,AP,1323766,CITI PCARD-CHICK-FIL-A #03882,2020-06-25,2020-06-25,FOOD & BEVERAGE,826.43,2020
,2020 OFFICE OF THE MAJORITY WHIP,3,GENERAL EXPENDITURES,SUPPLIES AND MATERIALS,DETAIL,2020-08-18,AP,1323766,CITI PCARD-CHICK-FIL-A #03882,2020-07-02,2020-07-02,FOOD & BEVERAGE,208.78,2020
,2020 OFFICE OF THE MAJORITY WHIP,3,GENERAL EXPENDITURES,SUPPLIES AND MATERIALS,DETAIL,2020-08-18,AP,1323766,CITI PCARD-CHICK-FIL-A #03882,2020-07-21,2020-07-21,FOOD & BEVERAGE,531.85,2020
,2020 OFFICE OF THE MAJORITY WHIP,3,GENERAL EXPENDITURES,SUPPLIES AND MATERIALS,DETAIL,2020-08-18,AP,1323766,CITI PCARD-INSTACART,2020-06-30,2020-06-30,FOOD & BEVERAGE,111.36,2020
,2020 OFFICE OF THE MAJORITY WHIP,3,GENERAL EXPENDITURES,SUPPLIES AND MATERIALS,DETAIL,2020-08-18,AP,1323766,CITI PCARD-INSTACART,2020-07-16,2020-07-16,FOOD & BEVERAGE,280.33,2020
,2020 OFFICE OF THE MAJORITY WHIP,3,GENERAL EXPENDITURES,SUPPLIES AND MATERIALS,DETAIL,2020-08-18,AP,1323766,CITI PCARD-INSTACART,2020-07-23,2020-07-23,FOOD & BEVERAGE,168.07,2020
,2020 OFFICE OF THE MAJORITY WHIP,3,GENERAL EXPENDITURES,SUPPLIES AND MATERIALS,DETAIL,2020-08-18,AP,1323766,CITI PCARD-NYTIMES,2020-07-15,2020-08-12,PUBLICATIONS/REFERENCE MAT'L,40.28,2020
,2020 OFFICE OF THE MAJORITY WHIP,3,GENERAL EXPENDITURES,SUPPLIES AND MATERIALS,DETAIL,2020-08-18,AP,1323766,CITI PCARD-SQ  REVIVE EVENTS & CATER,2020-07-22,2020-07-22,FOOD & BEVERAGE,210,2020
,2020 OFFICE OF THE MAJORITY WHIP,3,GENERAL EXPENDITURES,SUPPLIES AND MATERIALS,DETAIL,2020-08-31,GL,RMS0100395, ,2020-08-01,2020-08-31,OFFICE SUPPLY (TRANSFER),39.56,2020
,2020 OFFICE OF THE MAJORITY WHIP,3,GENERAL EXPENDITURES,SUPPLIES AND MATERIALS,DETAIL,2020-09-04,AP,1329236,CITI PCARD-AMZN Mktp US MM67H0SH1,2020-08-20,2020-08-20,OFFICE SUPPLIES (OUTSIDE),59.97,2020
,2020 OFFICE OF THE MAJORITY WHIP,3,GENERAL EXPENDITURES,SUPPLIES AND MATERIALS,DETAIL,2020-09-04,AP,1329236,CITI PCARD-AMZN Mktp US MV5RD1IK0,2020-07-29,2020-07-29,OFFICE SUPPLIES (OUTSIDE),64.45,2020
,2020 OFFICE OF THE MAJORITY WHIP,3,GENERAL EXPENDITURES,SUPPLIES AND MATERIALS,DETAIL,2020-09-04,AP,1329236,CITI PCARD-BESTBUYCOM806289445907,2020-08-24,2020-08-24,OFFICE SUPPLIES (OUTSIDE),99.99,2020
,2020 OFFICE OF THE MAJORITY WHIP,3,GENERAL EXPENDITURES,SUPPLIES AND MATERIALS,DETAIL,2020-09-04,AP,1329236,CITI PCARD-INSTACART,2020-07-29,2020-07-29,FOOD & BEVERAGE,207.46,2020
,2020 OFFICE OF THE MAJORITY WHIP,3,GENERAL EXPENDITURES,SUPPLIES AND MATERIALS,DETAIL,2020-09-04,AP,1329236,CITI PCARD-INSTACART,2020-08-06,2020-08-06,FOOD & BEVERAGE,147.5,2020
,2020 OFFICE OF THE MAJORITY WHIP,3,GENERAL EXPENDITURES,SUPPLIES AND MATERIALS,DETAIL,2020-09-04,AP,1329236,CITI PCARD-INSTACART,2020-08-20,2020-08-20,FOOD & BEVERAGE,101.01,2020
,2020 OFFICE OF THE MAJORITY WHIP,3,GENERAL EXPENDITURES,SUPPLIES AND MATERIALS,DETAIL,2020-09-04,AP,1329236,CITI PCARD-NYTIMES,2020-08-12,2020-09-09,PUBLICATIONS/REFERENCE MAT'L,40.28,2020
,2020 OFFICE OF THE MAJORITY WHIP,3,GENERAL EXPENDITURES,SUPPLIES AND MATERIALS,DETAIL,2020-09-04,AP,1329236,CITI PCARD-SOFTCHOICE CORPORATION,2020-07-17,2020-09-17,SOFTWARE  LESS THAN  $500,277.49,2020
,2020 OFFICE OF THE MAJORITY WHIP,3,GENERAL EXPENDITURES,SUPPLIES AND MATERIALS,DETAIL,2020-09-04,AP,1329236,CITI PCARD-SQ  REVIVE EVENTS & CATER,2020-08-06,2020-08-06,FOOD & BEVERAGE,4050,2020
,2020 OFFICE OF THE MAJORITY WHIP,3,GENERAL EXPENDITURES,SUPPLIES AND MATERIALS,DETAIL,2020-09-04,AP,1329236,CITI PCARD-WE THE PIZZA,2020-08-22,2020-08-22,FOOD & BEVERAGE,2178.46,2020
,2020 OFFICE OF THE MAJORITY WHIP,3,GENERAL EXPENDITURES,SUPPLIES AND MATERIALS,DETAIL,2020-09-30,GL,RMS0101251, ,2020-09-01,2020-09-30,OFFICE SUPPLY (TRANSFER),296.15,2020
,2020 OFFICE OF THE MAJORITY WHIP,3,GENERAL EXPENDITURES,SUPPLIES AND MATERIALS,SUBTOTAL,   ,   ,   ,   ,   ,   ,SUPPLIES AND MATERIALS TOTALS:,11701.03,2020
,2020 OFFICE OF THE MAJORITY WHIP,3,GENERAL EXPENDITURES,EQUIPMENT,DETAIL,2020-07-31,GL,MNT0099641, ,2020-07-01,2020-07-31,MAINTENANCE / REPAIRS,186,2020
,2020 OFFICE OF THE MAJORITY WHIP,3,GENERAL EXPENDITURES,EQUIPMENT,DETAIL,2020-08-31,GL,MNT0100341, ,2020-08-01,2020-08-31,MAINTENANCE / REPAIRS,186,2020
,2020 OFFICE OF THE MAJORITY WHIP,3,GENERAL EXPENDITURES,EQUIPMENT,DETAIL,2020-09-30,GL,MNT0101165, ,2020-09-01,2020-09-30,MAINTENANCE / REPAIRS,186,2020
,2020 OFFICE OF THE MAJORITY WHIP,3,GENERAL EXPENDITURES,EQUIPMENT,DETAIL,2020-09-30,GL,MNT0101165, ,2020-09-25,2020-09-30,MAINTENANCE / REPAIRS,33.8,2020
,2020 OFFICE OF THE MAJORITY WHIP,3,GENERAL EXPENDITURES,EQUIPMENT,SUBTOTAL,   ,   ,   ,   ,   ,   ,EQUIPMENT TOTALS:,591.8,2020
,2020 OFFICE OF THE MAJORITY WHIP,3,GENERAL EXPENDITURES,EQUIPMENT,SUBTOTAL,   ,   ,   ,   ,   ,   ,GENERAL EXPENDITURES TOTALS:,440248.27,2020
,2020 OFFICE OF THE MAJORITY WHIP,3,GENERAL EXPENDITURES,EQUIPMENT,GRAND TOTAL FOR ORGANIZATION,   ,   ,   ,   ,   ,   ,OFFICE TOTALS: ,440248.27,2020
,2019 OFFICE OF THE MAJORITY WHIP,3,GENERAL EXPENDITURES,SUPPLIES AND MATERIALS,DETAIL,2020-07-23,AP,1311357,CITI PCARD-THEPOSTANDCO ONLINE,2019-02-15,2020-02-14,PUBLICATIONS/REFERENCE MAT'L,155,2020
,2019 OFFICE OF THE MAJORITY WHIP,3,GENERAL EXPENDITURES,SUPPLIES AND MATERIALS,SUBTOTAL,   ,   ,   ,   ,   ,   ,SUPPLIES AND MATERIALS TOTALS:,155,2020
,2019 OFFICE OF THE MAJORITY WHIP,3,GENERAL EXPENDITURES,EQUIPMENT,DETAIL,2020-09-30,GL,GLA0101290, ,2019-12-01,2020-09-30,EQUIPMENT PURCHASES,-9549.92,2020
,2019 OFFICE OF THE MAJORITY WHIP,3,GENERAL EXPENDITURES,EQUIPMENT,DETAIL,2020-09-30,GL,GLA0101290, ,2019-12-01,2020-09-30,EQUIPMENT PURCHASES,9549.92,2020
,2019 OFFICE OF THE MAJORITY WHIP,3,GENERAL EXPENDITURES,EQUIPMENT,DETAIL,2020-09-30,GL,RPY0101168, ,2020-09-01,2020-09-30,EQUIPMENT PURCHASES,894.42,2020
,2019 OFFICE OF THE MAJORITY WHIP,3,GENERAL EXPENDITURES,EQUIPMENT,SUBTOTAL,   ,   ,   ,   ,   ,   ,EQUIPMENT TOTALS:,894.42,2020
,2019 OFFICE OF THE MAJORITY WHIP,3,GENERAL EXPENDITURES,EQUIPMENT,SUBTOTAL,   ,   ,   ,   ,   ,   ,GENERAL EXPENDITURES TOTALS:,1049.42,2020
,2019 OFFICE OF THE MAJORITY WHIP,3,GENERAL EXPENDITURES,EQUIPMENT,GRAND TOTAL FOR ORGANIZATION,   ,   ,   ,   ,   ,   ,OFFICE TOTALS: ,1049.42,2020
,2020 OFFICE OF THE MINORITY WHIP,3,GENERAL EXPENDITURES,PERSONNEL COMPENSATION,DETAIL,   ,   ,   ,ACORNLEY MARK A.,2020-07-01,2020-09-30,FINANCIAL ADMINISTRATOR,3750,2020
,2020 OFFICE OF THE MINORITY WHIP,3,GENERAL EXPENDITURES,PERSONNEL COMPENSATION,DETAIL,   ,   ,   ,BATTAGLIA JACQUELINE P,2020-07-01,2020-09-30,SCHEDULE COORDINATOR,16500,2020
,2020 OFFICE OF THE MINORITY WHIP,3,GENERAL EXPENDITURES,PERSONNEL COMPENSATION,DETAIL,   ,   ,   ,CLARKE JOHN L,2020-07-01,2020-09-30,SPECIAL ASSISTANT,21500.01,2020
,2020 OFFICE OF THE MINORITY WHIP,3,GENERAL EXPENDITURES,PERSONNEL COMPENSATION,DETAIL,   ,   ,   ,COMER II MICHAEL D,2020-07-01,2020-09-30,DIGITAL DIRECTOR,31250,2020
,2020 OFFICE OF THE MINORITY WHIP,3,GENERAL EXPENDITURES,PERSONNEL COMPENSATION,DETAIL,   ,   ,   ,FINE LAUREN R,2020-07-01,2020-09-30,COMMUNICATIONS DIRECTOR,26187.51,2020
,2020 OFFICE OF THE MINORITY WHIP,3,GENERAL EXPENDITURES,PERSONNEL COMPENSATION,DETAIL,   ,   ,   ,GOSNELL ELLEN C,2020-07-01,2020-09-30,DIRECTOR OF OPERATIONS,41250,2020
,2020 OFFICE OF THE MINORITY WHIP,3,GENERAL EXPENDITURES,PERSONNEL COMPENSATION,DETAIL,   ,   ,   ,HORTON BRETT H.,2020-07-01,2020-09-30,CHIEF OF STAFF,43175.01,2020
,2020 OFFICE OF THE MINORITY WHIP,3,GENERAL EXPENDITURES,PERSONNEL COMPENSATION,DETAIL,   ,   ,   ,HUGHES WILLIAM J,2020-07-01,2020-09-30,POLICY DIRECTOR,21624.99,2020
,2020 OFFICE OF THE MINORITY WHIP,3,GENERAL EXPENDITURES,PERSONNEL COMPENSATION,DETAIL,   ,   ,   ,KNECHT REILLY K,2020-07-01,2020-09-30,DIGITAL ASSISTANT,16499.99,2020
,2020 OFFICE OF THE MINORITY WHIP,3,GENERAL EXPENDITURES,PERSONNEL COMPENSATION,DETAIL,   ,   ,   ,KRIEGER ROBYN W,2020-07-01,2020-09-30,STAFF ASSISTANT,14999.99,2020
,2020 OFFICE OF THE MINORITY WHIP,3,GENERAL EXPENDITURES,PERSONNEL COMPENSATION,DETAIL,   ,   ,   ,MCBRIDE ERIN E,2020-07-01,2020-09-30,DEPUTY PRESS SECRETARY,11500.01,2020
,2020 OFFICE OF THE MINORITY WHIP,3,GENERAL EXPENDITURES,PERSONNEL COMPENSATION,DETAIL,   ,   ,   ,MINKLER ANN W,2020-07-01,2020-09-30,DEPUTY FLOOR DIRECTOR,32500.01,2020
,2020 OFFICE OF THE MINORITY WHIP,3,GENERAL EXPENDITURES,PERSONNEL COMPENSATION,DETAIL,   ,   ,   ,NALLS DENNIS A,2020-07-01,2020-09-30,FLOOR ASSISTANT,23916.67,2020
,2020 OFFICE OF THE MINORITY WHIP,3,GENERAL EXPENDITURES,PERSONNEL COMPENSATION,DETAIL,   ,   ,   ,NAPIER BENJAMIN W,2020-07-01,2020-09-30,FLOOR DIRECTOR,42678.57,2020
,2020 OFFICE OF THE MINORITY WHIP,3,GENERAL EXPENDITURES,PERSONNEL COMPENSATION,DETAIL,   ,   ,   ,REISER MARTIN G,2020-07-01,2020-09-30,LEGISLATIVE COUNSEL,21249.99,2020
,2020 OFFICE OF THE MINORITY WHIP,3,GENERAL EXPENDITURES,PERSONNEL COMPENSATION,DETAIL,   ,   ,   ,REISING JOHN B,2020-07-01,2020-09-30,MEMBER SERVICES DIRECTOR,43196.43,2020
,2020 OFFICE OF THE MINORITY WHIP,3,GENERAL EXPENDITURES,PERSONNEL COMPENSATION,DETAIL,   ,   ,   ,SADLOSKY DANIEL J,2020-07-01,2020-09-30,POLICY ASSISTANT,29750.01,2020
,2020 OFFICE OF THE MINORITY WHIP,3,GENERAL EXPENDITURES,PERSONNEL COMPENSATION,DETAIL,   ,   ,   ,SAPAROW ROBERT M.,2020-07-01,2020-09-30,COS FOR DEPUTY REPUBLICAN WHIP,17499.99,2020
,2020 OFFICE OF THE MINORITY WHIP,3,GENERAL EXPENDITURES,PERSONNEL COMPENSATION,DETAIL,   ,   ,   ,SATTERTHWAITE SEAN B,2020-07-01,2020-09-30,SPEECH WRITER,20000.01,2020
,2020 OFFICE OF THE MINORITY WHIP,3,GENERAL EXPENDITURES,PERSONNEL COMPENSATION,DETAIL,   ,   ,   ,SCHMITZ ERIC T,2020-07-01,2020-09-30,COALITIONS COORDINATOR,28500,2020
,2020 OFFICE OF THE MINORITY WHIP,3,GENERAL EXPENDITURES,PERSONNEL COMPENSATION,DETAIL,   ,   ,   ,WALKER STEVEN C,2020-07-01,2020-09-30,STAFF ASSISTANT,17500.01,2020
,2020 OFFICE OF THE MINORITY WHIP,3,GENERAL EXPENDITURES,PERSONNEL COMPENSATION,DETAIL,   ,   ,   ,WIEAND JR JEFFREY L,2020-07-01,2020-09-30,COUNSEL,31250,2020
,2020 OFFICE OF THE MINORITY WHIP,3,GENERAL EXPENDITURES,PERSONNEL COMPENSATION,SUBTOTAL,   ,   ,   ,   ,   ,   ,PERSONNEL COMPENSATION TOTALS:,556279.2,2020
,2020 OFFICE OF THE MINORITY WHIP,3,GENERAL EXPENDITURES,TRAVEL,DETAIL,2020-07-16,AP,1309287,CITIBANK GOV CARD SERVICE,2020-06-10,2020-06-16,COMMERCIAL TRANSPORTATION,314.16,2020
,2020 OFFICE OF THE MINORITY WHIP,3,GENERAL EXPENDITURES,TRAVEL,DETAIL,2020-08-25,AP,1321853,HORTON BRETT H.,2020-04-29,2020-05-06,COMMERCIAL TRANSPORTATION,48.75,2020
,2020 OFFICE OF THE MINORITY WHIP,3,GENERAL EXPENDITURES,TRAVEL,DETAIL,2020-08-25,AP,1321853,HORTON BRETT H.,2020-05-06,2020-05-11,MEALS,21.97,2020
,2020 OFFICE OF THE MINORITY WHIP,3,GENERAL EXPENDITURES,TRAVEL,DETAIL,2020-08-25,AP,1321853,HORTON BRETT H.,2020-06-10,2020-06-16,CAR RENTAL,398.19,2020
,2020 OFFICE OF THE MINORITY WHIP,3,GENERAL EXPENDITURES,TRAVEL,DETAIL,2020-08-25,AP,1321853,HORTON BRETT H.,2020-06-16,2020-06-16,GASOLINE,23.52,2020
,2020 OFFICE OF THE MINORITY WHIP,3,GENERAL EXPENDITURES,TRAVEL,SUBTOTAL,   ,   ,   ,   ,   ,   ,TRAVEL TOTALS:,806.59,2020
,2020 OFFICE OF THE MINORITY WHIP,3,GENERAL EXPENDITURES,RENT  COMMUNICATION  UTILITIES,DETAIL,2020-07-16,AP,1309297,ATTICUS MEDIA LLC,2020-06-26,2020-06-26,TELECOMSRV/EQ/TOLL CHARGE,264.44,2020
,2020 OFFICE OF THE MINORITY WHIP,3,GENERAL EXPENDITURES,RENT  COMMUNICATION  UTILITIES,DETAIL,2020-07-17,AP,1301982,CITI PCARD-GOOGLE  YouTube TV,2020-05-25,2020-06-24,UTILITIES,52.99,2020
,2020 OFFICE OF THE MINORITY WHIP,3,GENERAL EXPENDITURES,RENT  COMMUNICATION  UTILITIES,DETAIL,2020-07-21,AP,1312133,CITI PCARD-GOOGLE  YouTube TV,2020-06-25,2020-07-24,UTILITIES,52.99,2020
,2020 OFFICE OF THE MINORITY WHIP,3,GENERAL EXPENDITURES,RENT  COMMUNICATION  UTILITIES,DETAIL,2020-07-29,GL,EMS0099556, ,2020-06-01,2020-06-30,DC TELECOM EQUIP (TRANSFER),80,2020
,2020 OFFICE OF THE MINORITY WHIP,3,GENERAL EXPENDITURES,RENT  COMMUNICATION  UTILITIES,DETAIL,2020-07-29,GL,EMS0099556, ,2020-06-01,2020-06-30,DC TELECOM SERV (TRANSFER),232.5,2020
,2020 OFFICE OF THE MINORITY WHIP,3,GENERAL EXPENDITURES,RENT  COMMUNICATION  UTILITIES,DETAIL,2020-07-29,GL,EMS0099556, ,2020-06-01,2020-06-30,DC TELECOM TOLLS (TRANSFER),5502.77,2020
,2020 OFFICE OF THE MINORITY WHIP,3,GENERAL EXPENDITURES,RENT  COMMUNICATION  UTILITIES,DETAIL,2020-08-06,AP,1320243,ATTICUS MEDIA LLC,2020-07-27,2020-07-27,TELECOMSRV/EQ/TOLL CHARGE,194.92,2020
,2020 OFFICE OF THE MINORITY WHIP,3,GENERAL EXPENDITURES,RENT  COMMUNICATION  UTILITIES,DETAIL,2020-08-25,AP,1321853,HORTON BRETT H.,2020-05-06,2020-06-10,UTILITIES,38,2020
,2020 OFFICE OF THE MINORITY WHIP,3,GENERAL EXPENDITURES,RENT  COMMUNICATION  UTILITIES,DETAIL,2020-08-26,AP,1326888,CITI PCARD-GOOGLE  YouTube TV,2020-07-25,2020-08-24,UTILITIES,52.99,2020
,2020 OFFICE OF THE MINORITY WHIP,3,GENERAL EXPENDITURES,RENT  COMMUNICATION  UTILITIES,DETAIL,2020-08-26,GL,EMS0100215, ,2020-07-01,2020-07-31,DC TELECOM EQUIP (TRANSFER),80,2020
,2020 OFFICE OF THE MINORITY WHIP,3,GENERAL EXPENDITURES,RENT  COMMUNICATION  UTILITIES,DETAIL,2020-08-26,GL,EMS0100215, ,2020-07-01,2020-07-31,DC TELECOM SERV (TRANSFER),232.5,2020
,2020 OFFICE OF THE MINORITY WHIP,3,GENERAL EXPENDITURES,RENT  COMMUNICATION  UTILITIES,DETAIL,2020-08-26,GL,EMS0100215, ,2020-07-01,2020-07-31,DC TELECOM TOLLS (TRANSFER),4484.95,2020
,2020 OFFICE OF THE MINORITY WHIP,3,GENERAL EXPENDITURES,RENT  COMMUNICATION  UTILITIES,DETAIL,2020-09-21,AP,1336084,CITI PCARD-GOOGLE  YouTube TV,2020-08-25,2020-09-24,UTILITIES,68.89,2020
,2020 OFFICE OF THE MINORITY WHIP,3,GENERAL EXPENDITURES,RENT  COMMUNICATION  UTILITIES,DETAIL,2020-09-28,GL,EMS0101058, ,2020-08-01,2020-08-31,DC TELECOM EQUIP (TRANSFER),80,2020
,2020 OFFICE OF THE MINORITY WHIP,3,GENERAL EXPENDITURES,RENT  COMMUNICATION  UTILITIES,DETAIL,2020-09-28,GL,EMS0101058, ,2020-08-01,2020-08-31,DC TELECOM SERV (TRANSFER),232.5,2020
,2020 OFFICE OF THE MINORITY WHIP,3,GENERAL EXPENDITURES,RENT  COMMUNICATION  UTILITIES,DETAIL,2020-09-28,GL,EMS0101058, ,2020-08-01,2020-08-31,DC TELECOM TOLLS (TRANSFER),3374.83,2020
,2020 OFFICE OF THE MINORITY WHIP,3,GENERAL EXPENDITURES,RENT  COMMUNICATION  UTILITIES,SUBTOTAL,   ,   ,   ,   ,   ,   ,RENT  COMMUNICATION  UTILITIES TOTALS:,15025.27,2020
,2020 OFFICE OF THE MINORITY WHIP,3,GENERAL EXPENDITURES,OTHER SERVICES,DETAIL,2020-07-16,AP,1309576,GULF PARTYLINE CORPORATION,2020-06-01,2020-06-30,TECHNOLOGY SERVICE CONTRACTS,3000,2020
,2020 OFFICE OF THE MINORITY WHIP,3,GENERAL EXPENDITURES,OTHER SERVICES,DETAIL,2020-07-16,AP,1312605,HOUSECALL LLC,2020-07-01,2020-07-31,TECHNOLOGY SERVICE CONTRACTS,5125,2020
,2020 OFFICE OF THE MINORITY WHIP,3,GENERAL EXPENDITURES,OTHER SERVICES,DETAIL,2020-07-17,AP,1301982,CITI PCARD-MAILCHIMP    MONTHLY,2020-05-07,2020-06-06,WEB DEV HST EMAIL & RLTD SERV,301.03,2020
,2020 OFFICE OF THE MINORITY WHIP,3,GENERAL EXPENDITURES,OTHER SERVICES,DETAIL,2020-07-17,AP,1309301,ENGAGE LLC,2020-06-01,2020-06-30,WEB DEV HST EMAIL & RLTD SERV,500,2020
,2020 OFFICE OF THE MINORITY WHIP,3,GENERAL EXPENDITURES,OTHER SERVICES,DETAIL,2020-07-21,AP,1312133,CITI PCARD-MAILCHIMP    MONTHLY,2020-06-07,2020-07-06,WEB DEV HST EMAIL & RLTD SERV,301.03,2020
,2020 OFFICE OF THE MINORITY WHIP,3,GENERAL EXPENDITURES,OTHER SERVICES,DETAIL,2020-08-06,AP,1320236,GULF PARTYLINE CORPORATION,2020-07-01,2020-07-31,TECHNOLOGY SERVICE CONTRACTS,3000,2020
,2020 OFFICE OF THE MINORITY WHIP,3,GENERAL EXPENDITURES,OTHER SERVICES,DETAIL,2020-08-06,AP,1320251,ENGAGE LLC,2020-07-01,2020-07-31,WEB DEV HST EMAIL & RLTD SERV,500,2020
,2020 OFFICE OF THE MINORITY WHIP,3,GENERAL EXPENDITURES,OTHER SERVICES,DETAIL,2020-08-16,AP,1322944,HOUSECALL LLC,2020-08-01,2020-08-31,TECHNOLOGY SERVICE CONTRACTS,5125,2020
,2020 OFFICE OF THE MINORITY WHIP,3,GENERAL EXPENDITURES,OTHER SERVICES,DETAIL,2020-08-26,AP,1326888,CITI PCARD-MAILCHIMP    MONTHLY,2020-07-07,2020-08-06,WEB DEV HST EMAIL & RLTD SERV,301.03,2020
,2020 OFFICE OF THE MINORITY WHIP,3,GENERAL EXPENDITURES,OTHER SERVICES,DETAIL,2020-09-16,AP,1333194,HOUSECALL LLC,2020-09-01,2020-09-30,TECHNOLOGY SERVICE CONTRACTS,5125,2020
,2020 OFFICE OF THE MINORITY WHIP,3,GENERAL EXPENDITURES,OTHER SERVICES,DETAIL,2020-09-18,AP,1329208,GULF PARTYLINE CORPORATION,2020-08-01,2020-08-31,TECHNOLOGY SERVICE CONTRACTS,3000,2020
,2020 OFFICE OF THE MINORITY WHIP,3,GENERAL EXPENDITURES,OTHER SERVICES,DETAIL,2020-09-21,AP,1329099,ENGAGE LLC,2020-08-01,2020-08-31,WEB DEV HST EMAIL & RLTD SERV,500,2020
,2020 OFFICE OF THE MINORITY WHIP,3,GENERAL EXPENDITURES,OTHER SERVICES,DETAIL,2020-09-21,AP,1336084,CITI PCARD-MAILCHIMP    MONTHLY,2020-08-07,2020-09-06,WEB DEV HST EMAIL & RLTD SERV,301.03,2020
,2020 OFFICE OF THE MINORITY WHIP,3,GENERAL EXPENDITURES,OTHER SERVICES,SUBTOTAL,   ,   ,   ,   ,   ,   ,OTHER SERVICES TOTALS:,27079.12,2020
,2020 OFFICE OF THE MINORITY WHIP,3,GENERAL EXPENDITURES,SUPPLIES AND MATERIALS,DETAIL,2020-07-01,AP,1308152,B&H PHOTO-VIDEO,2020-05-15,2020-05-15,OFFICE SUPPLIES (OUTSIDE),538.6,2020
,2020 OFFICE OF THE MINORITY WHIP,3,GENERAL EXPENDITURES,SUPPLIES AND MATERIALS,DETAIL,2020-07-16,AP,1307768,QUENCH USA LLC,2020-07-01,2020-07-31,WATER,44.52,2020
,2020 OFFICE OF THE MINORITY WHIP,3,GENERAL EXPENDITURES,SUPPLIES AND MATERIALS,DETAIL,2020-07-17,AP,1301982,CITI PCARD-AMZN Mktp US M797V4NO2,2020-05-18,2020-05-18,OFFICE SUPPLIES (OUTSIDE),19.95,2020
,2020 OFFICE OF THE MINORITY WHIP,3,GENERAL EXPENDITURES,SUPPLIES AND MATERIALS,DETAIL,2020-07-17,AP,1301982,CITI PCARD-APPLE.COM/BILL,2020-04-30,2020-05-29,SOFTWARE  LESS THAN  $500,3.17,2020
,2020 OFFICE OF THE MINORITY WHIP,3,GENERAL EXPENDITURES,SUPPLIES AND MATERIALS,DETAIL,2020-07-17,AP,1301982,CITI PCARD-APPLE.COM/BILL,2020-05-24,2020-06-23,SOFTWARE  LESS THAN  $500,3.17,2020
,2020 OFFICE OF THE MINORITY WHIP,3,GENERAL EXPENDITURES,SUPPLIES AND MATERIALS,DETAIL,2020-07-17,AP,1301982,CITI PCARD-APPLE.COM/US,2020-05-04,2020-05-04,OFFICE SUPPLIES (OUTSIDE),369.94,2020
,2020 OFFICE OF THE MINORITY WHIP,3,GENERAL EXPENDITURES,SUPPLIES AND MATERIALS,DETAIL,2020-07-17,AP,1301982,CITI PCARD-B&H PHOTO 800-606-6969,2020-05-14,2020-05-14,OFFICE SUPPLIES (OUTSIDE),142.14,2020
,2020 OFFICE OF THE MINORITY WHIP,3,GENERAL EXPENDITURES,SUPPLIES AND MATERIALS,DETAIL,2020-07-17,AP,1301982,CITI PCARD-Dropbox 7TJBQ1HCQPKL,2020-04-24,2021-01-02,SOFTWARE  LESS THAN  $500,119.88,2020
,2020 OFFICE OF THE MINORITY WHIP,3,GENERAL EXPENDITURES,SUPPLIES AND MATERIALS,DETAIL,2020-07-17,AP,1301982,CITI PCARD-GOOGLE  Google Storage,2020-05-14,2020-06-13,SOFTWARE  LESS THAN  $500,10.59,2020
,2020 OFFICE OF THE MINORITY WHIP,3,GENERAL EXPENDITURES,SUPPLIES AND MATERIALS,DETAIL,2020-07-17,AP,1301982,CITI PCARD-LEGISTORM LLC,2020-05-13,2020-06-12,PUBLICATIONS/REFERENCE MAT'L,11.61,2020
,2020 OFFICE OF THE MINORITY WHIP,3,GENERAL EXPENDITURES,SUPPLIES AND MATERIALS,DETAIL,2020-07-17,AP,1301982,CITI PCARD-STK Shutterstock,2020-05-13,2020-06-12,PUBLICATIONS/REFERENCE MAT'L,49,2020
,2020 OFFICE OF THE MINORITY WHIP,3,GENERAL EXPENDITURES,SUPPLIES AND MATERIALS,DETAIL,2020-07-17,AP,1301982,CITI PCARD-STK Shutterstock,2020-05-26,2020-06-26,PUBLICATIONS/REFERENCE MAT'L,169,2020
,2020 OFFICE OF THE MINORITY WHIP,3,GENERAL EXPENDITURES,SUPPLIES AND MATERIALS,DETAIL,2020-07-17,AP,1301982,CITI PCARD-SUB WASHPOST 015043157,2020-05-18,2020-06-17,PUBLICATIONS/REFERENCE MAT'L,10.6,2020
,2020 OFFICE OF THE MINORITY WHIP,3,GENERAL EXPENDITURES,SUPPLIES AND MATERIALS,DETAIL,2020-07-21,AP,1312133,CITI PCARD-AMZN Mktp US MS8HG4PU2,2020-06-22,2020-06-22,OFFICE SUPPLIES (OUTSIDE),54.95,2020
,2020 OFFICE OF THE MINORITY WHIP,3,GENERAL EXPENDITURES,SUPPLIES AND MATERIALS,DETAIL,2020-07-21,AP,1312133,CITI PCARD-APPLE.COM/BILL,2020-06-23,2020-07-22,SOFTWARE  LESS THAN  $500,3.17,2020
,2020 OFFICE OF THE MINORITY WHIP,3,GENERAL EXPENDITURES,SUPPLIES AND MATERIALS,DETAIL,2020-07-21,AP,1312133,CITI PCARD-APPLE.COM/BILL,2020-06-30,2020-07-29,SOFTWARE  LESS THAN  $500,3.17,2020
,2020 OFFICE OF THE MINORITY WHIP,3,GENERAL EXPENDITURES,SUPPLIES AND MATERIALS,DETAIL,2020-07-21,AP,1312133,CITI PCARD-APPLE.COM/US,2020-06-09,2020-06-09,OFFICE SUPPLIES (OUTSIDE),316.94,2020
,2020 OFFICE OF THE MINORITY WHIP,3,GENERAL EXPENDITURES,SUPPLIES AND MATERIALS,DETAIL,2020-07-21,AP,1312133,CITI PCARD-Amazon.com MS05W2771,2020-06-23,2020-06-23,OFFICE SUPPLIES (OUTSIDE),20,2020
,2020 OFFICE OF THE MINORITY WHIP,3,GENERAL EXPENDITURES,SUPPLIES AND MATERIALS,DETAIL,2020-07-21,AP,1312133,CITI PCARD-Amazon.com MS97H36B0,2020-06-23,2020-06-23,OFFICE SUPPLIES (OUTSIDE),19,2020
,2020 OFFICE OF THE MINORITY WHIP,3,GENERAL EXPENDITURES,SUPPLIES AND MATERIALS,DETAIL,2020-07-21,AP,1312133,CITI PCARD-GOOGLE GOOGLE STORAGE,2020-06-13,2020-07-12,SOFTWARE  LESS THAN  $500,10.59,2020
,2020 OFFICE OF THE MINORITY WHIP,3,GENERAL EXPENDITURES,SUPPLIES AND MATERIALS,DETAIL,2020-07-21,AP,1312133,CITI PCARD-LEGISTORM LLC,2020-06-13,2020-07-12,PUBLICATIONS/REFERENCE MAT'L,11.61,2020
,2020 OFFICE OF THE MINORITY WHIP,3,GENERAL EXPENDITURES,SUPPLIES AND MATERIALS,DETAIL,2020-07-21,AP,1312133,CITI PCARD-STK Shutterstock,2020-06-05,2020-07-04,PUBLICATIONS/REFERENCE MAT'L,49,2020
,2020 OFFICE OF THE MINORITY WHIP,3,GENERAL EXPENDITURES,SUPPLIES AND MATERIALS,DETAIL,2020-07-21,AP,1312133,CITI PCARD-STK Shutterstock,2020-06-13,2020-07-12,PUBLICATIONS/REFERENCE MAT'L,98,2020
,2020 OFFICE OF THE MINORITY WHIP,3,GENERAL EXPENDITURES,SUPPLIES AND MATERIALS,DETAIL,2020-07-21,AP,1312133,CITI PCARD-SUB WASHPOST 015043157,2020-06-25,2020-07-24,PUBLICATIONS/REFERENCE MAT'L,10.6,2020
,2020 OFFICE OF THE MINORITY WHIP,3,GENERAL EXPENDITURES,SUPPLIES AND MATERIALS,DETAIL,2020-07-31,GL,RMS0099738, ,2020-07-01,2020-07-31,OFFICE SUPPLY (TRANSFER),45.96,2020
,2020 OFFICE OF THE MINORITY WHIP,3,GENERAL EXPENDITURES,SUPPLIES AND MATERIALS,DETAIL,2020-08-05,AP,1318033,CRITICAL MENTION,2020-07-03,2021-07-02,PUBLICATIONS/REFERENCE MAT'L,1500,2020
,2020 OFFICE OF THE MINORITY WHIP,3,GENERAL EXPENDITURES,SUPPLIES AND MATERIALS,DETAIL,2020-08-05,AP,1319031,QUENCH USA LLC,2020-08-01,2020-08-31,WATER,44.52,2020
,2020 OFFICE OF THE MINORITY WHIP,3,GENERAL EXPENDITURES,SUPPLIES AND MATERIALS,DETAIL,2020-08-06,AP,1318090,COMER II MICHAEL D.,2020-05-29,2021-05-29,SOFTWARE  LESS THAN  $500,144,2020
,2020 OFFICE OF THE MINORITY WHIP,3,GENERAL EXPENDITURES,SUPPLIES AND MATERIALS,DETAIL,2020-08-06,AP,1318090,COMER II MICHAEL D.,2020-06-24,2020-07-23,SOFTWARE  LESS THAN  $500,49,2020
,2020 OFFICE OF THE MINORITY WHIP,3,GENERAL EXPENDITURES,SUPPLIES AND MATERIALS,DETAIL,2020-08-06,AP,1318090,COMER II MICHAEL D.,2020-07-24,2020-08-23,SOFTWARE  LESS THAN  $500,49,2020
,2020 OFFICE OF THE MINORITY WHIP,3,GENERAL EXPENDITURES,SUPPLIES AND MATERIALS,DETAIL,2020-08-25,AP,1321853,HORTON BRETT H.,2020-05-13,2020-05-13,FOOD & BEVERAGE,24.29,2020
,2020 OFFICE OF THE MINORITY WHIP,3,GENERAL EXPENDITURES,SUPPLIES AND MATERIALS,DETAIL,2020-08-25,AP,1321853,HORTON BRETT H.,2020-03-21,2020-03-21,OFFICE SUPPLIES (OUTSIDE),238.59,2020
,2020 OFFICE OF THE MINORITY WHIP,3,GENERAL EXPENDITURES,SUPPLIES AND MATERIALS,DETAIL,2020-08-25,AP,1321853,HORTON BRETT H.,2020-05-14,2020-05-14,OFFICE SUPPLIES (OUTSIDE),136.9,2020
,2020 OFFICE OF THE MINORITY WHIP,3,GENERAL EXPENDITURES,SUPPLIES AND MATERIALS,DETAIL,2020-08-25,AP,1321853,HORTON BRETT H.,2020-07-27,2020-07-27,OFFICE SUPPLIES (OUTSIDE),44.43,2020
,2020 OFFICE OF THE MINORITY WHIP,3,GENERAL EXPENDITURES,SUPPLIES AND MATERIALS,DETAIL,2020-08-26,AP,1326888,CITI PCARD-ADOBE CREATIVE CLOUD,2020-07-09,2021-07-08,SOFTWARE  LESS THAN  $500,635.87,2020
,2020 OFFICE OF THE MINORITY WHIP,3,GENERAL EXPENDITURES,SUPPLIES AND MATERIALS,DETAIL,2020-08-26,AP,1326888,CITI PCARD-AMAZON.COM MV24J26W1 AMZN,2020-07-21,2020-07-21,OFFICE SUPPLIES (OUTSIDE),34.18,2020
,2020 OFFICE OF THE MINORITY WHIP,3,GENERAL EXPENDITURES,SUPPLIES AND MATERIALS,DETAIL,2020-08-26,AP,1326888,CITI PCARD-APPLE.COM/BILL,2020-06-29,2020-07-28,SOFTWARE  LESS THAN  $500,3.17,2020
,2020 OFFICE OF THE MINORITY WHIP,3,GENERAL EXPENDITURES,SUPPLIES AND MATERIALS,DETAIL,2020-08-26,AP,1326888,CITI PCARD-APPLE.COM/BILL,2020-07-01,2020-07-31,SOFTWARE  LESS THAN  $500,3.17,2020
,2020 OFFICE OF THE MINORITY WHIP,3,GENERAL EXPENDITURES,SUPPLIES AND MATERIALS,DETAIL,2020-08-26,AP,1326888,CITI PCARD-APPLE.COM/BILL,2020-07-23,2020-08-22,SOFTWARE  LESS THAN  $500,3.17,2020
,2020 OFFICE OF THE MINORITY WHIP,3,GENERAL EXPENDITURES,SUPPLIES AND MATERIALS,DETAIL,2020-08-26,AP,1326888,CITI PCARD-Amazon.com MV6W28DY1,2020-07-21,2020-07-21,OFFICE SUPPLIES (OUTSIDE),23.29,2020
,2020 OFFICE OF THE MINORITY WHIP,3,GENERAL EXPENDITURES,SUPPLIES AND MATERIALS,DETAIL,2020-08-26,AP,1326888,CITI PCARD-D J WALL-ST-JOURNAL,2020-07-20,2020-12-20,PUBLICATIONS/REFERENCE MAT'L,123.99,2020
,2020 OFFICE OF THE MINORITY WHIP,3,GENERAL EXPENDITURES,SUPPLIES AND MATERIALS,DETAIL,2020-08-26,AP,1326888,CITI PCARD-GOOGLE  Google Storage,2020-07-14,2020-08-13,SOFTWARE  LESS THAN  $500,10.59,2020
,2020 OFFICE OF THE MINORITY WHIP,3,GENERAL EXPENDITURES,SUPPLIES AND MATERIALS,DETAIL,2020-08-26,AP,1326888,CITI PCARD-LEGISTORM LLC,2020-07-13,2020-08-12,PUBLICATIONS/REFERENCE MAT'L,11.61,2020
,2020 OFFICE OF THE MINORITY WHIP,3,GENERAL EXPENDITURES,SUPPLIES AND MATERIALS,DETAIL,2020-08-26,AP,1326888,CITI PCARD-STK Shutterstock,2020-07-06,2021-07-05,SOFTWARE  LESS THAN  $500,169,2020
,2020 OFFICE OF THE MINORITY WHIP,3,GENERAL EXPENDITURES,SUPPLIES AND MATERIALS,DETAIL,2020-08-26,AP,1326888,CITI PCARD-STK Shutterstock,2020-06-26,2021-06-25,PUBLICATIONS/REFERENCE MAT'L,169,2020
,2020 OFFICE OF THE MINORITY WHIP,3,GENERAL EXPENDITURES,SUPPLIES AND MATERIALS,DETAIL,2020-08-26,AP,1326888,CITI PCARD-STK Shutterstock,2020-07-01,2020-07-01,PUBLICATIONS/REFERENCE MAT'L,49,2020
,2020 OFFICE OF THE MINORITY WHIP,3,GENERAL EXPENDITURES,SUPPLIES AND MATERIALS,DETAIL,2020-08-26,AP,1326888,CITI PCARD-STK Shutterstock,2020-07-02,2020-07-02,PUBLICATIONS/REFERENCE MAT'L,237,2020
,2020 OFFICE OF THE MINORITY WHIP,3,GENERAL EXPENDITURES,SUPPLIES AND MATERIALS,DETAIL,2020-08-26,AP,1326888,CITI PCARD-SUB WASHPOST 015043157,2020-07-23,2020-08-22,PUBLICATIONS/REFERENCE MAT'L,10.6,2020
,2020 OFFICE OF THE MINORITY WHIP,3,GENERAL EXPENDITURES,SUPPLIES AND MATERIALS,DETAIL,2020-09-17,AP,1328746,QUENCH USA LLC,2020-09-01,2020-09-30,WATER,44.52,2020
,2020 OFFICE OF THE MINORITY WHIP,3,GENERAL EXPENDITURES,SUPPLIES AND MATERIALS,DETAIL,2020-09-17,AP,1329220,QUENCH USA LLC,2020-06-01,2020-06-30,WATER,44.52,2020
,2020 OFFICE OF THE MINORITY WHIP,3,GENERAL EXPENDITURES,SUPPLIES AND MATERIALS,DETAIL,2020-09-21,AP,1336084,CITI PCARD-APPLE.COM/BILL,2020-07-29,2020-08-28,SOFTWARE  LESS THAN  $500,3.17,2020
,2020 OFFICE OF THE MINORITY WHIP,3,GENERAL EXPENDITURES,SUPPLIES AND MATERIALS,DETAIL,2020-09-21,AP,1336084,CITI PCARD-APPLE.COM/BILL,2020-07-30,2020-08-29,SOFTWARE  LESS THAN  $500,3.17,2020
,2020 OFFICE OF THE MINORITY WHIP,3,GENERAL EXPENDITURES,SUPPLIES AND MATERIALS,DETAIL,2020-09-21,AP,1336084,CITI PCARD-APPLE.COM/BILL,2020-08-23,2020-09-22,SOFTWARE  LESS THAN  $500,3.17,2020
,2020 OFFICE OF THE MINORITY WHIP,3,GENERAL EXPENDITURES,SUPPLIES AND MATERIALS,DETAIL,2020-09-21,AP,1336084,CITI PCARD-GOOGLE  Google Storage,2020-08-14,2020-09-13,SOFTWARE  LESS THAN  $500,10.59,2020
,2020 OFFICE OF THE MINORITY WHIP,3,GENERAL EXPENDITURES,SUPPLIES AND MATERIALS,DETAIL,2020-09-21,AP,1336084,CITI PCARD-LEGISTORM LLC,2020-08-13,2020-09-12,PUBLICATIONS/REFERENCE MAT'L,11.61,2020
,2020 OFFICE OF THE MINORITY WHIP,3,GENERAL EXPENDITURES,SUPPLIES AND MATERIALS,DETAIL,2020-09-21,AP,1336084,CITI PCARD-STK Shutterstock,2020-08-23,2020-09-22,PUBLICATIONS/REFERENCE MAT'L,79,2020
,2020 OFFICE OF THE MINORITY WHIP,3,GENERAL EXPENDITURES,SUPPLIES AND MATERIALS,DETAIL,2020-09-21,AP,1336084,CITI PCARD-STK Shutterstock,2020-08-26,2020-09-25,PUBLICATIONS/REFERENCE MAT'L,169,2020
,2020 OFFICE OF THE MINORITY WHIP,3,GENERAL EXPENDITURES,SUPPLIES AND MATERIALS,DETAIL,2020-09-21,AP,1336084,CITI PCARD-SUB WASHPOST 015043157,2020-08-20,2020-09-19,PUBLICATIONS/REFERENCE MAT'L,10.6,2020
,2020 OFFICE OF THE MINORITY WHIP,3,GENERAL EXPENDITURES,SUPPLIES AND MATERIALS,DETAIL,2020-09-29,AP,1338688,CDW GOVERNMENT LLC,2020-09-03,2020-09-03,OFFICE SUPPLIES (OUTSIDE) QTY - 2,446.84,2020
,2020 OFFICE OF THE MINORITY WHIP,3,GENERAL EXPENDITURES,SUPPLIES AND MATERIALS,DETAIL,2020-09-30,GL,RMS0101251, ,2020-09-01,2020-09-30,OFFICE SUPPLY (TRANSFER),87.47,2020
,2020 OFFICE OF THE MINORITY WHIP,3,GENERAL EXPENDITURES,SUPPLIES AND MATERIALS,SUBTOTAL,   ,   ,   ,   ,   ,   ,SUPPLIES AND MATERIALS TOTALS:,6763.19,2020
,2020 OFFICE OF THE MINORITY WHIP,3,GENERAL EXPENDITURES,EQUIPMENT,DETAIL,2020-07-31,GL,MNT0099641, ,2020-07-01,2020-07-31,MAINTENANCE / REPAIRS,196,2020
,2020 OFFICE OF THE MINORITY WHIP,3,GENERAL EXPENDITURES,EQUIPMENT,DETAIL,2020-08-31,GL,MNT0100341, ,2020-08-01,2020-08-31,MAINTENANCE / REPAIRS,196,2020
,2020 OFFICE OF THE MINORITY WHIP,3,GENERAL EXPENDITURES,EQUIPMENT,DETAIL,2020-09-30,GL,MNT0101165, ,2020-09-01,2020-09-30,MAINTENANCE / REPAIRS,196,2020
,2020 OFFICE OF THE MINORITY WHIP,3,GENERAL EXPENDITURES,EQUIPMENT,SUBTOTAL,   ,   ,   ,   ,   ,   ,EQUIPMENT TOTALS:,588,2020
,2020 OFFICE OF THE MINORITY WHIP,3,GENERAL EXPENDITURES,EQUIPMENT,SUBTOTAL,   ,   ,   ,   ,   ,   ,GENERAL EXPENDITURES TOTALS:,606541.37,2020
,2020 OFFICE OF THE MINORITY WHIP,3,GENERAL EXPENDITURES,EQUIPMENT,GRAND TOTAL FOR ORGANIZATION,   ,   ,   ,   ,   ,   ,OFFICE TOTALS: ,606541.37,2020
,2019 OFFICE OF THE MINORITY WHIP,3,GENERAL EXPENDITURES,SUPPLIES AND MATERIALS,DETAIL,2020-07-16,AP,1306686,OFFICE DEPOT INC,2019-11-20,2019-11-20,FOOD & BEVERAGE,413.01,2020
,2019 OFFICE OF THE MINORITY WHIP,3,GENERAL EXPENDITURES,SUPPLIES AND MATERIALS,DETAIL,2020-07-16,AP,1306690,OFFICE DEPOT INC,2019-11-20,2019-11-20,OFFICE SUPPLIES (OUTSIDE),98.56,2020
,2019 OFFICE OF THE MINORITY WHIP,3,GENERAL EXPENDITURES,SUPPLIES AND MATERIALS,DETAIL,2020-07-17,AP,1306680,OFFICE DEPOT INC,2019-11-20,2019-11-20,FOOD & BEVERAGE,182.4,2020
,2019 OFFICE OF THE MINORITY WHIP,3,GENERAL EXPENDITURES,SUPPLIES AND MATERIALS,DETAIL,2020-07-24,AP,1306685,OFFICE DEPOT INC,2019-11-20,2019-11-20,FOOD & BEVERAGE,121.86,2020
,2019 OFFICE OF THE MINORITY WHIP,3,GENERAL EXPENDITURES,SUPPLIES AND MATERIALS,DETAIL,2020-07-24,AP,1306685,OFFICE DEPOT INC,2019-11-20,2019-11-20,OFFICE SUPPLIES (OUTSIDE),25.84,2020
,2019 OFFICE OF THE MINORITY WHIP,3,GENERAL EXPENDITURES,SUPPLIES AND MATERIALS,SUBTOTAL,   ,   ,   ,   ,   ,   ,SUPPLIES AND MATERIALS TOTALS:,841.67,2020
,2019 OFFICE OF THE MINORITY WHIP,3,GENERAL EXPENDITURES,SUPPLIES AND MATERIALS,SUBTOTAL,   ,   ,   ,   ,   ,   ,GENERAL EXPENDITURES TOTALS:,841.67,2020
,2019 OFFICE OF THE MINORITY WHIP,3,GENERAL EXPENDITURES,SUPPLIES AND MATERIALS,GRAND TOTAL FOR ORGANIZATION,   ,   ,   ,   ,   ,   ,OFFICE TOTALS: ,841.67,2020
,2020 DEMOCRATIC CAUCUS,3,GENERAL EXPENDITURES,PERSONNEL COMPENSATION,DETAIL,   ,   ,   ,ARAYA MESERET M,2020-07-01,2020-09-30,POLICY ADVISOR,12500.01,2020
,2020 DEMOCRATIC CAUCUS,3,GENERAL EXPENDITURES,PERSONNEL COMPENSATION,DETAIL,   ,   ,   ,BRAGIN GIDEON,2020-07-01,2020-09-30,EXECUTIVE DIRECTOR,39999.99,2020
,2020 DEMOCRATIC CAUCUS,3,GENERAL EXPENDITURES,PERSONNEL COMPENSATION,DETAIL,   ,   ,   ,BYON FIONA K,2020-07-01,2020-07-03,DIGITAL MANAGER AND SOCIAL MED,375,2020
,2020 DEMOCRATIC CAUCUS,3,GENERAL EXPENDITURES,PERSONNEL COMPENSATION,DETAIL,   ,   ,   ,CARRILLO MANUEL J,2020-07-01,2020-09-30,DIRECTOR OF OPERATIONS,27500.01,2020
,2020 DEMOCRATIC CAUCUS,3,GENERAL EXPENDITURES,PERSONNEL COMPENSATION,DETAIL,   ,   ,   ,DAWSON EARNESTINE E,2020-07-01,2020-09-30,DIGITAL DIRECTOR,15000,2020
,2020 DEMOCRATIC CAUCUS,3,GENERAL EXPENDITURES,PERSONNEL COMPENSATION,DETAIL,   ,   ,   ,DESOWITZ-LEIBELL ZACHARY J,2020-07-01,2020-09-30,DEPUTY PRESS SECRETARY,16250.01,2020
,2020 DEMOCRATIC CAUCUS,3,GENERAL EXPENDITURES,PERSONNEL COMPENSATION,DETAIL,   ,   ,   ,FULFS DANIELLE S,2020-07-01,2020-09-30,VC SENIOR LEGISLATIVE ASSISTAN,1500,2020
,2020 DEMOCRATIC CAUCUS,3,GENERAL EXPENDITURES,PERSONNEL COMPENSATION,DETAIL,   ,   ,   ,HAMILTON WENDY D,2020-07-01,2020-09-30,OUTREACH ASSOCIATE,14499.99,2020
,2020 DEMOCRATIC CAUCUS,3,GENERAL EXPENDITURES,PERSONNEL COMPENSATION,DETAIL,   ,   ,   ,HARDAWAY MICHAEL D.,2020-07-01,2020-09-30,COMMUNICATIONS DIRECTOR,31250.01,2020
,2020 DEMOCRATIC CAUCUS,3,GENERAL EXPENDITURES,PERSONNEL COMPENSATION,DETAIL,   ,   ,   ,HERNANDEZ ITZEL N,2020-07-01,2020-09-30,CAUCUS ASSISTANT,9999.99,2020
,2020 DEMOCRATIC CAUCUS,3,GENERAL EXPENDITURES,PERSONNEL COMPENSATION,DETAIL,   ,   ,   ,HSU YVONNE F,2020-07-01,2020-07-10,VICE CHAIR SENIOR ADVISOR,222.22,2020
,2020 DEMOCRATIC CAUCUS,3,GENERAL EXPENDITURES,PERSONNEL COMPENSATION,DETAIL,   ,   ,   ,JACKSON TASIA,2020-07-01,2020-09-30,CHIEF OF STAFF,20895,2020
,2020 DEMOCRATIC CAUCUS,3,GENERAL EXPENDITURES,PERSONNEL COMPENSATION,DETAIL,   ,   ,   ,LIM WOOYOUNG,2020-08-30,2020-09-30,LEGISLATIVE ASSISTANT,516.67,2020
,2020 DEMOCRATIC CAUCUS,3,GENERAL EXPENDITURES,PERSONNEL COMPENSATION,DETAIL,   ,   ,   ,MORRISON MARIAH A,2020-08-17,2020-09-30,DIGITAL ASSISTANT,5500,2020
,2020 DEMOCRATIC CAUCUS,3,GENERAL EXPENDITURES,PERSONNEL COMPENSATION,DETAIL,   ,   ,   ,NELSON JACOB A,2020-07-01,2020-09-30,POLICY ADVISOR,9999.99,2020
,2020 DEMOCRATIC CAUCUS,3,GENERAL EXPENDITURES,PERSONNEL COMPENSATION,DETAIL,   ,   ,   ,NORIEGA-MAY EMILY J,2020-07-01,2020-09-30,DIRECTOR OF MEMBER SERVICES,27500.01,2020
,2020 DEMOCRATIC CAUCUS,3,GENERAL EXPENDITURES,PERSONNEL COMPENSATION,DETAIL,   ,   ,   ,REYES-STONE TROIA,2020-07-01,2020-08-21,PRESS ASSISTANT,4958.34,2020
,2020 DEMOCRATIC CAUCUS,3,GENERAL EXPENDITURES,PERSONNEL COMPENSATION,DETAIL,   ,   ,   ,ROBINSON TEJAH R,2020-07-01,2020-09-30,DIGITAL ASSISTANT,8750.01,2020
,2020 DEMOCRATIC CAUCUS,3,GENERAL EXPENDITURES,PERSONNEL COMPENSATION,DETAIL,   ,   ,   ,RUDD DIANA,2020-07-01,2020-09-30,VC-DIRECTOR OF MEMBER SERVICES,22500,2020
,2020 DEMOCRATIC CAUCUS,3,GENERAL EXPENDITURES,PERSONNEL COMPENSATION,DETAIL,   ,   ,   ,RUIZ XENIA F,2020-07-01,2020-09-30,OUTREACH DIRECTOR OF THE VICE,22500,2020
,2020 DEMOCRATIC CAUCUS,3,GENERAL EXPENDITURES,PERSONNEL COMPENSATION,DETAIL,   ,   ,   ,SACHSE ANDREW M,2020-07-01,2020-09-30,DEP DIR OF MEMBER SERVICES,19312.5,2020
,2020 DEMOCRATIC CAUCUS,3,GENERAL EXPENDITURES,PERSONNEL COMPENSATION,DETAIL,   ,   ,   ,SCHEUER ALEXANDER J,2020-07-01,2020-09-30,OPERATIONS AND OUTREACH COORDI,12500.01,2020
,2020 DEMOCRATIC CAUCUS,3,GENERAL EXPENDITURES,PERSONNEL COMPENSATION,DETAIL,   ,   ,   ,STEPHENSON CHRISTIANA E,2020-07-01,2020-09-30,PRESS SECRETARY,25061.25,2020
,2020 DEMOCRATIC CAUCUS,3,GENERAL EXPENDITURES,PERSONNEL COMPENSATION,DETAIL,   ,   ,   ,STICKNEY LAKECIA N,2020-07-01,2020-09-30,POLICY DIRECTOR,30000,2020
,2020 DEMOCRATIC CAUCUS,3,GENERAL EXPENDITURES,PERSONNEL COMPENSATION,DETAIL,   ,   ,   ,WILLIAMS WAYNE K,2020-07-01,2020-09-30,SENIOR POLICY ADVISOR,24462.51,2020
,2020 DEMOCRATIC CAUCUS,3,GENERAL EXPENDITURES,PERSONNEL COMPENSATION,SUBTOTAL,   ,   ,   ,   ,   ,   ,PERSONNEL COMPENSATION TOTALS:,403553.52,2020
,2020 DEMOCRATIC CAUCUS,3,GENERAL EXPENDITURES,TRAVEL,DETAIL,2020-07-10,AP,1310403,DAWSON EARNESTINE E.,2020-04-08,2020-04-13,TAXI/PARKING/TOLLS,75.61,2020
,2020 DEMOCRATIC CAUCUS,3,GENERAL EXPENDITURES,TRAVEL,DETAIL,2020-07-13,AP,1310519,SCHEUER ALEXANDER J.,2020-06-30,2020-06-30,TAXI/PARKING/TOLLS,27.2,2020
,2020 DEMOCRATIC CAUCUS,3,GENERAL EXPENDITURES,TRAVEL,DETAIL,2020-08-11,AP,1321492,CITIBANK GOV CARD SERVICE,2020-06-01,2020-06-01,TAXI/PARKING/TOLLS,23.27,2020
,2020 DEMOCRATIC CAUCUS,3,GENERAL EXPENDITURES,TRAVEL,DETAIL,2020-08-11,AP,1321492,CITIBANK GOV CARD SERVICE,2020-06-08,2020-06-08,TAXI/PARKING/TOLLS,12.88,2020
,2020 DEMOCRATIC CAUCUS,3,GENERAL EXPENDITURES,TRAVEL,DETAIL,2020-08-11,AP,1321492,CITIBANK GOV CARD SERVICE,2020-06-11,2020-06-11,TAXI/PARKING/TOLLS,36.74,2020
,2020 DEMOCRATIC CAUCUS,3,GENERAL EXPENDITURES,TRAVEL,DETAIL,2020-08-11,AP,1321492,CITIBANK GOV CARD SERVICE,2020-06-15,2020-06-15,TAXI/PARKING/TOLLS,39.99,2020
,2020 DEMOCRATIC CAUCUS,3,GENERAL EXPENDITURES,TRAVEL,DETAIL,2020-08-11,AP,1321492,CITIBANK GOV CARD SERVICE,2020-06-16,2020-06-16,TAXI/PARKING/TOLLS,31.18,2020
,2020 DEMOCRATIC CAUCUS,3,GENERAL EXPENDITURES,TRAVEL,DETAIL,2020-08-11,AP,1321492,CITIBANK GOV CARD SERVICE,2020-06-18,2020-06-18,TAXI/PARKING/TOLLS,28.91,2020
,2020 DEMOCRATIC CAUCUS,3,GENERAL EXPENDITURES,TRAVEL,DETAIL,2020-08-11,AP,1321492,CITIBANK GOV CARD SERVICE,2020-06-22,2020-06-22,TAXI/PARKING/TOLLS,8.83,2020
,2020 DEMOCRATIC CAUCUS,3,GENERAL EXPENDITURES,TRAVEL,DETAIL,2020-08-11,AP,1321729,CITIBANK GOV CARD SERVICE,2020-06-01,2020-06-01,TAXI/PARKING/TOLLS,16.42,2020
,2020 DEMOCRATIC CAUCUS,3,GENERAL EXPENDITURES,TRAVEL,DETAIL,2020-08-11,AP,1321729,CITIBANK GOV CARD SERVICE,2020-06-22,2020-06-22,TAXI/PARKING/TOLLS,9.07,2020
,2020 DEMOCRATIC CAUCUS,3,GENERAL EXPENDITURES,TRAVEL,DETAIL,2020-08-11,AP,1321729,CITIBANK GOV CARD SERVICE,2020-06-23,2020-06-23,TAXI/PARKING/TOLLS,17.06,2020
,2020 DEMOCRATIC CAUCUS,3,GENERAL EXPENDITURES,TRAVEL,DETAIL,2020-08-11,AP,1321729,CITIBANK GOV CARD SERVICE,2020-06-24,2020-06-24,TAXI/PARKING/TOLLS,38.35,2020
,2020 DEMOCRATIC CAUCUS,3,GENERAL EXPENDITURES,TRAVEL,DETAIL,2020-09-21,AP,1336996,CITIBANK GOV CARD SERVICE,2020-06-29,2020-06-29,TAXI/PARKING/TOLLS,41.39,2020
,2020 DEMOCRATIC CAUCUS,3,GENERAL EXPENDITURES,TRAVEL,DETAIL,2020-09-21,AP,1336996,CITIBANK GOV CARD SERVICE,2020-07-03,2020-07-03,TAXI/PARKING/TOLLS,46.25,2020
,2020 DEMOCRATIC CAUCUS,3,GENERAL EXPENDITURES,TRAVEL,DETAIL,2020-09-21,AP,1336996,CITIBANK GOV CARD SERVICE,2020-07-06,2020-07-06,TAXI/PARKING/TOLLS,24.03,2020
,2020 DEMOCRATIC CAUCUS,3,GENERAL EXPENDITURES,TRAVEL,DETAIL,2020-09-21,AP,1336996,CITIBANK GOV CARD SERVICE,2020-07-07,2020-07-07,TAXI/PARKING/TOLLS,43.84,2020
,2020 DEMOCRATIC CAUCUS,3,GENERAL EXPENDITURES,TRAVEL,DETAIL,2020-09-21,AP,1336996,CITIBANK GOV CARD SERVICE,2020-07-08,2020-07-08,TAXI/PARKING/TOLLS,15.29,2020
,2020 DEMOCRATIC CAUCUS,3,GENERAL EXPENDITURES,TRAVEL,DETAIL,2020-09-21,AP,1337008,CITIBANK GOV CARD SERVICE,2020-07-14,2020-07-14,TAXI/PARKING/TOLLS,70.49,2020
,2020 DEMOCRATIC CAUCUS,3,GENERAL EXPENDITURES,TRAVEL,DETAIL,2020-09-21,AP,1337008,CITIBANK GOV CARD SERVICE,2020-07-15,2020-07-15,TAXI/PARKING/TOLLS,36.68,2020
,2020 DEMOCRATIC CAUCUS,3,GENERAL EXPENDITURES,TRAVEL,DETAIL,2020-09-21,AP,1337008,CITIBANK GOV CARD SERVICE,2020-07-16,2020-07-16,TAXI/PARKING/TOLLS,55.93,2020
,2020 DEMOCRATIC CAUCUS,3,GENERAL EXPENDITURES,TRAVEL,DETAIL,2020-09-21,AP,1337008,CITIBANK GOV CARD SERVICE,2020-07-17,2020-07-17,TAXI/PARKING/TOLLS,54.64,2020
,2020 DEMOCRATIC CAUCUS,3,GENERAL EXPENDITURES,TRAVEL,DETAIL,2020-09-21,AP,1337008,CITIBANK GOV CARD SERVICE,2020-07-21,2020-07-21,TAXI/PARKING/TOLLS,116.54,2020
,2020 DEMOCRATIC CAUCUS,3,GENERAL EXPENDITURES,TRAVEL,DETAIL,2020-09-21,AP,1337008,CITIBANK GOV CARD SERVICE,2020-07-22,2020-07-22,TAXI/PARKING/TOLLS,28.07,2020
,2020 DEMOCRATIC CAUCUS,3,GENERAL EXPENDITURES,TRAVEL,DETAIL,2020-09-22,AP,1337014,CITIBANK GOV CARD SERVICE,2020-08-08,2020-08-08,TAXI/PARKING/TOLLS,17.95,2020
,2020 DEMOCRATIC CAUCUS,3,GENERAL EXPENDITURES,TRAVEL,DETAIL,2020-09-22,AP,1337014,CITIBANK GOV CARD SERVICE,2020-08-10,2020-08-10,TAXI/PARKING/TOLLS,97,2020
,2020 DEMOCRATIC CAUCUS,3,GENERAL EXPENDITURES,TRAVEL,DETAIL,2020-09-22,AP,1337014,CITIBANK GOV CARD SERVICE,2020-08-12,2020-08-12,TAXI/PARKING/TOLLS,32.41,2020
,2020 DEMOCRATIC CAUCUS,3,GENERAL EXPENDITURES,TRAVEL,DETAIL,2020-09-22,AP,1337015,CITIBANK GOV CARD SERVICE,2020-07-22,2020-07-22,TAXI/PARKING/TOLLS,31.33,2020
,2020 DEMOCRATIC CAUCUS,3,GENERAL EXPENDITURES,TRAVEL,DETAIL,2020-09-22,AP,1337015,CITIBANK GOV CARD SERVICE,2020-07-23,2020-07-23,TAXI/PARKING/TOLLS,34.31,2020
,2020 DEMOCRATIC CAUCUS,3,GENERAL EXPENDITURES,TRAVEL,DETAIL,2020-09-23,AP,1337013,CITIBANK GOV CARD SERVICE,2020-07-08,2020-07-08,TAXI/PARKING/TOLLS,15.16,2020
,2020 DEMOCRATIC CAUCUS,3,GENERAL EXPENDITURES,TRAVEL,DETAIL,2020-09-23,AP,1337013,CITIBANK GOV CARD SERVICE,2020-07-11,2020-07-11,TAXI/PARKING/TOLLS,41.4,2020
,2020 DEMOCRATIC CAUCUS,3,GENERAL EXPENDITURES,TRAVEL,DETAIL,2020-09-23,AP,1337013,CITIBANK GOV CARD SERVICE,2020-07-13,2020-07-13,TAXI/PARKING/TOLLS,48.71,2020
,2020 DEMOCRATIC CAUCUS,3,GENERAL EXPENDITURES,TRAVEL,DETAIL,2020-09-23,AP,1337013,CITIBANK GOV CARD SERVICE,2020-07-14,2020-07-14,TAXI/PARKING/TOLLS,22.77,2020
,2020 DEMOCRATIC CAUCUS,3,GENERAL EXPENDITURES,TRAVEL,DETAIL,2020-09-23,AP,1337013,CITIBANK GOV CARD SERVICE,2020-07-15,2020-07-15,TAXI/PARKING/TOLLS,22.81,2020
,2020 DEMOCRATIC CAUCUS,3,GENERAL EXPENDITURES,TRAVEL,DETAIL,2020-09-23,AP,1337013,CITIBANK GOV CARD SERVICE,2020-07-28,2020-07-28,TAXI/PARKING/TOLLS,77.47,2020
,2020 DEMOCRATIC CAUCUS,3,GENERAL EXPENDITURES,TRAVEL,DETAIL,2020-09-23,AP,1337013,CITIBANK GOV CARD SERVICE,2020-07-29,2020-07-29,TAXI/PARKING/TOLLS,30.1,2020
,2020 DEMOCRATIC CAUCUS,3,GENERAL EXPENDITURES,TRAVEL,DETAIL,2020-09-23,AP,1337013,CITIBANK GOV CARD SERVICE,2020-08-03,2020-08-03,TAXI/PARKING/TOLLS,29.99,2020
,2020 DEMOCRATIC CAUCUS,3,GENERAL EXPENDITURES,TRAVEL,DETAIL,2020-09-23,AP,1337013,CITIBANK GOV CARD SERVICE,2020-08-05,2020-08-05,TAXI/PARKING/TOLLS,41.07,2020
,2020 DEMOCRATIC CAUCUS,3,GENERAL EXPENDITURES,TRAVEL,DETAIL,2020-09-23,AP,1337013,CITIBANK GOV CARD SERVICE,2020-08-06,2020-08-06,TAXI/PARKING/TOLLS,29.28,2020
,2020 DEMOCRATIC CAUCUS,3,GENERAL EXPENDITURES,TRAVEL,DETAIL,2020-09-23,AP,1337013,CITIBANK GOV CARD SERVICE,2020-08-08,2020-08-08,TAXI/PARKING/TOLLS,15.31,2020
,2020 DEMOCRATIC CAUCUS,3,GENERAL EXPENDITURES,TRAVEL,DETAIL,2020-09-23,AP,1337013,CITIBANK GOV CARD SERVICE,2020-08-10,2020-08-10,TAXI/PARKING/TOLLS,8.31,2020
,2020 DEMOCRATIC CAUCUS,3,GENERAL EXPENDITURES,TRAVEL,SUBTOTAL,   ,   ,   ,   ,   ,   ,TRAVEL TOTALS:,1494.04,2020
,2020 DEMOCRATIC CAUCUS,3,GENERAL EXPENDITURES,RENT  COMMUNICATION  UTILITIES,DETAIL,2020-07-10,AP,1310258,LEIDOS DIGITAL SOLUTIONS INC,2020-05-21,2020-05-21,TELECOMSRV/EQ/TOLL CHARGE,1430,2020
,2020 DEMOCRATIC CAUCUS,3,GENERAL EXPENDITURES,RENT  COMMUNICATION  UTILITIES,DETAIL,2020-07-13,AP,1310248,LEIDOS DIGITAL SOLUTIONS INC,2020-05-18,2020-05-18,TELECOMSRV/EQ/TOLL CHARGE,715,2020
,2020 DEMOCRATIC CAUCUS,3,GENERAL EXPENDITURES,RENT  COMMUNICATION  UTILITIES,DETAIL,2020-07-13,AP,1310250,LEIDOS DIGITAL SOLUTIONS INC,2020-05-19,2020-05-19,TELECOMSRV/EQ/TOLL CHARGE,715,2020
,2020 DEMOCRATIC CAUCUS,3,GENERAL EXPENDITURES,RENT  COMMUNICATION  UTILITIES,DETAIL,2020-07-13,AP,1310269,LEIDOS DIGITAL SOLUTIONS INC,2020-05-27,2020-05-27,TELECOMSRV/EQ/TOLL CHARGE,1430,2020
,2020 DEMOCRATIC CAUCUS,3,GENERAL EXPENDITURES,RENT  COMMUNICATION  UTILITIES,DETAIL,2020-07-13,AP,1310277,LEIDOS DIGITAL SOLUTIONS INC,2020-06-01,2020-06-01,TELECOMSRV/EQ/TOLL CHARGE,1430,2020
,2020 DEMOCRATIC CAUCUS,3,GENERAL EXPENDITURES,RENT  COMMUNICATION  UTILITIES,DETAIL,2020-07-13,AP,1310283,LEIDOS DIGITAL SOLUTIONS INC,2020-06-04,2020-06-04,TELECOMSRV/EQ/TOLL CHARGE,1430,2020
,2020 DEMOCRATIC CAUCUS,3,GENERAL EXPENDITURES,RENT  COMMUNICATION  UTILITIES,DETAIL,2020-07-13,AP,1310286,LEIDOS DIGITAL SOLUTIONS INC,2020-06-08,2020-06-08,TELECOMSRV/EQ/TOLL CHARGE,1430,2020
,2020 DEMOCRATIC CAUCUS,3,GENERAL EXPENDITURES,RENT  COMMUNICATION  UTILITIES,DETAIL,2020-07-13,AP,1310308,LEIDOS DIGITAL SOLUTIONS INC,2020-06-15,2020-06-15,TELECOMSRV/EQ/TOLL CHARGE,1430,2020
,2020 DEMOCRATIC CAUCUS,3,GENERAL EXPENDITURES,RENT  COMMUNICATION  UTILITIES,DETAIL,2020-07-13,AP,1310312,LEIDOS DIGITAL SOLUTIONS INC,2020-06-16,2020-06-16,TELECOMSRV/EQ/TOLL CHARGE,715,2020
,2020 DEMOCRATIC CAUCUS,3,GENERAL EXPENDITURES,RENT  COMMUNICATION  UTILITIES,DETAIL,2020-07-13,AP,1310321,LEIDOS DIGITAL SOLUTIONS INC,2020-06-18,2020-06-18,TELECOMSRV/EQ/TOLL CHARGE,715,2020
,2020 DEMOCRATIC CAUCUS,3,GENERAL EXPENDITURES,RENT  COMMUNICATION  UTILITIES,DETAIL,2020-07-13,AP,1310323,LEIDOS DIGITAL SOLUTIONS INC,2020-06-22,2020-06-22,TELECOMSRV/EQ/TOLL CHARGE,715,2020
,2020 DEMOCRATIC CAUCUS,3,GENERAL EXPENDITURES,RENT  COMMUNICATION  UTILITIES,DETAIL,2020-07-14,AP,1310336,LEIDOS DIGITAL SOLUTIONS INC,2020-06-23,2020-06-23,TELECOMSRV/EQ/TOLL CHARGE,715,2020
,2020 DEMOCRATIC CAUCUS,3,GENERAL EXPENDITURES,RENT  COMMUNICATION  UTILITIES,DETAIL,2020-07-27,GL,MED0099449, ,2020-07-22,2020-07-22,HIR GRAPHICS (TRANSFER),100,2020
,2020 DEMOCRATIC CAUCUS,3,GENERAL EXPENDITURES,RENT  COMMUNICATION  UTILITIES,DETAIL,2020-07-29,GL,EMS0099556, ,2020-06-01,2020-06-30,DC TELECOM EQUIP (TRANSFER),60,2020
,2020 DEMOCRATIC CAUCUS,3,GENERAL EXPENDITURES,RENT  COMMUNICATION  UTILITIES,DETAIL,2020-07-29,GL,EMS0099556, ,2020-06-01,2020-06-30,DC TELECOM SERV (TRANSFER),258,2020
,2020 DEMOCRATIC CAUCUS,3,GENERAL EXPENDITURES,RENT  COMMUNICATION  UTILITIES,DETAIL,2020-07-29,GL,EMS0099556, ,2020-06-01,2020-06-30,DC TELECOM TOLLS (TRANSFER),2048.15,2020
,2020 DEMOCRATIC CAUCUS,3,GENERAL EXPENDITURES,RENT  COMMUNICATION  UTILITIES,DETAIL,2020-08-20,AP,1327006,LEIDOS DIGITAL SOLUTIONS INC,2020-08-03,2020-08-03,TELECOMSRV/EQ/TOLL CHARGE,715,2020
,2020 DEMOCRATIC CAUCUS,3,GENERAL EXPENDITURES,RENT  COMMUNICATION  UTILITIES,DETAIL,2020-08-20,AP,1327016,LEIDOS DIGITAL SOLUTIONS INC,2020-08-08,2020-08-08,TELECOMSRV/EQ/TOLL CHARGE,1430,2020
,2020 DEMOCRATIC CAUCUS,3,GENERAL EXPENDITURES,RENT  COMMUNICATION  UTILITIES,DETAIL,2020-08-20,AP,1327024,LEIDOS DIGITAL SOLUTIONS INC,2020-07-13,2020-07-13,TELECOMSRV/EQ/TOLL CHARGE,1430,2020
,2020 DEMOCRATIC CAUCUS,3,GENERAL EXPENDITURES,RENT  COMMUNICATION  UTILITIES,DETAIL,2020-08-21,AP,1327019,LEIDOS DIGITAL SOLUTIONS INC,2020-07-28,2020-07-28,TELECOMSRV/EQ/TOLL CHARGE,715,2020
,2020 DEMOCRATIC CAUCUS,3,GENERAL EXPENDITURES,RENT  COMMUNICATION  UTILITIES,DETAIL,2020-08-21,AP,1327022,LEIDOS DIGITAL SOLUTIONS INC,2020-07-21,2020-07-21,TELECOMSRV/EQ/TOLL CHARGE,715,2020
,2020 DEMOCRATIC CAUCUS,3,GENERAL EXPENDITURES,RENT  COMMUNICATION  UTILITIES,DETAIL,2020-08-21,AP,1327049,LEIDOS DIGITAL SOLUTIONS INC,2020-07-01,2020-07-01,TELECOMSRV/EQ/TOLL CHARGE,715,2020
,2020 DEMOCRATIC CAUCUS,3,GENERAL EXPENDITURES,RENT  COMMUNICATION  UTILITIES,DETAIL,2020-08-21,AP,1327051,LEIDOS DIGITAL SOLUTIONS INC,2020-06-30,2020-06-30,TELECOMSRV/EQ/TOLL CHARGE,4300,2020
,2020 DEMOCRATIC CAUCUS,3,GENERAL EXPENDITURES,RENT  COMMUNICATION  UTILITIES,DETAIL,2020-08-24,AP,1327042,LEIDOS DIGITAL SOLUTIONS INC,2020-07-14,2020-07-14,TELECOMSRV/EQ/TOLL CHARGE,715,2020
,2020 DEMOCRATIC CAUCUS,3,GENERAL EXPENDITURES,RENT  COMMUNICATION  UTILITIES,DETAIL,2020-08-24,AP,1327043,LEIDOS DIGITAL SOLUTIONS INC,2020-07-15,2020-07-15,TELECOMSRV/EQ/TOLL CHARGE,715,2020
,2020 DEMOCRATIC CAUCUS,3,GENERAL EXPENDITURES,RENT  COMMUNICATION  UTILITIES,DETAIL,2020-08-24,AP,1327044,LEIDOS DIGITAL SOLUTIONS INC,2020-07-16,2020-07-16,TELECOMSRV/EQ/TOLL CHARGE,715,2020
,2020 DEMOCRATIC CAUCUS,3,GENERAL EXPENDITURES,RENT  COMMUNICATION  UTILITIES,DETAIL,2020-08-24,AP,1327045,LEIDOS DIGITAL SOLUTIONS INC,2020-07-17,2020-07-17,TELECOMSRV/EQ/TOLL CHARGE,715,2020
,2020 DEMOCRATIC CAUCUS,3,GENERAL EXPENDITURES,RENT  COMMUNICATION  UTILITIES,DETAIL,2020-08-24,AP,1327046,LEIDOS DIGITAL SOLUTIONS INC,2020-07-06,2020-07-06,TELECOMSRV/EQ/TOLL CHARGE,715,2020
,2020 DEMOCRATIC CAUCUS,3,GENERAL EXPENDITURES,RENT  COMMUNICATION  UTILITIES,DETAIL,2020-08-24,AP,1327047,LEIDOS DIGITAL SOLUTIONS INC,2020-07-07,2020-07-07,TELECOMSRV/EQ/TOLL CHARGE,715,2020
,2020 DEMOCRATIC CAUCUS,3,GENERAL EXPENDITURES,RENT  COMMUNICATION  UTILITIES,DETAIL,2020-08-25,AP,1327048,LEIDOS DIGITAL SOLUTIONS INC,2020-06-29,2020-06-29,TELECOMSRV/EQ/TOLL CHARGE,715,2020
,2020 DEMOCRATIC CAUCUS,3,GENERAL EXPENDITURES,RENT  COMMUNICATION  UTILITIES,DETAIL,2020-08-26,GL,EMS0100215, ,2020-07-01,2020-07-31,DC TELECOM EQUIP (TRANSFER),60,2020
,2020 DEMOCRATIC CAUCUS,3,GENERAL EXPENDITURES,RENT  COMMUNICATION  UTILITIES,DETAIL,2020-08-26,GL,EMS0100215, ,2020-07-01,2020-07-31,DC TELECOM SERV (TRANSFER),258,2020
,2020 DEMOCRATIC CAUCUS,3,GENERAL EXPENDITURES,RENT  COMMUNICATION  UTILITIES,DETAIL,2020-08-26,GL,EMS0100215, ,2020-07-01,2020-07-31,DC TELECOM TOLLS (TRANSFER),1807.38,2020
,2020 DEMOCRATIC CAUCUS,3,GENERAL EXPENDITURES,RENT  COMMUNICATION  UTILITIES,DETAIL,2020-08-26,GL,MED0100217, ,2020-08-20,2020-08-25,HIR GRAPHICS (TRANSFER),100,2020
,2020 DEMOCRATIC CAUCUS,3,GENERAL EXPENDITURES,RENT  COMMUNICATION  UTILITIES,DETAIL,2020-09-28,GL,EMS0101058, ,2020-08-01,2020-08-31,DC TELECOM EQUIP (TRANSFER),60,2020
,2020 DEMOCRATIC CAUCUS,3,GENERAL EXPENDITURES,RENT  COMMUNICATION  UTILITIES,DETAIL,2020-09-28,GL,EMS0101058, ,2020-08-01,2020-08-31,DC TELECOM SERV (TRANSFER),258,2020
,2020 DEMOCRATIC CAUCUS,3,GENERAL EXPENDITURES,RENT  COMMUNICATION  UTILITIES,DETAIL,2020-09-28,GL,EMS0101058, ,2020-08-01,2020-08-31,DC TELECOM TOLLS (TRANSFER),1397.98,2020
,2020 DEMOCRATIC CAUCUS,3,GENERAL EXPENDITURES,RENT  COMMUNICATION  UTILITIES,SUBTOTAL,   ,   ,   ,   ,   ,   ,RENT  COMMUNICATION  UTILITIES TOTALS:,34302.51,2020
,2020 DEMOCRATIC CAUCUS,3,GENERAL EXPENDITURES,PRINTING AND REPRODUCTION,DETAIL,2020-07-28,AP,1317663,CITI PCARD-ACCURATE WORD LLC,2020-05-28,2020-05-28,PRINTING & REPRODUCTION,14.95,2020
,2020 DEMOCRATIC CAUCUS,3,GENERAL EXPENDITURES,PRINTING AND REPRODUCTION,DETAIL,2020-08-21,AP,1327182,CITI PCARD-ACCURATE WORD LLC,2020-07-07,2020-07-07,PRINTING & REPRODUCTION,54.9,2020
,2020 DEMOCRATIC CAUCUS,3,GENERAL EXPENDITURES,PRINTING AND REPRODUCTION,SUBTOTAL,   ,   ,   ,   ,   ,   ,PRINTING AND REPRODUCTION TOTALS:,69.85,2020
,2020 DEMOCRATIC CAUCUS,3,GENERAL EXPENDITURES,OTHER SERVICES,DETAIL,2020-07-13,AP,1309062,CREATIVENGINE,2020-04-01,2020-04-30,WEB DEV HST EMAIL & RLTD SERV,300,2020
,2020 DEMOCRATIC CAUCUS,3,GENERAL EXPENDITURES,OTHER SERVICES,DETAIL,2020-07-13,AP,1310243,CREATIVENGINE,2020-05-01,2020-05-31,WEB DEV HST EMAIL & RLTD SERV,300,2020
,2020 DEMOCRATIC CAUCUS,3,GENERAL EXPENDITURES,OTHER SERVICES,DETAIL,2020-07-14,AP,1310245,CREATIVENGINE,2020-06-01,2020-06-30,WEB DEV HST EMAIL & RLTD SERV,300,2020
,2020 DEMOCRATIC CAUCUS,3,GENERAL EXPENDITURES,OTHER SERVICES,DETAIL,2020-07-16,AP,1313242,LEIDOS DIGITAL SOLUTIONS INC,2020-07-01,2020-07-31,TECHNOLOGY SERVICE CONTRACTS,3587,2020
,2020 DEMOCRATIC CAUCUS,3,GENERAL EXPENDITURES,OTHER SERVICES,DETAIL,2020-08-16,AP,1323586,LEIDOS DIGITAL SOLUTIONS INC,2020-08-01,2020-08-31,TECHNOLOGY SERVICE CONTRACTS,3587,2020
,2020 DEMOCRATIC CAUCUS,3,GENERAL EXPENDITURES,OTHER SERVICES,DETAIL,2020-08-21,AP,1327182,CITI PCARD-DRYY GARMENT CARE,2020-07-01,2020-07-01,LAUNDRY SERVICES,120,2020
,2020 DEMOCRATIC CAUCUS,3,GENERAL EXPENDITURES,OTHER SERVICES,DETAIL,2020-08-24,AP,1327213,CITI PCARD-DROPBOX 8HZNDQZN1JK3,2020-07-24,2020-08-24,TECHNOLOGY SERVICE CONTRACTS,12.71,2020
,2020 DEMOCRATIC CAUCUS,3,GENERAL EXPENDITURES,OTHER SERVICES,DETAIL,2020-08-24,AP,1327213,CITI PCARD-DRYY GARMENT CARE,2020-07-01,2020-07-01,LAUNDRY SERVICES,40,2020
,2020 DEMOCRATIC CAUCUS,3,GENERAL EXPENDITURES,OTHER SERVICES,DETAIL,2020-08-31,AP,1328657,CITI PCARD-TELESTREAM INC,2020-07-14,2020-07-14,TECHNOLOGY SERVICE CONTRACTS,92.41,2020
,2020 DEMOCRATIC CAUCUS,3,GENERAL EXPENDITURES,OTHER SERVICES,DETAIL,2020-09-16,AP,1333839,LEIDOS DIGITAL SOLUTIONS INC,2020-09-01,2020-09-30,TECHNOLOGY SERVICE CONTRACTS,3587,2020
,2020 DEMOCRATIC CAUCUS,3,GENERAL EXPENDITURES,OTHER SERVICES,DETAIL,2020-09-28,AP,1338409,CITIBANK,2019-12-24,2020-01-24,TECHNOLOGY SERVICE CONTRACTS,11.99,2020
,2020 DEMOCRATIC CAUCUS,3,GENERAL EXPENDITURES,OTHER SERVICES,SUBTOTAL,   ,   ,   ,   ,   ,   ,OTHER SERVICES TOTALS:,11938.11,2020
,2020 DEMOCRATIC CAUCUS,3,GENERAL EXPENDITURES,SUPPLIES AND MATERIALS,DETAIL,2020-07-13,AP,1310351,CONNECTION,2020-05-04,2020-05-04,OFFICE SUPPLIES (OUTSIDE),1858.99,2020
,2020 DEMOCRATIC CAUCUS,3,GENERAL EXPENDITURES,SUPPLIES AND MATERIALS,DETAIL,2020-07-20,AP,1315508,DEER PARK,2020-06-30,2020-06-30,WATER,34.99,2020
,2020 DEMOCRATIC CAUCUS,3,GENERAL EXPENDITURES,SUPPLIES AND MATERIALS,DETAIL,2020-07-28,AP,1317663,CITI PCARD-AMZN Mktp US MS2YE7L22,2020-06-17,2020-06-17,OFFICE SUPPLIES (OUTSIDE),18.99,2020
,2020 DEMOCRATIC CAUCUS,3,GENERAL EXPENDITURES,SUPPLIES AND MATERIALS,DETAIL,2020-07-28,AP,1317663,CITI PCARD-AMZN Mktp US MS3TW41V1,2020-06-17,2020-06-17,OFFICE SUPPLIES (OUTSIDE),18.99,2020
,2020 DEMOCRATIC CAUCUS,3,GENERAL EXPENDITURES,SUPPLIES AND MATERIALS,DETAIL,2020-07-28,AP,1317663,CITI PCARD-AMZN Mktp US MS6048P81,2020-06-17,2020-06-17,OFFICE SUPPLIES (OUTSIDE),18.99,2020
,2020 DEMOCRATIC CAUCUS,3,GENERAL EXPENDITURES,SUPPLIES AND MATERIALS,DETAIL,2020-07-28,AP,1317663,CITI PCARD-AMZN Mktp US MS9LR7LT2,2020-06-17,2020-06-17,OFFICE SUPPLIES (OUTSIDE),18.99,2020
,2020 DEMOCRATIC CAUCUS,3,GENERAL EXPENDITURES,SUPPLIES AND MATERIALS,DETAIL,2020-07-28,AP,1317663,CITI PCARD-ARAMARK BALTIMOREMARYLAND,2020-06-15,2020-06-15,FOOD & BEVERAGE,597.21,2020
,2020 DEMOCRATIC CAUCUS,3,GENERAL EXPENDITURES,SUPPLIES AND MATERIALS,DETAIL,2020-07-28,AP,1317663,CITI PCARD-ARAMARK BALTIMOREMARYLAND,2020-06-15,2020-06-15,OFFICE SUPPLIES (OUTSIDE),392,2020
,2020 DEMOCRATIC CAUCUS,3,GENERAL EXPENDITURES,SUPPLIES AND MATERIALS,DETAIL,2020-07-28,AP,1317663,CITI PCARD-DROPBOX VF26BTY6X6XT,2020-06-24,2020-07-24,PUBLICATIONS/REFERENCE MAT'L,12.71,2020
,2020 DEMOCRATIC CAUCUS,3,GENERAL EXPENDITURES,SUPPLIES AND MATERIALS,DETAIL,2020-07-28,AP,1317663,CITI PCARD-ENVATO,2020-06-15,2020-07-15,PUBLICATIONS/REFERENCE MAT'L,33,2020
,2020 DEMOCRATIC CAUCUS,3,GENERAL EXPENDITURES,SUPPLIES AND MATERIALS,DETAIL,2020-07-28,AP,1317663,CITI PCARD-STREAMYARD.COM,2020-06-15,2020-07-15,PUBLICATIONS/REFERENCE MAT'L,49,2020
,2020 DEMOCRATIC CAUCUS,3,GENERAL EXPENDITURES,SUPPLIES AND MATERIALS,DETAIL,2020-07-28,AP,1317663,CITI PCARD-TRINT,2020-06-16,2020-07-16,PUBLICATIONS/REFERENCE MAT'L,40,2020
,2020 DEMOCRATIC CAUCUS,3,GENERAL EXPENDITURES,SUPPLIES AND MATERIALS,DETAIL,2020-07-29,AP,1318326,CITI PCARD-D J WALL-ST-JOURNAL,2020-06-06,2020-07-06,PUBLICATIONS/REFERENCE MAT'L,45.57,2020
,2020 DEMOCRATIC CAUCUS,3,GENERAL EXPENDITURES,SUPPLIES AND MATERIALS,DETAIL,2020-07-30,AP,1318303,CITI PCARD-ADORAMA.COM,2020-06-16,2020-06-16,OFFICE SUPPLIES (OUTSIDE),105.95,2020
,2020 DEMOCRATIC CAUCUS,3,GENERAL EXPENDITURES,SUPPLIES AND MATERIALS,DETAIL,2020-07-31,AP,1318290,CITI PCARD-WIX.COM 642431811,2020-04-08,2020-12-31,SOFTWARE  LESS THAN  $500,47.88,2020
,2020 DEMOCRATIC CAUCUS,3,GENERAL EXPENDITURES,SUPPLIES AND MATERIALS,DETAIL,2020-07-31,AP,1318296,CITI PCARD-DROPBOX M8F4853V9NY8,2020-05-24,2020-06-24,SOFTWARE  LESS THAN  $500,12.71,2020
,2020 DEMOCRATIC CAUCUS,3,GENERAL EXPENDITURES,SUPPLIES AND MATERIALS,DETAIL,2020-07-31,GL,RMS0099738, ,2020-07-01,2020-07-31,OFFICE SUPPLY (TRANSFER),15.9,2020
,2020 DEMOCRATIC CAUCUS,3,GENERAL EXPENDITURES,SUPPLIES AND MATERIALS,DETAIL,2020-08-12,AP,1322125,DEER PARK,2020-07-31,2020-07-31,WATER,34.99,2020
,2020 DEMOCRATIC CAUCUS,3,GENERAL EXPENDITURES,SUPPLIES AND MATERIALS,DETAIL,2020-08-21,AP,1327182,CITI PCARD-AMZN Mktp US MJ2DW39G1,2020-07-08,2020-07-08,OFFICE SUPPLIES (OUTSIDE),99.99,2020
,2020 DEMOCRATIC CAUCUS,3,GENERAL EXPENDITURES,SUPPLIES AND MATERIALS,DETAIL,2020-08-21,AP,1327182,CITI PCARD-AMZN Mktp US MJ5OU4630,2020-07-10,2020-07-10,OFFICE SUPPLIES (OUTSIDE),132.93,2020
,2020 DEMOCRATIC CAUCUS,3,GENERAL EXPENDITURES,SUPPLIES AND MATERIALS,DETAIL,2020-08-21,AP,1327182,CITI PCARD-AMZN Mktp US MJ7JT35V2,2020-07-10,2020-07-10,OFFICE SUPPLIES (OUTSIDE),132.93,2020
,2020 DEMOCRATIC CAUCUS,3,GENERAL EXPENDITURES,SUPPLIES AND MATERIALS,DETAIL,2020-08-21,AP,1327182,CITI PCARD-D J WALL-ST-JOURNAL,2020-07-06,2020-08-06,PUBLICATIONS/REFERENCE MAT'L,45.57,2020
,2020 DEMOCRATIC CAUCUS,3,GENERAL EXPENDITURES,SUPPLIES AND MATERIALS,DETAIL,2020-08-21,AP,1327182,CITI PCARD-TEAISM DUPONT CIRCLE,2020-06-29,2020-06-29,FOOD & BEVERAGE,4352,2020
,2020 DEMOCRATIC CAUCUS,3,GENERAL EXPENDITURES,SUPPLIES AND MATERIALS,DETAIL,2020-08-24,AP,1327200,CITI PCARD-AMZN Mktp US MJ0IU42G0,2020-07-10,2020-07-10,OFFICE SUPPLIES (OUTSIDE),124.99,2020
,2020 DEMOCRATIC CAUCUS,3,GENERAL EXPENDITURES,SUPPLIES AND MATERIALS,DETAIL,2020-08-24,AP,1327200,CITI PCARD-AMZN Mktp US MJ43C8IS1,2020-07-10,2020-07-10,OFFICE SUPPLIES (OUTSIDE),132.93,2020
,2020 DEMOCRATIC CAUCUS,3,GENERAL EXPENDITURES,SUPPLIES AND MATERIALS,DETAIL,2020-08-24,AP,1327200,CITI PCARD-AMZN Mktp US MJ4VT3IZ1,2020-07-10,2020-07-10,OFFICE SUPPLIES (OUTSIDE),132.93,2020
,2020 DEMOCRATIC CAUCUS,3,GENERAL EXPENDITURES,SUPPLIES AND MATERIALS,DETAIL,2020-08-24,AP,1327200,CITI PCARD-AMZN Mktp US MJ5TV76P2,2020-07-10,2020-07-10,OFFICE SUPPLIES (OUTSIDE),124.71,2020
,2020 DEMOCRATIC CAUCUS,3,GENERAL EXPENDITURES,SUPPLIES AND MATERIALS,DETAIL,2020-08-24,AP,1327200,CITI PCARD-AMZN Mktp US MV8H93F31,2020-07-10,2020-07-10,OFFICE SUPPLIES (OUTSIDE),124.71,2020
,2020 DEMOCRATIC CAUCUS,3,GENERAL EXPENDITURES,SUPPLIES AND MATERIALS,DETAIL,2020-08-24,AP,1327200,CITI PCARD-BEST BUY MHT  00004937,2020-07-15,2020-07-15,OFFICE SUPPLIES (OUTSIDE),51.99,2020
,2020 DEMOCRATIC CAUCUS,3,GENERAL EXPENDITURES,SUPPLIES AND MATERIALS,DETAIL,2020-08-24,AP,1327200,CITI PCARD-BESTBUYCOM806234355835,2020-07-08,2020-07-08,OFFICE SUPPLIES (OUTSIDE),119.98,2020
,2020 DEMOCRATIC CAUCUS,3,GENERAL EXPENDITURES,SUPPLIES AND MATERIALS,DETAIL,2020-08-24,AP,1327200,CITI PCARD-ENVATO,2020-07-15,2020-08-15,SOFTWARE  LESS THAN  $500,33,2020
,2020 DEMOCRATIC CAUCUS,3,GENERAL EXPENDITURES,SUPPLIES AND MATERIALS,DETAIL,2020-08-24,AP,1327200,CITI PCARD-STAPLES       00107417,2020-07-14,2020-07-14,OFFICE SUPPLIES (OUTSIDE),79.99,2020
,2020 DEMOCRATIC CAUCUS,3,GENERAL EXPENDITURES,SUPPLIES AND MATERIALS,DETAIL,2020-08-24,AP,1327200,CITI PCARD-STREAMYARD.COM,2020-07-15,2020-08-15,SOFTWARE  LESS THAN  $500,49,2020
,2020 DEMOCRATIC CAUCUS,3,GENERAL EXPENDITURES,SUPPLIES AND MATERIALS,DETAIL,2020-08-24,AP,1327200,CITI PCARD-TEAISM DUPONT CIRCLE,2020-07-21,2020-07-21,FOOD & BEVERAGE,3205,2020
,2020 DEMOCRATIC CAUCUS,3,GENERAL EXPENDITURES,SUPPLIES AND MATERIALS,DETAIL,2020-08-24,AP,1327200,CITI PCARD-TRINT,2020-07-16,2020-08-16,SOFTWARE  LESS THAN  $500,40,2020
,2020 DEMOCRATIC CAUCUS,3,GENERAL EXPENDITURES,SUPPLIES AND MATERIALS,DETAIL,2020-08-24,AP,1327213,CITI PCARD-BESTBUYCOM806234363217,2020-07-08,2020-07-08,OFFICE SUPPLIES (OUTSIDE),339.98,2020
,2020 DEMOCRATIC CAUCUS,3,GENERAL EXPENDITURES,SUPPLIES AND MATERIALS,DETAIL,2020-08-24,AP,1327213,CITI PCARD-TEAISM DUPONT CIRCLE,2020-07-27,2020-07-27,FOOD & BEVERAGE,1076.25,2020
,2020 DEMOCRATIC CAUCUS,3,GENERAL EXPENDITURES,SUPPLIES AND MATERIALS,DETAIL,2020-08-24,AP,1327258,CITI PCARD-APSTYLEBOOK.COM,2020-08-12,2020-08-12,PUBLICATIONS/REFERENCE MAT'L,30.74,2020
,2020 DEMOCRATIC CAUCUS,3,GENERAL EXPENDITURES,SUPPLIES AND MATERIALS,DETAIL,2020-08-24,AP,1327258,CITI PCARD-D J WALL-ST-JOURNAL,2020-06-28,2020-07-27,PUBLICATIONS/REFERENCE MAT'L,22.78,2020
,2020 DEMOCRATIC CAUCUS,3,GENERAL EXPENDITURES,SUPPLIES AND MATERIALS,DETAIL,2020-08-31,AP,1328657,CITI PCARD-AMZN Mktp US,2020-07-14,2020-07-14,OFFICE SUPPLIES (OUTSIDE),-109.99,2020
,2020 DEMOCRATIC CAUCUS,3,GENERAL EXPENDITURES,SUPPLIES AND MATERIALS,DETAIL,2020-08-31,AP,1328657,CITI PCARD-AMZN Mktp US MV1DL8NT1,2020-07-14,2020-07-14,OFFICE SUPPLIES (OUTSIDE),124.94,2020
,2020 DEMOCRATIC CAUCUS,3,GENERAL EXPENDITURES,SUPPLIES AND MATERIALS,DETAIL,2020-08-31,GL,RMS0100395, ,2020-08-01,2020-08-31,OFFICE SUPPLY (TRANSFER),26.32,2020
,2020 DEMOCRATIC CAUCUS,3,GENERAL EXPENDITURES,SUPPLIES AND MATERIALS,DETAIL,2020-09-24,AP,1337275,READYREFRESH BY NESTLE,2020-08-31,2020-08-31,WATER,34.99,2020
,2020 DEMOCRATIC CAUCUS,3,GENERAL EXPENDITURES,SUPPLIES AND MATERIALS,DETAIL,2020-09-30,GL,RMS0101251, ,2020-09-01,2020-09-30,OFFICE SUPPLY (TRANSFER),90.12,2020
,2020 DEMOCRATIC CAUCUS,3,GENERAL EXPENDITURES,SUPPLIES AND MATERIALS,SUBTOTAL,   ,   ,   ,   ,   ,   ,SUPPLIES AND MATERIALS TOTALS:,13975.64,2020
,2020 DEMOCRATIC CAUCUS,3,GENERAL EXPENDITURES,EQUIPMENT,DETAIL,2020-07-14,AP,1310342,CONNECTION,2020-04-29,2020-04-29,COMPUTER HARDW PURCH  LESS THAN $25 000,9179,2020
,2020 DEMOCRATIC CAUCUS,3,GENERAL EXPENDITURES,EQUIPMENT,DETAIL,2020-07-14,AP,1310381,CONNECTION,2020-05-13,2020-05-13,COMPUTER HARDW PURCH  LESS THAN $25 000,5746,2020
,2020 DEMOCRATIC CAUCUS,3,GENERAL EXPENDITURES,EQUIPMENT,DETAIL,2020-07-28,AP,1317663,CITI PCARD-ARAMARK BALTIMOREMARYLAND,2020-06-01,2020-06-30,MAINTENANCE / REPAIRS,108,2020
,2020 DEMOCRATIC CAUCUS,3,GENERAL EXPENDITURES,EQUIPMENT,DETAIL,2020-07-31,GL,MNT0099641, ,2020-02-20,2020-02-29,MAINTENANCE / REPAIRS,168.96,2020
,2020 DEMOCRATIC CAUCUS,3,GENERAL EXPENDITURES,EQUIPMENT,DETAIL,2020-07-31,GL,MNT0099641, ,2020-03-01,2020-03-31,MAINTENANCE / REPAIRS,490,2020
,2020 DEMOCRATIC CAUCUS,3,GENERAL EXPENDITURES,EQUIPMENT,DETAIL,2020-07-31,GL,MNT0099641, ,2020-04-01,2020-04-30,MAINTENANCE / REPAIRS,490,2020
,2020 DEMOCRATIC CAUCUS,3,GENERAL EXPENDITURES,EQUIPMENT,DETAIL,2020-07-31,GL,MNT0099641, ,2020-05-01,2020-05-31,MAINTENANCE / REPAIRS,490,2020
,2020 DEMOCRATIC CAUCUS,3,GENERAL EXPENDITURES,EQUIPMENT,DETAIL,2020-07-31,GL,MNT0099641, ,2020-06-01,2020-06-30,MAINTENANCE / REPAIRS,490,2020
,2020 DEMOCRATIC CAUCUS,3,GENERAL EXPENDITURES,EQUIPMENT,DETAIL,2020-07-31,GL,MNT0099641, ,2020-07-01,2020-07-31,MAINTENANCE / REPAIRS,782.1,2020
,2020 DEMOCRATIC CAUCUS,3,GENERAL EXPENDITURES,EQUIPMENT,DETAIL,2020-08-31,GL,MNT0100341, ,2020-08-01,2020-08-31,MAINTENANCE / REPAIRS,782.1,2020
,2020 DEMOCRATIC CAUCUS,3,GENERAL EXPENDITURES,EQUIPMENT,DETAIL,2020-09-30,GL,MNT0101165, ,2020-09-01,2020-09-30,MAINTENANCE / REPAIRS,782.1,2020
,2020 DEMOCRATIC CAUCUS,3,GENERAL EXPENDITURES,EQUIPMENT,SUBTOTAL,   ,   ,   ,   ,   ,   ,EQUIPMENT TOTALS:,19508.26,2020
,2020 DEMOCRATIC CAUCUS,3,GENERAL EXPENDITURES,EQUIPMENT,SUBTOTAL,   ,   ,   ,   ,   ,   ,GENERAL EXPENDITURES TOTALS:,484841.93,2020
,2020 DEMOCRATIC CAUCUS,3,GENERAL EXPENDITURES,EQUIPMENT,GRAND TOTAL FOR ORGANIZATION,   ,   ,   ,   ,   ,   ,OFFICE TOTALS: ,484841.93,2020
,2019 DEMOCRATIC CAUCUS,3,GENERAL EXPENDITURES,OTHER SERVICES,DETAIL,2020-09-28,AP,1338409,CITIBANK,2019-12-24,2020-01-24,TECHNOLOGY SERVICE CONTRACTS,-11.99,2020
,2019 DEMOCRATIC CAUCUS,3,GENERAL EXPENDITURES,OTHER SERVICES,SUBTOTAL,   ,   ,   ,   ,   ,   ,OTHER SERVICES TOTALS:,-11.99,2020
,2019 DEMOCRATIC CAUCUS,3,GENERAL EXPENDITURES,OTHER SERVICES,SUBTOTAL,   ,   ,   ,   ,   ,   ,GENERAL EXPENDITURES TOTALS:,-11.99,2020
,2019 DEMOCRATIC CAUCUS,3,GENERAL EXPENDITURES,OTHER SERVICES,GRAND TOTAL FOR ORGANIZATION,   ,   ,   ,   ,   ,   ,OFFICE TOTALS: ,-11.99,2020
,2020 REPUBLICAN CONFERENCE,3,GENERAL EXPENDITURES,PERSONNEL COMPENSATION,DETAIL,   ,   ,   ,ADLER JEREMY D,2020-07-01,2020-09-30,COMMUNICATIONS DIRECTOR,37500,2020
,2020 REPUBLICAN CONFERENCE,3,GENERAL EXPENDITURES,PERSONNEL COMPENSATION,DETAIL,   ,   ,   ,AHERN KARA M,2020-07-01,2020-09-30,CHIEF OF STAFF,15000,2020
,2020 REPUBLICAN CONFERENCE,3,GENERAL EXPENDITURES,PERSONNEL COMPENSATION,DETAIL,   ,   ,   ,ANDERSON MORGAN L,2020-07-01,2020-09-30,DIGITAL DIRECTOR,22500,2020
,2020 REPUBLICAN CONFERENCE,3,GENERAL EXPENDITURES,PERSONNEL COMPENSATION,DETAIL,   ,   ,   ,BOOTHE CAROLINE S.,2020-07-01,2020-09-30,MEMBER SERVICES DIRECTOR,37500,2020
,2020 REPUBLICAN CONFERENCE,3,GENERAL EXPENDITURES,PERSONNEL COMPENSATION,DETAIL,   ,   ,   ,DRZEWICKI JOHN V,2020-07-01,2020-09-30,POLICY DIRECTOR,6249.99,2020
,2020 REPUBLICAN CONFERENCE,3,GENERAL EXPENDITURES,PERSONNEL COMPENSATION,DETAIL,   ,   ,   ,HENDERSON WILLIAM J,2020-07-01,2020-09-30,SPECIAL ASSISTANT,11250,2020
,2020 REPUBLICAN CONFERENCE,3,GENERAL EXPENDITURES,PERSONNEL COMPENSATION,DETAIL,   ,   ,   ,HOFMAN RYAN,2020-07-01,2020-09-30,LEGISLATIVE ASSISTANT,16250.01,2020
,2020 REPUBLICAN CONFERENCE,3,GENERAL EXPENDITURES,PERSONNEL COMPENSATION,DETAIL,   ,   ,   ,LIFHITS JENNA,2020-07-01,2020-09-30,DEPUTY POLICY DIRECTOR,23750.01,2020
,2020 REPUBLICAN CONFERENCE,3,GENERAL EXPENDITURES,PERSONNEL COMPENSATION,DETAIL,   ,   ,   ,MEYER ANDREW,2020-07-01,2020-09-30,POLICY ADVISOR,20000.01,2020
,2020 REPUBLICAN CONFERENCE,3,GENERAL EXPENDITURES,PERSONNEL COMPENSATION,DETAIL,   ,   ,   ,PEARCE ELIZABETH W,2020-07-01,2020-09-30,DEPUTY CHIEF OF STAFF/DIRECTOR,17499.99,2020
,2020 REPUBLICAN CONFERENCE,3,GENERAL EXPENDITURES,PERSONNEL COMPENSATION,DETAIL,   ,   ,   ,PLAUT BRIAN D,2020-07-01,2020-09-30,DIRECTOR OF OPERATIONS,16250.01,2020
,2020 REPUBLICAN CONFERENCE,3,GENERAL EXPENDITURES,PERSONNEL COMPENSATION,DETAIL,   ,   ,   ,PORTER MEGAN E,2020-07-01,2020-09-30,MEMBER SERVICES STAFF ASST,9999.99,2020
,2020 REPUBLICAN CONFERENCE,3,GENERAL EXPENDITURES,PERSONNEL COMPENSATION,DETAIL,   ,   ,   ,SANCHEZ TREJO CARLA A,2020-07-01,2020-08-10,INTERN,2000,2020
,2020 REPUBLICAN CONFERENCE,3,GENERAL EXPENDITURES,PERSONNEL COMPENSATION,DETAIL,   ,   ,   ,SMITH STEVEN D,2020-07-01,2020-09-30,PRESS SECRETARY,22500,2020
,2020 REPUBLICAN CONFERENCE,3,GENERAL EXPENDITURES,PERSONNEL COMPENSATION,DETAIL,   ,   ,   ,SULLIVAN LUKE C,2020-07-01,2020-09-30,STAFF ASSISTANT,8750.01,2020
,2020 REPUBLICAN CONFERENCE,3,GENERAL EXPENDITURES,PERSONNEL COMPENSATION,DETAIL,   ,   ,   ,SULLIVAN MICHAEL P,2020-07-01,2020-09-30,RAPID RESPONSE DIRECTOR,12500.01,2020
,2020 REPUBLICAN CONFERENCE,3,GENERAL EXPENDITURES,PERSONNEL COMPENSATION,DETAIL,   ,   ,   ,SUN KEVIN K,2020-07-01,2020-09-30,STAFF ASSISTANT,9999.99,2020
,2020 REPUBLICAN CONFERENCE,3,GENERAL EXPENDITURES,PERSONNEL COMPENSATION,DETAIL,   ,   ,   ,THORNE DRAY A,2020-07-01,2020-09-30,SYSTEMS ADMINISTRATOR,31840,2020
,2020 REPUBLICAN CONFERENCE,3,GENERAL EXPENDITURES,PERSONNEL COMPENSATION,DETAIL,   ,   ,   ,WAGNER DAVINA E,2020-07-01,2020-09-30,SENIOR POLICY ADVISOR,11250,2020
,2020 REPUBLICAN CONFERENCE,3,GENERAL EXPENDITURES,PERSONNEL COMPENSATION,DETAIL,   ,   ,   ,WETHERALD MARGARET E,2020-07-01,2020-09-30,FINANCIAL ADMINISTRATOR,4200,2020
,2020 REPUBLICAN CONFERENCE,3,GENERAL EXPENDITURES,PERSONNEL COMPENSATION,SUBTOTAL,   ,   ,   ,   ,   ,   ,PERSONNEL COMPENSATION TOTALS:,336790.02,2020
,2020 REPUBLICAN CONFERENCE,3,GENERAL EXPENDITURES,RENT  COMMUNICATION  UTILITIES,DETAIL,2020-07-10,AP,1310880,UNITED PARCEL SERVICE,2020-06-14,2020-06-20,POSTAGE / COURIER / BOX RENTAL,20.82,2020
,2020 REPUBLICAN CONFERENCE,3,GENERAL EXPENDITURES,RENT  COMMUNICATION  UTILITIES,DETAIL,2020-07-17,AP,1310408,CITI PCARD-GOOGLE  YouTube TV,2020-06-24,2020-07-24,UTILITIES,52.99,2020
,2020 REPUBLICAN CONFERENCE,3,GENERAL EXPENDITURES,RENT  COMMUNICATION  UTILITIES,DETAIL,2020-07-29,GL,EMS0099556, ,2020-06-01,2020-06-30,DC TELECOM EQUIP (TRANSFER),96,2020
,2020 REPUBLICAN CONFERENCE,3,GENERAL EXPENDITURES,RENT  COMMUNICATION  UTILITIES,DETAIL,2020-07-29,GL,EMS0099556, ,2020-06-01,2020-06-30,DC TELECOM SERV (TRANSFER),286.75,2020
,2020 REPUBLICAN CONFERENCE,3,GENERAL EXPENDITURES,RENT  COMMUNICATION  UTILITIES,DETAIL,2020-07-29,GL,EMS0099556, ,2020-06-01,2020-06-30,DC TELECOM TOLLS (TRANSFER),9353.12,2020
,2020 REPUBLICAN CONFERENCE,3,GENERAL EXPENDITURES,RENT  COMMUNICATION  UTILITIES,DETAIL,2020-08-10,AP,1320840,CITI PCARD-GOOGLE  YouTube TV,2020-07-24,2020-08-24,UTILITIES,52.99,2020
,2020 REPUBLICAN CONFERENCE,3,GENERAL EXPENDITURES,RENT  COMMUNICATION  UTILITIES,DETAIL,2020-08-26,GL,EMS0100215, ,2020-07-01,2020-07-31,DC TELECOM EQUIP (TRANSFER),96,2020
,2020 REPUBLICAN CONFERENCE,3,GENERAL EXPENDITURES,RENT  COMMUNICATION  UTILITIES,DETAIL,2020-08-26,GL,EMS0100215, ,2020-07-01,2020-07-31,DC TELECOM SERV (TRANSFER),286.75,2020
,2020 REPUBLICAN CONFERENCE,3,GENERAL EXPENDITURES,RENT  COMMUNICATION  UTILITIES,DETAIL,2020-08-26,GL,EMS0100215, ,2020-07-01,2020-07-31,DC TELECOM TOLLS (TRANSFER),6769.76,2020
,2020 REPUBLICAN CONFERENCE,3,GENERAL EXPENDITURES,RENT  COMMUNICATION  UTILITIES,DETAIL,2020-09-22,AP,1336230,CITI PCARD-GOOGLE  YouTube TV,2020-08-24,2020-09-24,UTILITIES,68.89,2020
,2020 REPUBLICAN CONFERENCE,3,GENERAL EXPENDITURES,RENT  COMMUNICATION  UTILITIES,DETAIL,2020-09-28,GL,EMS0101058, ,2020-08-01,2020-08-31,DC TELECOM EQUIP (TRANSFER),96,2020
,2020 REPUBLICAN CONFERENCE,3,GENERAL EXPENDITURES,RENT  COMMUNICATION  UTILITIES,DETAIL,2020-09-28,GL,EMS0101058, ,2020-08-01,2020-08-31,DC TELECOM SERV (TRANSFER),286.75,2020
,2020 REPUBLICAN CONFERENCE,3,GENERAL EXPENDITURES,RENT  COMMUNICATION  UTILITIES,DETAIL,2020-09-28,GL,EMS0101058, ,2020-08-01,2020-08-31,DC TELECOM TOLLS (TRANSFER),3401.05,2020
,2020 REPUBLICAN CONFERENCE,3,GENERAL EXPENDITURES,RENT  COMMUNICATION  UTILITIES,SUBTOTAL,   ,   ,   ,   ,   ,   ,RENT  COMMUNICATION  UTILITIES TOTALS:,20867.87,2020
,2020 REPUBLICAN CONFERENCE,3,GENERAL EXPENDITURES,OTHER SERVICES,DETAIL,2020-07-17,AP,1310408,CITI PCARD-MAILCHIMP    MONTHLY,2020-06-06,2020-07-06,WEB DEV HST EMAIL & RLTD SERV,539.49,2020
,2020 REPUBLICAN CONFERENCE,3,GENERAL EXPENDITURES,OTHER SERVICES,DETAIL,2020-08-10,AP,1320840,CITI PCARD-MAILCHIMP    MONTHLY,2020-07-06,2020-08-06,WEB DEV HST EMAIL & RLTD SERV,539.49,2020
,2020 REPUBLICAN CONFERENCE,3,GENERAL EXPENDITURES,OTHER SERVICES,DETAIL,2020-09-22,AP,1336230,CITI PCARD-MAILCHIMP    MONTHLY,2020-08-06,2020-09-06,WEB DEV HST EMAIL & RLTD SERV,539.49,2020
,2020 REPUBLICAN CONFERENCE,3,GENERAL EXPENDITURES,OTHER SERVICES,SUBTOTAL,   ,   ,   ,   ,   ,   ,OTHER SERVICES TOTALS:,1618.47,2020
,2020 REPUBLICAN CONFERENCE,3,GENERAL EXPENDITURES,SUPPLIES AND MATERIALS,DETAIL,2020-07-17,AP,1310408,CITI PCARD-APG ROCKIES CIRCULATION,2020-06-01,2020-06-28,PUBLICATIONS/REFERENCE MAT'L,15,2020
,2020 REPUBLICAN CONFERENCE,3,GENERAL EXPENDITURES,SUPPLIES AND MATERIALS,DETAIL,2020-07-17,AP,1310408,CITI PCARD-APG ROCKIES CIRCULATION,2020-06-29,2020-07-27,PUBLICATIONS/REFERENCE MAT'L,15,2020
,2020 REPUBLICAN CONFERENCE,3,GENERAL EXPENDITURES,SUPPLIES AND MATERIALS,DETAIL,2020-07-17,AP,1310408,CITI PCARD-Amazon.com MS8TD0LT0,2020-06-15,2020-06-15,OFFICE SUPPLIES (OUTSIDE),39.89,2020
,2020 REPUBLICAN CONFERENCE,3,GENERAL EXPENDITURES,SUPPLIES AND MATERIALS,DETAIL,2020-07-17,AP,1310408,CITI PCARD-CASPER STAR TRIBUNE,2020-06-14,2020-07-14,PUBLICATIONS/REFERENCE MAT'L,9.99,2020
,2020 REPUBLICAN CONFERENCE,3,GENERAL EXPENDITURES,SUPPLIES AND MATERIALS,DETAIL,2020-07-17,AP,1310408,CITI PCARD-D J WALL-ST-JOURNAL,2020-05-29,2020-06-29,PUBLICATIONS/REFERENCE MAT'L,41.33,2020
,2020 REPUBLICAN CONFERENCE,3,GENERAL EXPENDITURES,SUPPLIES AND MATERIALS,DETAIL,2020-07-17,AP,1310408,CITI PCARD-ENVATO,2020-06-24,2020-07-24,SOFTWARE  LESS THAN  $500,33,2020
,2020 REPUBLICAN CONFERENCE,3,GENERAL EXPENDITURES,SUPPLIES AND MATERIALS,DETAIL,2020-07-17,AP,1310408,CITI PCARD-GOOGLE GOOGLE STORAGE,2020-06-17,2020-07-16,SOFTWARE  LESS THAN  $500,10.59,2020
,2020 REPUBLICAN CONFERENCE,3,GENERAL EXPENDITURES,SUPPLIES AND MATERIALS,DETAIL,2020-07-17,AP,1310408,CITI PCARD-LEGISTORM LLC,2020-06-01,2020-07-01,PUBLICATIONS/REFERENCE MAT'L,11.61,2020
,2020 REPUBLICAN CONFERENCE,3,GENERAL EXPENDITURES,SUPPLIES AND MATERIALS,DETAIL,2020-07-17,AP,1310408,CITI PCARD-NOUNPROJECT.COM,2020-06-21,2020-07-21,PUBLICATIONS/REFERENCE MAT'L,9.99,2020
,2020 REPUBLICAN CONFERENCE,3,GENERAL EXPENDITURES,SUPPLIES AND MATERIALS,DETAIL,2020-07-17,AP,1310408,CITI PCARD-NYTIMES,2020-06-05,2020-07-03,PUBLICATIONS/REFERENCE MAT'L,15.9,2020
,2020 REPUBLICAN CONFERENCE,3,GENERAL EXPENDITURES,SUPPLIES AND MATERIALS,DETAIL,2020-07-17,AP,1310408,CITI PCARD-WAVVE SUBSCRIPTION,2020-06-04,2020-07-04,PUBLICATIONS/REFERENCE MAT'L,10,2020
,2020 REPUBLICAN CONFERENCE,3,GENERAL EXPENDITURES,SUPPLIES AND MATERIALS,DETAIL,2020-07-17,AP,1310408,CITI PCARD-ZOOM.US,2020-05-28,2020-06-27,SOFTWARE  LESS THAN  $500,529.68,2020
,2020 REPUBLICAN CONFERENCE,3,GENERAL EXPENDITURES,SUPPLIES AND MATERIALS,DETAIL,2020-07-31,GL,RMS0099738, ,2020-07-01,2020-07-31,OFFICE SUPPLY (TRANSFER),159.05,2020
,2020 REPUBLICAN CONFERENCE,3,GENERAL EXPENDITURES,SUPPLIES AND MATERIALS,DETAIL,2020-08-10,AP,1320840,CITI PCARD-AMAZON.COM MV7093VK2 AMZN,2020-07-22,2020-07-22,OFFICE SUPPLIES (OUTSIDE),292.2,2020
,2020 REPUBLICAN CONFERENCE,3,GENERAL EXPENDITURES,SUPPLIES AND MATERIALS,DETAIL,2020-08-10,AP,1320840,CITI PCARD-AMZN Mktp US MJ2UC1YN1,2020-07-09,2020-07-09,OFFICE SUPPLIES (OUTSIDE),37.96,2020
,2020 REPUBLICAN CONFERENCE,3,GENERAL EXPENDITURES,SUPPLIES AND MATERIALS,DETAIL,2020-08-10,AP,1320840,CITI PCARD-AMZN Mktp US MJ6CT9D32,2020-07-09,2020-07-09,OFFICE SUPPLIES (OUTSIDE),181.9,2020
,2020 REPUBLICAN CONFERENCE,3,GENERAL EXPENDITURES,SUPPLIES AND MATERIALS,DETAIL,2020-08-10,AP,1320840,CITI PCARD-AMZN Mktp US MJ6J449M2,2020-07-13,2020-07-13,OFFICE SUPPLIES (OUTSIDE),74.46,2020
,2020 REPUBLICAN CONFERENCE,3,GENERAL EXPENDITURES,SUPPLIES AND MATERIALS,DETAIL,2020-08-10,AP,1320840,CITI PCARD-AMZN Mktp US MJ9JX75N2,2020-07-09,2020-07-09,OFFICE SUPPLIES (OUTSIDE),68.69,2020
,2020 REPUBLICAN CONFERENCE,3,GENERAL EXPENDITURES,SUPPLIES AND MATERIALS,DETAIL,2020-08-10,AP,1320840,CITI PCARD-AMZN Mktp US MJ9VI67E2,2020-07-13,2020-07-13,OFFICE SUPPLIES (OUTSIDE),57.54,2020
,2020 REPUBLICAN CONFERENCE,3,GENERAL EXPENDITURES,SUPPLIES AND MATERIALS,DETAIL,2020-08-10,AP,1320840,CITI PCARD-AMZN Mktp US MV4TD7OG1,2020-07-09,2020-07-09,OFFICE SUPPLIES (OUTSIDE),65.97,2020
,2020 REPUBLICAN CONFERENCE,3,GENERAL EXPENDITURES,SUPPLIES AND MATERIALS,DETAIL,2020-08-10,AP,1320840,CITI PCARD-AMZN Mktp US MV6I39C00,2020-07-13,2020-07-13,OFFICE SUPPLIES (OUTSIDE),44.69,2020
,2020 REPUBLICAN CONFERENCE,3,GENERAL EXPENDITURES,SUPPLIES AND MATERIALS,DETAIL,2020-08-10,AP,1320840,CITI PCARD-AMZN Mktp US MV6SC7SX1,2020-07-22,2020-07-22,OFFICE SUPPLIES (OUTSIDE),307.85,2020
,2020 REPUBLICAN CONFERENCE,3,GENERAL EXPENDITURES,SUPPLIES AND MATERIALS,DETAIL,2020-08-10,AP,1320840,CITI PCARD-APG ROCKIES CIRCULATION,2020-07-28,2020-08-25,PUBLICATIONS/REFERENCE MAT'L,15,2020
,2020 REPUBLICAN CONFERENCE,3,GENERAL EXPENDITURES,SUPPLIES AND MATERIALS,DETAIL,2020-08-10,AP,1320840,CITI PCARD-CASPER STAR TRIBUNE,2020-07-14,2020-08-14,PUBLICATIONS/REFERENCE MAT'L,9.99,2020
,2020 REPUBLICAN CONFERENCE,3,GENERAL EXPENDITURES,SUPPLIES AND MATERIALS,DETAIL,2020-08-10,AP,1320840,CITI PCARD-D J WALL-ST-JOURNAL,2020-06-29,2020-07-29,PUBLICATIONS/REFERENCE MAT'L,41.33,2020
,2020 REPUBLICAN CONFERENCE,3,GENERAL EXPENDITURES,SUPPLIES AND MATERIALS,DETAIL,2020-08-10,AP,1320840,CITI PCARD-ENVATO,2020-07-24,2020-08-24,SOFTWARE  LESS THAN  $500,33,2020
,2020 REPUBLICAN CONFERENCE,3,GENERAL EXPENDITURES,SUPPLIES AND MATERIALS,DETAIL,2020-08-10,AP,1320840,CITI PCARD-GOOGLE  Google Storage,2020-07-17,2020-07-17,SOFTWARE  LESS THAN  $500,10.59,2020
,2020 REPUBLICAN CONFERENCE,3,GENERAL EXPENDITURES,SUPPLIES AND MATERIALS,DETAIL,2020-08-10,AP,1320840,CITI PCARD-LEGISTORM LLC,2020-07-01,2020-08-01,PUBLICATIONS/REFERENCE MAT'L,11.61,2020
,2020 REPUBLICAN CONFERENCE,3,GENERAL EXPENDITURES,SUPPLIES AND MATERIALS,DETAIL,2020-08-10,AP,1320840,CITI PCARD-NOUNPROJECT.COM,2020-07-21,2020-08-21,PUBLICATIONS/REFERENCE MAT'L,9.99,2020
,2020 REPUBLICAN CONFERENCE,3,GENERAL EXPENDITURES,SUPPLIES AND MATERIALS,DETAIL,2020-08-10,AP,1320840,CITI PCARD-NYTIMES,2020-07-03,2020-07-31,PUBLICATIONS/REFERENCE MAT'L,15.9,2020
,2020 REPUBLICAN CONFERENCE,3,GENERAL EXPENDITURES,SUPPLIES AND MATERIALS,DETAIL,2020-08-10,AP,1320840,CITI PCARD-OFFICE DEPOT #5910,2020-06-09,2020-06-09,OFFICE SUPPLIES (OUTSIDE),119.77,2020
,2020 REPUBLICAN CONFERENCE,3,GENERAL EXPENDITURES,SUPPLIES AND MATERIALS,DETAIL,2020-08-10,AP,1320840,CITI PCARD-WAVVE SUBSCRIPTION,2020-07-04,2020-08-04,SOFTWARE  LESS THAN  $500,10,2020
,2020 REPUBLICAN CONFERENCE,3,GENERAL EXPENDITURES,SUPPLIES AND MATERIALS,DETAIL,2020-08-10,AP,1320840,CITI PCARD-ZOOM.US,2020-06-28,2020-07-27,SOFTWARE  LESS THAN  $500,53,2020
,2020 REPUBLICAN CONFERENCE,3,GENERAL EXPENDITURES,SUPPLIES AND MATERIALS,DETAIL,2020-08-10,AP,1320840,CITI PCARD-ZOOM.US,2020-07-20,2020-07-27,SOFTWARE  LESS THAN  $500,13.85,2020
,2020 REPUBLICAN CONFERENCE,3,GENERAL EXPENDITURES,SUPPLIES AND MATERIALS,DETAIL,2020-09-22,AP,1336230,CITI PCARD-AMZN Mktp US,2020-07-09,2020-07-09,OFFICE SUPPLIES (OUTSIDE),-16.99,2020
,2020 REPUBLICAN CONFERENCE,3,GENERAL EXPENDITURES,SUPPLIES AND MATERIALS,DETAIL,2020-09-22,AP,1336230,CITI PCARD-AMZN Mktp US MM68Y3DO2,2020-08-25,2020-08-25,OFFICE SUPPLIES (OUTSIDE),423.9,2020
,2020 REPUBLICAN CONFERENCE,3,GENERAL EXPENDITURES,SUPPLIES AND MATERIALS,DETAIL,2020-09-22,AP,1336230,CITI PCARD-APG ROCKIES CIRCULATION,2020-08-23,2020-09-19,PUBLICATIONS/REFERENCE MAT'L,15,2020
,2020 REPUBLICAN CONFERENCE,3,GENERAL EXPENDITURES,SUPPLIES AND MATERIALS,DETAIL,2020-09-22,AP,1336230,CITI PCARD-Amazon.com MF1VM13R1,2020-07-28,2020-07-28,OFFICE SUPPLIES (OUTSIDE),234,2020
,2020 REPUBLICAN CONFERENCE,3,GENERAL EXPENDITURES,SUPPLIES AND MATERIALS,DETAIL,2020-09-22,AP,1336230,CITI PCARD-CASPER STAR TRIBUNE,2020-08-13,2020-09-13,PUBLICATIONS/REFERENCE MAT'L,9.99,2020
,2020 REPUBLICAN CONFERENCE,3,GENERAL EXPENDITURES,SUPPLIES AND MATERIALS,DETAIL,2020-09-22,AP,1336230,CITI PCARD-D J WALL-ST-JOURNAL,2020-07-29,2020-08-29,PUBLICATIONS/REFERENCE MAT'L,41.33,2020
,2020 REPUBLICAN CONFERENCE,3,GENERAL EXPENDITURES,SUPPLIES AND MATERIALS,DETAIL,2020-09-22,AP,1336230,CITI PCARD-ENVATO,2020-08-24,2020-09-24,SOFTWARE  LESS THAN  $500,33,2020
,2020 REPUBLICAN CONFERENCE,3,GENERAL EXPENDITURES,SUPPLIES AND MATERIALS,DETAIL,2020-09-22,AP,1336230,CITI PCARD-GOOGLE  Google Storage,2020-08-17,2020-08-17,SOFTWARE  LESS THAN  $500,10.59,2020
,2020 REPUBLICAN CONFERENCE,3,GENERAL EXPENDITURES,SUPPLIES AND MATERIALS,DETAIL,2020-09-22,AP,1336230,CITI PCARD-LEGISTORM LLC,2020-08-01,2020-09-01,PUBLICATIONS/REFERENCE MAT'L,11.61,2020
,2020 REPUBLICAN CONFERENCE,3,GENERAL EXPENDITURES,SUPPLIES AND MATERIALS,DETAIL,2020-09-22,AP,1336230,CITI PCARD-NOUNPROJECT.COM,2020-08-21,2020-09-21,PUBLICATIONS/REFERENCE MAT'L,9.99,2020
,2020 REPUBLICAN CONFERENCE,3,GENERAL EXPENDITURES,SUPPLIES AND MATERIALS,DETAIL,2020-09-22,AP,1336230,CITI PCARD-NYTIMES,2020-07-31,2020-08-28,PUBLICATIONS/REFERENCE MAT'L,15.9,2020
,2020 REPUBLICAN CONFERENCE,3,GENERAL EXPENDITURES,SUPPLIES AND MATERIALS,DETAIL,2020-09-22,AP,1336230,CITI PCARD-NYTIMES,2020-08-28,2020-09-25,PUBLICATIONS/REFERENCE MAT'L,15.9,2020
,2020 REPUBLICAN CONFERENCE,3,GENERAL EXPENDITURES,SUPPLIES AND MATERIALS,DETAIL,2020-09-22,AP,1336230,CITI PCARD-SoundCloud Inc,2020-08-16,2020-09-16,SOFTWARE  LESS THAN  $500,16.96,2020
,2020 REPUBLICAN CONFERENCE,3,GENERAL EXPENDITURES,SUPPLIES AND MATERIALS,DETAIL,2020-09-22,AP,1336230,CITI PCARD-WAVVE SUBSCRIPTION,2020-08-04,2020-09-04,PUBLICATIONS/REFERENCE MAT'L,10,2020
,2020 REPUBLICAN CONFERENCE,3,GENERAL EXPENDITURES,SUPPLIES AND MATERIALS,DETAIL,2020-09-22,AP,1336230,CITI PCARD-ZOOM.US,2020-07-28,2020-08-27,SOFTWARE  LESS THAN  $500,104.94,2020
,2020 REPUBLICAN CONFERENCE,3,GENERAL EXPENDITURES,SUPPLIES AND MATERIALS,DETAIL,2020-09-30,GL,RMS0101251, ,2020-09-01,2020-09-30,OFFICE SUPPLY (TRANSFER),164.5,2020
,2020 REPUBLICAN CONFERENCE,3,GENERAL EXPENDITURES,SUPPLIES AND MATERIALS,SUBTOTAL,   ,   ,   ,   ,   ,   ,SUPPLIES AND MATERIALS TOTALS:,3476.94,2020
,2020 REPUBLICAN CONFERENCE,3,GENERAL EXPENDITURES,EQUIPMENT,DETAIL,2020-07-31,GL,MNT0099641, ,2020-07-01,2020-07-31,MAINTENANCE / REPAIRS,647.75,2020
,2020 REPUBLICAN CONFERENCE,3,GENERAL EXPENDITURES,EQUIPMENT,DETAIL,2020-08-31,GL,MNT0100341, ,2020-08-01,2020-08-31,MAINTENANCE / REPAIRS,647.75,2020
,2020 REPUBLICAN CONFERENCE,3,GENERAL EXPENDITURES,EQUIPMENT,DETAIL,2020-09-30,GL,MNT0101165, ,2020-09-01,2020-09-30,MAINTENANCE / REPAIRS,647.75,2020
,2020 REPUBLICAN CONFERENCE,3,GENERAL EXPENDITURES,EQUIPMENT,SUBTOTAL,   ,   ,   ,   ,   ,   ,EQUIPMENT TOTALS:,1943.25,2020
,2020 REPUBLICAN CONFERENCE,3,GENERAL EXPENDITURES,EQUIPMENT,SUBTOTAL,   ,   ,   ,   ,   ,   ,GENERAL EXPENDITURES TOTALS:,364696.55,2020
,2020 REPUBLICAN CONFERENCE,3,GENERAL EXPENDITURES,EQUIPMENT,GRAND TOTAL FOR ORGANIZATION,   ,   ,   ,   ,   ,   ,OFFICE TOTALS: ,364696.55,2020
,2019 REPUBLICAN CONFERENCE,3,GENERAL EXPENDITURES,EQUIPMENT,DETAIL,2020-07-29,AP,1317872,CDW GOVERNMENT LLC,2020-01-16,2020-01-16,OFFICE EQUIP PURCH LESS THAN $25 000,15025.25,2020
,2019 REPUBLICAN CONFERENCE,3,GENERAL EXPENDITURES,EQUIPMENT,SUBTOTAL,   ,   ,   ,   ,   ,   ,EQUIPMENT TOTALS:,15025.25,2020
,2019 REPUBLICAN CONFERENCE,3,GENERAL EXPENDITURES,EQUIPMENT,SUBTOTAL,   ,   ,   ,   ,   ,   ,GENERAL EXPENDITURES TOTALS:,15025.25,2020
,2019 REPUBLICAN CONFERENCE,3,GENERAL EXPENDITURES,EQUIPMENT,GRAND TOTAL FOR ORGANIZATION,   ,   ,   ,   ,   ,   ,OFFICE TOTALS: ,15025.25,2020
,2020 REPUBLICAN CONFERENCE,3,INTERN ALLOWANCES,PERSONNEL COMPENSATION,DETAIL,   ,   ,   ,PADILLA TRUDE R.,2020-08-17,2020-09-30,REPUB CONF PAID INTERN - HOUSE,2200,2020
,2020 REPUBLICAN CONFERENCE,3,INTERN ALLOWANCES,PERSONNEL COMPENSATION,SUBTOTAL,   ,   ,   ,   ,   ,   ,PERSONNEL COMPENSATION TOTALS:,2200,2020
,2020 REPUBLICAN CONFERENCE,3,INTERN ALLOWANCES,PERSONNEL COMPENSATION,SUBTOTAL,   ,   ,   ,   ,   ,   ,INTERN ALLOWANCES TOTALS:,2200,2020
,2020 REPUBLICAN CONFERENCE,3,INTERN ALLOWANCES,PERSONNEL COMPENSATION,GRAND TOTAL FOR ORGANIZATION,   ,   ,   ,   ,   ,   ,OFFICE TOTALS: ,2200,2020
,FISCAL YEAR 2020 CHIEF ADMIN OFCR OF THE HOUSE,3,ENTERPRISE LICENSES,SUPPLIES AND MATERIALS,DETAIL,2020-07-24,AP,1317264,INSIGHT PUBLIC SECTOR INC,2020-06-01,2021-05-31,SOFTWARE  LESS THAN  $500,4794256.18,2020
,FISCAL YEAR 2020 CHIEF ADMIN OFCR OF THE HOUSE,3,ENTERPRISE LICENSES,SUPPLIES AND MATERIALS,SUBTOTAL,   ,   ,   ,   ,   ,   ,SUPPLIES AND MATERIALS TOTALS:,4794256.18,2020
,FISCAL YEAR 2020 CHIEF ADMIN OFCR OF THE HOUSE,3,ENTERPRISE LICENSES,SUPPLIES AND MATERIALS,SUBTOTAL,   ,   ,   ,   ,   ,   ,ENTERPRISE LICENSES TOTALS:,4794256.18,2020
,FISCAL YEAR 2020 CHIEF ADMIN OFCR OF THE HOUSE,3,SALARIES  OFFICERS & EMPLOYEES,PERSONNEL COMPENSATION,DETAIL,   ,   ,   ,ABBOTT JESSICA A.,2020-07-01,2020-09-30,WORKFORCE ANALYST,38253.24,2020
,FISCAL YEAR 2020 CHIEF ADMIN OFCR OF THE HOUSE,3,SALARIES  OFFICERS & EMPLOYEES,PERSONNEL COMPENSATION,DETAIL,   ,   ,   ,ABEL TIMOTHY,2020-07-01,2020-09-30,SR TECHNICAL SUPPORT REP (A),28571.01,2020
,FISCAL YEAR 2020 CHIEF ADMIN OFCR OF THE HOUSE,3,SALARIES  OFFICERS & EMPLOYEES,PERSONNEL COMPENSATION,DETAIL,   ,   ,   ,ABEL TIMOTHY,2020-08-01,2020-08-01,SR TECHNICAL SUPPORT REP (A) (OTHER COMPENSATION),1000,2020
,FISCAL YEAR 2020 CHIEF ADMIN OFCR OF THE HOUSE,3,SALARIES  OFFICERS & EMPLOYEES,PERSONNEL COMPENSATION,DETAIL,   ,   ,   ,ACUESTA JULY J,2020-07-01,2020-09-30,SENIOR SYSTEMS ENGINEER,32811,2020
,FISCAL YEAR 2020 CHIEF ADMIN OFCR OF THE HOUSE,3,SALARIES  OFFICERS & EMPLOYEES,PERSONNEL COMPENSATION,DETAIL,   ,   ,   ,ADELAKUN DEEN A.,2020-07-01,2020-09-30,SR TECH SOLUTIONS ENGINEER,27034.74,2020
,FISCAL YEAR 2020 CHIEF ADMIN OFCR OF THE HOUSE,3,SALARIES  OFFICERS & EMPLOYEES,PERSONNEL COMPENSATION,DETAIL,   ,   ,   ,ADENIJI ADERONKE F,2020-07-01,2020-09-30,DIRECTOR  INFORMATION ASSURANC,43475.01,2020
,FISCAL YEAR 2020 CHIEF ADMIN OFCR OF THE HOUSE,3,SALARIES  OFFICERS & EMPLOYEES,PERSONNEL COMPENSATION,DETAIL,   ,   ,   ,ADEYEMI OLUWATOYIN J,2020-07-01,2020-09-30,COMPUTER FACILITIES OP MGR (A),33148.74,2020
,FISCAL YEAR 2020 CHIEF ADMIN OFCR OF THE HOUSE,3,SALARIES  OFFICERS & EMPLOYEES,PERSONNEL COMPENSATION,DETAIL,   ,   ,   ,AFRAM AMANDA A,2020-07-01,2020-09-30,SR INFO SYST. SECURITY ANALYST,26301.51,2020
,FISCAL YEAR 2020 CHIEF ADMIN OFCR OF THE HOUSE,3,SALARIES  OFFICERS & EMPLOYEES,PERSONNEL COMPENSATION,DETAIL,   ,   ,   ,AGNEW ROSE M.,2020-07-01,2020-09-30,SR PAYROLL & BENS GENERALIST,24980.25,2020
,FISCAL YEAR 2020 CHIEF ADMIN OFCR OF THE HOUSE,3,SALARIES  OFFICERS & EMPLOYEES,PERSONNEL COMPENSATION,DETAIL,   ,   ,   ,AGNEW ROSE M.,2020-05-01,2020-07-31,SR PAYROLL & BENS GENERALIST (OVERTIME),2918.34,2020
,FISCAL YEAR 2020 CHIEF ADMIN OFCR OF THE HOUSE,3,SALARIES  OFFICERS & EMPLOYEES,PERSONNEL COMPENSATION,DETAIL,   ,   ,   ,AHMAD VIQUAR,2020-07-01,2020-09-30,ASSISTANT CAO,43475.01,2020
,FISCAL YEAR 2020 CHIEF ADMIN OFCR OF THE HOUSE,3,SALARIES  OFFICERS & EMPLOYEES,PERSONNEL COMPENSATION,DETAIL,   ,   ,   ,AHMED MUNEER,2020-07-01,2020-09-30,APPLICATION SYSTEMS ADMINISTRA,36125.41,2020
,FISCAL YEAR 2020 CHIEF ADMIN OFCR OF THE HOUSE,3,SALARIES  OFFICERS & EMPLOYEES,PERSONNEL COMPENSATION,DETAIL,   ,   ,   ,AHUJA KALPANA A.,2020-07-01,2020-09-30,DIRECTOR WEB SYSTEMS,39837.24,2020
,FISCAL YEAR 2020 CHIEF ADMIN OFCR OF THE HOUSE,3,SALARIES  OFFICERS & EMPLOYEES,PERSONNEL COMPENSATION,DETAIL,   ,   ,   ,AKULA MALLIKARJUNA R,2020-07-01,2020-09-30,SENIOR SOFTWARE SPECIALIST,39135,2020
,FISCAL YEAR 2020 CHIEF ADMIN OFCR OF THE HOUSE,3,SALARIES  OFFICERS & EMPLOYEES,PERSONNEL COMPENSATION,DETAIL,   ,   ,   ,ALEXANDER GORDON,2020-07-01,2020-09-30,TEAM COORDINATOR,26816.76,2020
,FISCAL YEAR 2020 CHIEF ADMIN OFCR OF THE HOUSE,3,SALARIES  OFFICERS & EMPLOYEES,PERSONNEL COMPENSATION,DETAIL,   ,   ,   ,ALLEN KEITH L,2020-07-01,2020-09-30,JOURNEYMAN CABINET MAKER,17088.51,2020
,FISCAL YEAR 2020 CHIEF ADMIN OFCR OF THE HOUSE,3,SALARIES  OFFICERS & EMPLOYEES,PERSONNEL COMPENSATION,DETAIL,   ,   ,   ,ALLISON KEVIN M.,2020-07-01,2020-09-30,LOGISTICS & DIST SPEC (A),16248.51,2020
,FISCAL YEAR 2020 CHIEF ADMIN OFCR OF THE HOUSE,3,SALARIES  OFFICERS & EMPLOYEES,PERSONNEL COMPENSATION,DETAIL,   ,   ,   ,ALSTON JR FELIX E.,2020-07-23,2020-09-30,SR NETWORK COMM SPECIALIST (A),25045.72,2020
,FISCAL YEAR 2020 CHIEF ADMIN OFCR OF THE HOUSE,3,SALARIES  OFFICERS & EMPLOYEES,PERSONNEL COMPENSATION,DETAIL,   ,   ,   ,ALSTON MARK A,2020-07-01,2020-09-30,TECH SOLUTIONS ENGINEER,22036.74,2020
,FISCAL YEAR 2020 CHIEF ADMIN OFCR OF THE HOUSE,3,SALARIES  OFFICERS & EMPLOYEES,PERSONNEL COMPENSATION,DETAIL,   ,   ,   ,ALVEY LISA M.,2020-07-01,2020-09-30,FINANCIAL COUNSELOR,24296.25,2020
,FISCAL YEAR 2020 CHIEF ADMIN OFCR OF THE HOUSE,3,SALARIES  OFFICERS & EMPLOYEES,PERSONNEL COMPENSATION,DETAIL,   ,   ,   ,AMES KENNETH S,2020-07-01,2020-09-30,CUSTOMER ADVOCATE,20684.76,2020
,FISCAL YEAR 2020 CHIEF ADMIN OFCR OF THE HOUSE,3,SALARIES  OFFICERS & EMPLOYEES,PERSONNEL COMPENSATION,DETAIL,   ,   ,   ,AMES KENNETH S,2020-08-01,2020-08-01,CUSTOMER ADVOCATE (OTHER COMPENSATION),1000,2020
,FISCAL YEAR 2020 CHIEF ADMIN OFCR OF THE HOUSE,3,SALARIES  OFFICERS & EMPLOYEES,PERSONNEL COMPENSATION,DETAIL,   ,   ,   ,AMINZADAH ROUHULLAH,2020-07-01,2020-09-30,TECHNOLOGY PARTNER,24462.99,2020
,FISCAL YEAR 2020 CHIEF ADMIN OFCR OF THE HOUSE,3,SALARIES  OFFICERS & EMPLOYEES,PERSONNEL COMPENSATION,DETAIL,   ,   ,   ,AMINZADAH ROUHULLAH,2020-08-01,2020-08-01,TECHNOLOGY PARTNER (OTHER COMPENSATION),1000,2020
,FISCAL YEAR 2020 CHIEF ADMIN OFCR OF THE HOUSE,3,SALARIES  OFFICERS & EMPLOYEES,PERSONNEL COMPENSATION,DETAIL,   ,   ,   ,AMIS ANNA M,2020-07-01,2020-09-30,EXECUTIVE ASSISTANT,20684.76,2020
,FISCAL YEAR 2020 CHIEF ADMIN OFCR OF THE HOUSE,3,SALARIES  OFFICERS & EMPLOYEES,PERSONNEL COMPENSATION,DETAIL,   ,   ,   ,ANDERSEN FREDERIC E.,2020-07-01,2020-09-30,ASSISTANT DIRECTOR,27034.74,2020
,FISCAL YEAR 2020 CHIEF ADMIN OFCR OF THE HOUSE,3,SALARIES  OFFICERS & EMPLOYEES,PERSONNEL COMPENSATION,DETAIL,   ,   ,   ,ANDERSON DENINE,2020-07-01,2020-09-30,SPECIAL ASSISTANT,29911.5,2020
,FISCAL YEAR 2020 CHIEF ADMIN OFCR OF THE HOUSE,3,SALARIES  OFFICERS & EMPLOYEES,PERSONNEL COMPENSATION,DETAIL,   ,   ,   ,ANDERSON DONTRELL,2020-07-01,2020-09-30,FINANCIAL COUNSELOR,20000.01,2020
,FISCAL YEAR 2020 CHIEF ADMIN OFCR OF THE HOUSE,3,SALARIES  OFFICERS & EMPLOYEES,PERSONNEL COMPENSATION,DETAIL,   ,   ,   ,ANDERSON KYLE D.,2020-07-01,2020-09-30,DIRECTOR  MARKETING,40544.25,2020
,FISCAL YEAR 2020 CHIEF ADMIN OFCR OF THE HOUSE,3,SALARIES  OFFICERS & EMPLOYEES,PERSONNEL COMPENSATION,DETAIL,   ,   ,   ,ANDERSON TIARA S,2020-07-01,2020-09-30,EMPLOYEE ASSISTANCE COUNSELOR,21135.51,2020
,FISCAL YEAR 2020 CHIEF ADMIN OFCR OF THE HOUSE,3,SALARIES  OFFICERS & EMPLOYEES,PERSONNEL COMPENSATION,DETAIL,   ,   ,   ,ANDREWS THOMAS,2020-07-01,2020-09-30,DIRECTOR  ENTERPRISE INFRASTRU,42666.75,2020
,FISCAL YEAR 2020 CHIEF ADMIN OFCR OF THE HOUSE,3,SALARIES  OFFICERS & EMPLOYEES,PERSONNEL COMPENSATION,DETAIL,   ,   ,   ,ANTHONY TONY,2020-07-01,2020-09-30,BROADCAST ENGINEER/PROD SPEC.,23435.76,2020
,FISCAL YEAR 2020 CHIEF ADMIN OFCR OF THE HOUSE,3,SALARIES  OFFICERS & EMPLOYEES,PERSONNEL COMPENSATION,DETAIL,   ,   ,   ,ANTHONY TONY,2020-06-01,2020-06-30,BROADCAST ENGINEER/PROD SPEC. (OVERTIME),202.81,2020
,FISCAL YEAR 2020 CHIEF ADMIN OFCR OF THE HOUSE,3,SALARIES  OFFICERS & EMPLOYEES,PERSONNEL COMPENSATION,DETAIL,   ,   ,   ,APARICIO LUIS A.,2020-08-06,2020-09-30,REC/WAREHOUSE SPEC (A),8299.5,2020
,FISCAL YEAR 2020 CHIEF ADMIN OFCR OF THE HOUSE,3,SALARIES  OFFICERS & EMPLOYEES,PERSONNEL COMPENSATION,DETAIL,   ,   ,   ,APPIAH JOYCE S,2020-07-01,2020-09-30,SENIOR BENEFITS SPECIALIST,30424.26,2020
,FISCAL YEAR 2020 CHIEF ADMIN OFCR OF THE HOUSE,3,SALARIES  OFFICERS & EMPLOYEES,PERSONNEL COMPENSATION,DETAIL,   ,   ,   ,ARJEV MICHAEL,2020-07-01,2020-09-30,PROGRAM MANAGER,33785.25,2020
,FISCAL YEAR 2020 CHIEF ADMIN OFCR OF THE HOUSE,3,SALARIES  OFFICERS & EMPLOYEES,PERSONNEL COMPENSATION,DETAIL,   ,   ,   ,ARMOUR TIANA C,2020-07-01,2020-09-30,PAYROLL & BENEFITS ASSISTANT,13970.76,2020
,FISCAL YEAR 2020 CHIEF ADMIN OFCR OF THE HOUSE,3,SALARIES  OFFICERS & EMPLOYEES,PERSONNEL COMPENSATION,DETAIL,   ,   ,   ,ARMSTRONG JANCIERA C,2020-07-01,2020-09-30,DEPUTY CHIEF CUSTOMER OFFICER,43107.99,2020
,FISCAL YEAR 2020 CHIEF ADMIN OFCR OF THE HOUSE,3,SALARIES  OFFICERS & EMPLOYEES,PERSONNEL COMPENSATION,DETAIL,   ,   ,   ,ARNESON JEFFERY L,2020-07-01,2020-09-30,DRAPERY INSTALLER,14100.59,2020
,FISCAL YEAR 2020 CHIEF ADMIN OFCR OF THE HOUSE,3,SALARIES  OFFICERS & EMPLOYEES,PERSONNEL COMPENSATION,DETAIL,   ,   ,   ,ARNESON JEFFERY L,2020-07-01,2020-07-31,DRAPERY INSTALLER (OVERTIME),308.97,2020
,FISCAL YEAR 2020 CHIEF ADMIN OFCR OF THE HOUSE,3,SALARIES  OFFICERS & EMPLOYEES,PERSONNEL COMPENSATION,DETAIL,   ,   ,   ,ATCHISON DARRYL A.,2020-07-01,2020-09-30,CHIEF MAINTENANCE ENGINEER,37190.17,2020
,FISCAL YEAR 2020 CHIEF ADMIN OFCR OF THE HOUSE,3,SALARIES  OFFICERS & EMPLOYEES,PERSONNEL COMPENSATION,DETAIL,   ,   ,   ,ATCHISON DARRYL A.,2020-08-01,2020-08-01,CHIEF MAINTENANCE ENGINEER (OTHER COMPENSATION),1500,2020
,FISCAL YEAR 2020 CHIEF ADMIN OFCR OF THE HOUSE,3,SALARIES  OFFICERS & EMPLOYEES,PERSONNEL COMPENSATION,DETAIL,   ,   ,   ,AWAN OMAR,2020-07-01,2020-09-30,DIRECTOR OF STRATEGY,43373.01,2020
,FISCAL YEAR 2020 CHIEF ADMIN OFCR OF THE HOUSE,3,SALARIES  OFFICERS & EMPLOYEES,PERSONNEL COMPENSATION,DETAIL,   ,   ,   ,BAHAM TODD,2020-07-01,2020-09-30,TECHNICAL DIRECTOR (A),26301.51,2020
,FISCAL YEAR 2020 CHIEF ADMIN OFCR OF THE HOUSE,3,SALARIES  OFFICERS & EMPLOYEES,PERSONNEL COMPENSATION,DETAIL,   ,   ,   ,BAHAM TODD,2020-06-01,2020-07-31,TECHNICAL DIRECTOR (A) (OVERTIME),1074.81,2020
,FISCAL YEAR 2020 CHIEF ADMIN OFCR OF THE HOUSE,3,SALARIES  OFFICERS & EMPLOYEES,PERSONNEL COMPENSATION,DETAIL,   ,   ,   ,BAILEY DAVID E.,2020-07-01,2020-09-30,SR TECHNICAL SUPPORT REP (A),28571.01,2020
,FISCAL YEAR 2020 CHIEF ADMIN OFCR OF THE HOUSE,3,SALARIES  OFFICERS & EMPLOYEES,PERSONNEL COMPENSATION,DETAIL,   ,   ,   ,BAILEY DAVID E.,2020-08-01,2020-08-01,SR TECHNICAL SUPPORT REP (A) (OTHER COMPENSATION),1000,2020
,FISCAL YEAR 2020 CHIEF ADMIN OFCR OF THE HOUSE,3,SALARIES  OFFICERS & EMPLOYEES,PERSONNEL COMPENSATION,DETAIL,   ,   ,   ,BAKER DARRELL F.,2020-07-01,2020-09-30,SR NETWORK COMM SPEC,31637.76,2020
,FISCAL YEAR 2020 CHIEF ADMIN OFCR OF THE HOUSE,3,SALARIES  OFFICERS & EMPLOYEES,PERSONNEL COMPENSATION,DETAIL,   ,   ,   ,BANFIELD KELLI C,2020-07-01,2020-09-30,BROADCAST ENGINEER/PROD SPEC.,26004,2020
,FISCAL YEAR 2020 CHIEF ADMIN OFCR OF THE HOUSE,3,SALARIES  OFFICERS & EMPLOYEES,PERSONNEL COMPENSATION,DETAIL,   ,   ,   ,BANFIELD KELLI C,2020-06-01,2020-07-31,BROADCAST ENGINEER/PROD SPEC. (OVERTIME),862.62,2020
,FISCAL YEAR 2020 CHIEF ADMIN OFCR OF THE HOUSE,3,SALARIES  OFFICERS & EMPLOYEES,PERSONNEL COMPENSATION,DETAIL,   ,   ,   ,BANKS BIANCA N,2020-07-01,2020-09-30,MANAGER,24903.33,2020
,FISCAL YEAR 2020 CHIEF ADMIN OFCR OF THE HOUSE,3,SALARIES  OFFICERS & EMPLOYEES,PERSONNEL COMPENSATION,DETAIL,   ,   ,   ,BANKS DAVID A,2020-07-01,2020-09-30,SENIOR MULTIMEDIA SPECIALIST,24980.25,2020
,FISCAL YEAR 2020 CHIEF ADMIN OFCR OF THE HOUSE,3,SALARIES  OFFICERS & EMPLOYEES,PERSONNEL COMPENSATION,DETAIL,   ,   ,   ,BARBEE GLENN,2020-07-01,2020-09-30,SENIOR NETWORK TECHNICIAN,27333.99,2020
,FISCAL YEAR 2020 CHIEF ADMIN OFCR OF THE HOUSE,3,SALARIES  OFFICERS & EMPLOYEES,PERSONNEL COMPENSATION,DETAIL,   ,   ,   ,BARBEE DONELL G,2020-07-01,2020-09-30,RETAIL INVENTORY SPECIALIST,12661.26,2020
,FISCAL YEAR 2020 CHIEF ADMIN OFCR OF THE HOUSE,3,SALARIES  OFFICERS & EMPLOYEES,PERSONNEL COMPENSATION,DETAIL,   ,   ,   ,BARBER CRAIG,2020-07-01,2020-09-30,TEAM COORDINATOR,26301.51,2020
,FISCAL YEAR 2020 CHIEF ADMIN OFCR OF THE HOUSE,3,SALARIES  OFFICERS & EMPLOYEES,PERSONNEL COMPENSATION,DETAIL,   ,   ,   ,BARBER CRAIG,2020-08-01,2020-08-01,TEAM COORDINATOR (OTHER COMPENSATION),1000,2020
,FISCAL YEAR 2020 CHIEF ADMIN OFCR OF THE HOUSE,3,SALARIES  OFFICERS & EMPLOYEES,PERSONNEL COMPENSATION,DETAIL,   ,   ,   ,BARCINIAK DANA L.,2020-07-01,2020-09-30,OFFICE MANAGER,27333.99,2020
,FISCAL YEAR 2020 CHIEF ADMIN OFCR OF THE HOUSE,3,SALARIES  OFFICERS & EMPLOYEES,PERSONNEL COMPENSATION,DETAIL,   ,   ,   ,BAREFOOT JEFFREY,2020-07-01,2020-09-30,BROADCAST ENGINEER/PROD SPEC.,24635.41,2020
,FISCAL YEAR 2020 CHIEF ADMIN OFCR OF THE HOUSE,3,SALARIES  OFFICERS & EMPLOYEES,PERSONNEL COMPENSATION,DETAIL,   ,   ,   ,BAREFOOT JEFFREY,2020-06-01,2020-06-30,BROADCAST ENGINEER/PROD SPEC. (OVERTIME),70.57,2020
,FISCAL YEAR 2020 CHIEF ADMIN OFCR OF THE HOUSE,3,SALARIES  OFFICERS & EMPLOYEES,PERSONNEL COMPENSATION,DETAIL,   ,   ,   ,BAREFOOT JEFFREY,2020-08-01,2020-08-01,BROADCAST ENGINEER/PROD SPEC. (OTHER COMPENSATION),1000,2020
,FISCAL YEAR 2020 CHIEF ADMIN OFCR OF THE HOUSE,3,SALARIES  OFFICERS & EMPLOYEES,PERSONNEL COMPENSATION,DETAIL,   ,   ,   ,BARR PAUL,2020-07-01,2020-09-30,SUPERVISOR LOGISTICS & DIST (A,19106.49,2020
,FISCAL YEAR 2020 CHIEF ADMIN OFCR OF THE HOUSE,3,SALARIES  OFFICERS & EMPLOYEES,PERSONNEL COMPENSATION,DETAIL,   ,   ,   ,BARRETT ROBERT R.,2020-07-01,2020-09-30,DIRECTOR  ENTERPRISE APPLICATI,43475.01,2020
,FISCAL YEAR 2020 CHIEF ADMIN OFCR OF THE HOUSE,3,SALARIES  OFFICERS & EMPLOYEES,PERSONNEL COMPENSATION,DETAIL,   ,   ,   ,BARTON TISHA R,2020-07-01,2020-09-30,SPECIAL ASSISTANT,24807.83,2020
,FISCAL YEAR 2020 CHIEF ADMIN OFCR OF THE HOUSE,3,SALARIES  OFFICERS & EMPLOYEES,PERSONNEL COMPENSATION,DETAIL,   ,   ,   ,BASILIO TYRONE A.,2020-07-01,2020-09-30,TECHNICAL SUPPORT REP,23392.74,2020
,FISCAL YEAR 2020 CHIEF ADMIN OFCR OF THE HOUSE,3,SALARIES  OFFICERS & EMPLOYEES,PERSONNEL COMPENSATION,DETAIL,   ,   ,   ,BASILIO TYRONE A.,2020-08-01,2020-08-01,TECHNICAL SUPPORT REP (OTHER COMPENSATION),1000,2020
,FISCAL YEAR 2020 CHIEF ADMIN OFCR OF THE HOUSE,3,SALARIES  OFFICERS & EMPLOYEES,PERSONNEL COMPENSATION,DETAIL,   ,   ,   ,BATES DEBORAH A.,2020-07-01,2020-09-30,BROADCAST PRODUCTION TECHNICIA,21135.51,2020
,FISCAL YEAR 2020 CHIEF ADMIN OFCR OF THE HOUSE,3,SALARIES  OFFICERS & EMPLOYEES,PERSONNEL COMPENSATION,DETAIL,   ,   ,   ,BATES DEBORAH A.,2020-06-01,2020-08-31,BROADCAST PRODUCTION TECHNICIA (OVERTIME),91.45,2020
,FISCAL YEAR 2020 CHIEF ADMIN OFCR OF THE HOUSE,3,SALARIES  OFFICERS & EMPLOYEES,PERSONNEL COMPENSATION,DETAIL,   ,   ,   ,BATSON DENISE D,2020-07-01,2020-09-30,PAYROLL & BENEFITS GENERALIST,16698.99,2020
,FISCAL YEAR 2020 CHIEF ADMIN OFCR OF THE HOUSE,3,SALARIES  OFFICERS & EMPLOYEES,PERSONNEL COMPENSATION,DETAIL,   ,   ,   ,BAUTISTA YAMILETTE,2020-07-01,2020-09-30,PROGRAM COORDINATOR  CONGRESSI,21135.51,2020
,FISCAL YEAR 2020 CHIEF ADMIN OFCR OF THE HOUSE,3,SALARIES  OFFICERS & EMPLOYEES,PERSONNEL COMPENSATION,DETAIL,   ,   ,   ,BAXTER KRISTIE N.,2020-07-01,2020-09-30,PHOTOGRAPHER,16314.51,2020
,FISCAL YEAR 2020 CHIEF ADMIN OFCR OF THE HOUSE,3,SALARIES  OFFICERS & EMPLOYEES,PERSONNEL COMPENSATION,DETAIL,   ,   ,   ,BAXTER KRISTIE N.,2020-06-01,2020-08-31,PHOTOGRAPHER (OVERTIME),1819.67,2020
,FISCAL YEAR 2020 CHIEF ADMIN OFCR OF THE HOUSE,3,SALARIES  OFFICERS & EMPLOYEES,PERSONNEL COMPENSATION,DETAIL,   ,   ,   ,BEATTY PAIGE,2020-07-01,2020-09-30,DIRECTOR-HOUSE CHILD CARE CNTR,33998.67,2020
,FISCAL YEAR 2020 CHIEF ADMIN OFCR OF THE HOUSE,3,SALARIES  OFFICERS & EMPLOYEES,PERSONNEL COMPENSATION,DETAIL,   ,   ,   ,BENJAMIN ALTHEA,2020-07-01,2020-09-30,FINANCIAL COUNSELOR,17760,2020
,FISCAL YEAR 2020 CHIEF ADMIN OFCR OF THE HOUSE,3,SALARIES  OFFICERS & EMPLOYEES,PERSONNEL COMPENSATION,DETAIL,   ,   ,   ,BENN PHILLIP F.,2020-07-01,2020-09-30,ELECTRONICS TECHNICIAN (A),27034.74,2020
,FISCAL YEAR 2020 CHIEF ADMIN OFCR OF THE HOUSE,3,SALARIES  OFFICERS & EMPLOYEES,PERSONNEL COMPENSATION,DETAIL,   ,   ,   ,BENN PHILLIP F.,2020-06-01,2020-08-31,ELECTRONICS TECHNICIAN (A) (OVERTIME),2313.53,2020
,FISCAL YEAR 2020 CHIEF ADMIN OFCR OF THE HOUSE,3,SALARIES  OFFICERS & EMPLOYEES,PERSONNEL COMPENSATION,DETAIL,   ,   ,   ,BESSAHA NABIL,2020-07-01,2020-09-30,SR INFO SYS SEC ANALYST,31051.5,2020
,FISCAL YEAR 2020 CHIEF ADMIN OFCR OF THE HOUSE,3,SALARIES  OFFICERS & EMPLOYEES,PERSONNEL COMPENSATION,DETAIL,   ,   ,   ,BEST CHARLENE,2020-07-01,2020-09-30,MANAGER (HOUSE ASSET SERVICES),28879.5,2020
,FISCAL YEAR 2020 CHIEF ADMIN OFCR OF THE HOUSE,3,SALARIES  OFFICERS & EMPLOYEES,PERSONNEL COMPENSATION,DETAIL,   ,   ,   ,BEST CHARLENE,2020-08-01,2020-08-01,MANAGER (HOUSE ASSET SERVICES) (OTHER COMPENSATION),1000,2020
,FISCAL YEAR 2020 CHIEF ADMIN OFCR OF THE HOUSE,3,SALARIES  OFFICERS & EMPLOYEES,PERSONNEL COMPENSATION,DETAIL,   ,   ,   ,BICKHAM ANDREW J.,2020-07-01,2020-09-30,BUSINESS PROCESS ANALYST,24462.99,2020
,FISCAL YEAR 2020 CHIEF ADMIN OFCR OF THE HOUSE,3,SALARIES  OFFICERS & EMPLOYEES,PERSONNEL COMPENSATION,DETAIL,   ,   ,   ,BILINSKI JOHN E,2020-07-01,2020-09-30,SR BUSINESS  PROCESS APPL SPEC,38425.5,2020
,FISCAL YEAR 2020 CHIEF ADMIN OFCR OF THE HOUSE,3,SALARIES  OFFICERS & EMPLOYEES,PERSONNEL COMPENSATION,DETAIL,   ,   ,   ,BILLARD MICHAEL A.,2020-07-01,2020-09-30,COMMUNICATIONS SPEC,29911.5,2020
,FISCAL YEAR 2020 CHIEF ADMIN OFCR OF THE HOUSE,3,SALARIES  OFFICERS & EMPLOYEES,PERSONNEL COMPENSATION,DETAIL,   ,   ,   ,BILLUPS BRIAN E.,2020-07-01,2020-09-30,NETWORK TECHNICIAN (A),23392.74,2020
,FISCAL YEAR 2020 CHIEF ADMIN OFCR OF THE HOUSE,3,SALARIES  OFFICERS & EMPLOYEES,PERSONNEL COMPENSATION,DETAIL,   ,   ,   ,BINSTED ANNE M,2020-07-01,2020-09-30,CHIEF OF STAFF,43475.01,2020
,FISCAL YEAR 2020 CHIEF ADMIN OFCR OF THE HOUSE,3,SALARIES  OFFICERS & EMPLOYEES,PERSONNEL COMPENSATION,DETAIL,   ,   ,   ,BLACK JUSTIN A,2020-07-01,2020-09-30,CHIEF TECHNOLOGY OFFICER,43475.01,2020
,FISCAL YEAR 2020 CHIEF ADMIN OFCR OF THE HOUSE,3,SALARIES  OFFICERS & EMPLOYEES,PERSONNEL COMPENSATION,DETAIL,   ,   ,   ,BLACKERBY BRUCE A,2020-07-01,2020-09-30,FORENSIC MANAGER,35060.76,2020
,FISCAL YEAR 2020 CHIEF ADMIN OFCR OF THE HOUSE,3,SALARIES  OFFICERS & EMPLOYEES,PERSONNEL COMPENSATION,DETAIL,   ,   ,   ,BLAKLEY JEFFREY S,2020-07-01,2020-09-30,DIRECTOR DIGITAL MEDIA SERVICE,34425.51,2020
,FISCAL YEAR 2020 CHIEF ADMIN OFCR OF THE HOUSE,3,SALARIES  OFFICERS & EMPLOYEES,PERSONNEL COMPENSATION,DETAIL,   ,   ,   ,BOGAN DAVID S.,2020-07-01,2020-09-30,SUPERVISOR  RETAIL INVENTORY,23392.74,2020
,FISCAL YEAR 2020 CHIEF ADMIN OFCR OF THE HOUSE,3,SALARIES  OFFICERS & EMPLOYEES,PERSONNEL COMPENSATION,DETAIL,   ,   ,   ,BOGER KELLY M.,2020-07-01,2020-09-30,SUPERVISOR  ASSET/INVENTORY,26004,2020
,FISCAL YEAR 2020 CHIEF ADMIN OFCR OF THE HOUSE,3,SALARIES  OFFICERS & EMPLOYEES,PERSONNEL COMPENSATION,DETAIL,   ,   ,   ,BOGER KELLY M.,2020-08-01,2020-08-01,SUPERVISOR  ASSET/INVENTORY (OTHER COMPENSATION),1000,2020
,FISCAL YEAR 2020 CHIEF ADMIN OFCR OF THE HOUSE,3,SALARIES  OFFICERS & EMPLOYEES,PERSONNEL COMPENSATION,DETAIL,   ,   ,   ,BOLDIG CHRISTOPHER R.,2020-07-01,2020-09-30,DEPUTY ADMINISTRATIVE COUNSEL,37724.01,2020
,FISCAL YEAR 2020 CHIEF ADMIN OFCR OF THE HOUSE,3,SALARIES  OFFICERS & EMPLOYEES,PERSONNEL COMPENSATION,DETAIL,   ,   ,   ,BOOKER CARLOS,2020-07-01,2020-09-30,SALES SPECIALIST,12661.26,2020
,FISCAL YEAR 2020 CHIEF ADMIN OFCR OF THE HOUSE,3,SALARIES  OFFICERS & EMPLOYEES,PERSONNEL COMPENSATION,DETAIL,   ,   ,   ,BOONE RUSSELL,2020-07-01,2020-09-30,SR TECHNICAL SUPPORT REP,27333.99,2020
,FISCAL YEAR 2020 CHIEF ADMIN OFCR OF THE HOUSE,3,SALARIES  OFFICERS & EMPLOYEES,PERSONNEL COMPENSATION,DETAIL,   ,   ,   ,BOONE RUSSELL,2020-08-01,2020-08-01,SR TECHNICAL SUPPORT REP (OTHER COMPENSATION),1000,2020
,FISCAL YEAR 2020 CHIEF ADMIN OFCR OF THE HOUSE,3,SALARIES  OFFICERS & EMPLOYEES,PERSONNEL COMPENSATION,DETAIL,   ,   ,   ,BOUCHOT ENRIQUE,2020-07-01,2020-09-30,SENIOR SOFTWARE SPECIALIST,39135,2020
,FISCAL YEAR 2020 CHIEF ADMIN OFCR OF THE HOUSE,3,SALARIES  OFFICERS & EMPLOYEES,PERSONNEL COMPENSATION,DETAIL,   ,   ,   ,BOUNDS JAZMINE R.,2020-06-01,2020-09-30,FINANCIAL COUNSELOR,17058.25,2020
,FISCAL YEAR 2020 CHIEF ADMIN OFCR OF THE HOUSE,3,SALARIES  OFFICERS & EMPLOYEES,PERSONNEL COMPENSATION,DETAIL,   ,   ,   ,BOWLDING SONIA R.,2020-07-01,2020-09-30,REC/WAREHOUSE SPEC (A),13338.51,2020
,FISCAL YEAR 2020 CHIEF ADMIN OFCR OF THE HOUSE,3,SALARIES  OFFICERS & EMPLOYEES,PERSONNEL COMPENSATION,DETAIL,   ,   ,   ,BOWLING-STOKES CHAUNETTE L,2020-07-01,2020-09-30,MANAGEMENT ANALYST,28706.92,2020
,FISCAL YEAR 2020 CHIEF ADMIN OFCR OF THE HOUSE,3,SALARIES  OFFICERS & EMPLOYEES,PERSONNEL COMPENSATION,DETAIL,   ,   ,   ,BOWMAN SHELIA,2020-07-01,2020-09-30,FINANCIAL COUNSELOR,20451.75,2020
,FISCAL YEAR 2020 CHIEF ADMIN OFCR OF THE HOUSE,3,SALARIES  OFFICERS & EMPLOYEES,PERSONNEL COMPENSATION,DETAIL,   ,   ,   ,BOYD PETRINA,2020-07-01,2020-09-30,SALES SPECIALIST,14212.5,2020
,FISCAL YEAR 2020 CHIEF ADMIN OFCR OF THE HOUSE,3,SALARIES  OFFICERS & EMPLOYEES,PERSONNEL COMPENSATION,DETAIL,   ,   ,   ,BOYD KENETRIS J,2020-07-01,2020-09-30,PAYROLL & BENEFITS GENERALIST,17760,2020
,FISCAL YEAR 2020 CHIEF ADMIN OFCR OF THE HOUSE,3,SALARIES  OFFICERS & EMPLOYEES,PERSONNEL COMPENSATION,DETAIL,   ,   ,   ,BOYLE KEVIN J.,2020-07-01,2020-09-30,MANAGER  FINANCIAL SYSTEMS,43475.01,2020
,FISCAL YEAR 2020 CHIEF ADMIN OFCR OF THE HOUSE,3,SALARIES  OFFICERS & EMPLOYEES,PERSONNEL COMPENSATION,DETAIL,   ,   ,   ,BRACKENS ROBERT,2020-07-01,2020-09-30,BROADCAST PRODUCTION TECHNICIA,26004,2020
,FISCAL YEAR 2020 CHIEF ADMIN OFCR OF THE HOUSE,3,SALARIES  OFFICERS & EMPLOYEES,PERSONNEL COMPENSATION,DETAIL,   ,   ,   ,BRACKENS ROBERT,2020-06-01,2020-07-31,BROADCAST PRODUCTION TECHNICIA (OVERTIME),925.13,2020
,FISCAL YEAR 2020 CHIEF ADMIN OFCR OF THE HOUSE,3,SALARIES  OFFICERS & EMPLOYEES,PERSONNEL COMPENSATION,DETAIL,   ,   ,   ,BRADLEY NATHANIEL R,2020-07-01,2020-09-30,DIRECTOR  HELP DESK OPERATIONS,39135,2020
,FISCAL YEAR 2020 CHIEF ADMIN OFCR OF THE HOUSE,3,SALARIES  OFFICERS & EMPLOYEES,PERSONNEL COMPENSATION,DETAIL,   ,   ,   ,BRADY JOHN R,2020-07-01,2020-09-30,APPRENTICE UPHOLSTERER,15911.25,2020
,FISCAL YEAR 2020 CHIEF ADMIN OFCR OF THE HOUSE,3,SALARIES  OFFICERS & EMPLOYEES,PERSONNEL COMPENSATION,DETAIL,   ,   ,   ,BRADY JOHN R,2020-06-01,2020-08-31,APPRENTICE UPHOLSTERER (OVERTIME),749.66,2020
,FISCAL YEAR 2020 CHIEF ADMIN OFCR OF THE HOUSE,3,SALARIES  OFFICERS & EMPLOYEES,PERSONNEL COMPENSATION,DETAIL,   ,   ,   ,BRAXTON BRANDON A.,2020-07-01,2020-09-30,REC/WAREHOUSE SPEC (A),14212.5,2020
,FISCAL YEAR 2020 CHIEF ADMIN OFCR OF THE HOUSE,3,SALARIES  OFFICERS & EMPLOYEES,PERSONNEL COMPENSATION,DETAIL,   ,   ,   ,BRAY ERIC,2020-07-01,2020-09-30,BROADCAST ENGINEER/PRODUCTION,22920.99,2020
,FISCAL YEAR 2020 CHIEF ADMIN OFCR OF THE HOUSE,3,SALARIES  OFFICERS & EMPLOYEES,PERSONNEL COMPENSATION,DETAIL,   ,   ,   ,BRAY ERIC,2020-06-01,2020-07-31,BROADCAST ENGINEER/PRODUCTION (OVERTIME),1057.88,2020
,FISCAL YEAR 2020 CHIEF ADMIN OFCR OF THE HOUSE,3,SALARIES  OFFICERS & EMPLOYEES,PERSONNEL COMPENSATION,DETAIL,   ,   ,   ,BRAY ERIC,2020-08-01,2020-08-01,BROADCAST ENGINEER/PRODUCTION (OTHER COMPENSATION),1500,2020
,FISCAL YEAR 2020 CHIEF ADMIN OFCR OF THE HOUSE,3,SALARIES  OFFICERS & EMPLOYEES,PERSONNEL COMPENSATION,DETAIL,   ,   ,   ,BREWSTER III JAMES E,2020-07-01,2020-09-30,BUILDING SUPERVISOR,14100.59,2020
,FISCAL YEAR 2020 CHIEF ADMIN OFCR OF THE HOUSE,3,SALARIES  OFFICERS & EMPLOYEES,PERSONNEL COMPENSATION,DETAIL,   ,   ,   ,BREWSTER CHRISTOPHER A,2020-07-01,2020-09-30,ADMINISTRATIVE COUNSEL,43475.01,2020
,FISCAL YEAR 2020 CHIEF ADMIN OFCR OF THE HOUSE,3,SALARIES  OFFICERS & EMPLOYEES,PERSONNEL COMPENSATION,DETAIL,   ,   ,   ,BRIDGEFORTH TOINETTA A.,2020-07-01,2020-09-30,SENIOR CONTRACTS SPECIALIST,31051.5,2020
,FISCAL YEAR 2020 CHIEF ADMIN OFCR OF THE HOUSE,3,SALARIES  OFFICERS & EMPLOYEES,PERSONNEL COMPENSATION,DETAIL,   ,   ,   ,BROWN SR DEMETRICE T.,2020-07-01,2020-09-30,SR TECHNICAL SUPPORT REP,31457.76,2020
,FISCAL YEAR 2020 CHIEF ADMIN OFCR OF THE HOUSE,3,SALARIES  OFFICERS & EMPLOYEES,PERSONNEL COMPENSATION,DETAIL,   ,   ,   ,BROWN SR DEMETRICE T.,2020-08-01,2020-08-01,SR TECHNICAL SUPPORT REP (OTHER COMPENSATION),1000,2020
